Workbook

Sheet Simulación
B6: Crédito Inmediauto | L6: Agencia
B7: Campaña Lovers | L7: Teléfono
H8: =TODAY() -> 2020-03-31 | L8: Asesor
B10: Datos Generales | J10: Desembolso inicial | S10: Ingreso requerido estimado
B11: Nombre del cliente | D11: NO | J11: Enganche | M11: =IFERROR(IF(D22/D20<10%,"-",D22),"-") -> - | S11: 6 Meses | T11: 12 Meses | U11: 18 Meses | V11: 24 Meses | W11: 30 Meses | X11: 36 Meses | Y11: 48 Meses | Z11: 60 Meses | AA11: 72 Meses
B12: Estado | D12: JALISCO | J12: Comisión por apertura (con IVA) | M12: =IF(E3="",N15/M18,"") ->  | N12: =IFERROR(N15*1.16,"-") -> - | S12: 6 | T12: 12 | U12: 18 | V12: 24 | W12: 30 | X12: 36 | Y12: 48 | Z12: 60 | AA12: 72
B13: ¿Es cliente HSBC? | D13: SI | J13: Seguro | M13: =IF(E3="",IFERROR(Amortización!R24*1.16,"-"),"-") -> 0 | S13: =Ofertas!C29 -> - | T13: =Ofertas!D29 -> - | U13: =Ofertas!E29 -> - | V13: =Ofertas!F29 -> - | W13: =Ofertas!G29 -> - | X13: =Ofertas!H29 -> - | Y13: =Ofertas!I29 -> - | Z13: =Ofertas!J29 -> - | AA13: =Ofertas!K29 -> -
B14: Producto | J14: Pago inicial | M14: =IFERROR(IF(D22/D20<10%,"-",M11+N12+IF(OR(U20="SCA",U20="SCM"),M13,0)),"-") -> -
B15: Datos del vehículo | D15: SELECCIONA MARCA | N15: =IFERROR(IF(D22/D20<10%,"-",M18*IF(D13="No",2.5%,IF(D14="Premier",2.5%,IF(D14="Advance/Nómina en HSBC",2.5%,2.5%)))),"-") -> - | W15: Modelo | X15: =IF(D19="","Introducir Modelo del auto","") -> 
B16: Tipo | J16: Datos de la oferta | W16: Precio | X16: =IF(D20="","Introducir precio del auto","") -> Introducir precio del auto | Z16: ENG | AA16: 60 | AB16: 72
B17: Marca | J17: Mensualidad Inicial* | M17: =IFERROR(IF(D22/D20<10%,"",Amortización!I25),"-") -> - | W17: Enganche Nuevo | X17: =IF(D18>2016,IF(D22/D20<10%,"Introducir un enganche de al menos $"&ROUND(D20*0.1,0),""),"") ->  | Z17: 0.1 | AA17: 0.1399 | AB17: 0.1449 | AC17: =AB17-AA17 -> 0.005
B18: Año | J18: Importe del crédito | M18: =IFERROR(IF(D22/D20<10%,"-",D20-M11),"-") -> - | S18: Tasa sin Subvención | U18: =IF(D23<=60,IF(D22/D20>=40%,11.49%,IF(D22/D20>=20%,12.99%,13.99%)),IF(D22/D20>=40%,12.49%,IF(D22/D20>=20%,13.49%,14.49%))) ->  | W18: Enganche Usado | X18: =IF(AND(D18<2017,D22/D20<20%),"Introducir un enganche de al menos $"&ROUND(D20*0.2,0),"") ->  | Z18: 0.2 | AA18: 0.1299 | AB18: 0.1349 | AC18: =AB18-AA18 -> 0.005
B19: Modelo | D19: VENTO STARTLINE STD 4P 4CIL | J19: Tasa de Interés** | M19: =+$U$18 ->  | W19: Importe mínimo | X19: =IF(M18<10000,"Lo sentimos el importe mínimo a financiar son $10,000","") ->  | Z19: 0.4 | AA19: 0.1149 | AB19: 0.1249 | AC19: 0.01
B20: Precio del auto | S20: Nemónico | U20: =VLOOKUP(D27,Catalogos!$A$21:$B$26,2,0) -> SFA | W20: Modelo | X20: =IF(ISERROR(D28)=TRUE,"Seleccionar nuevamente el Modelo del Auto","") -> Seleccionar nuevamente el Modelo del Auto
B21: Datos de la solicitud | J21: CAT*** | M21: =IFERROR(Amortización!J18,"-") -> - | W21: Plazo vacio | X21: =IF(D23="","Seleccionar plazo valido","") -> 
B22: Enganche | H22: =IF(ISBLANK(D22),"",IF(ISERROR(D22/D20),"",D22/D20)) ->  | W22: Plazo valido | X22: =IF(ISERROR(VLOOKUP(D23,Catalogos!A6:A13,1,0))=TRUE,"Seleccionar plazo valido para el año del vehiculo","") -> Seleccionar plazo valido para el año del vehiculo
B23: Plazo | D23: 60 | J23: Ingreso requerido ( Estimado ) | M23: =IF(E3="",HLOOKUP($D$23,$S$12:$AA$13,2,0),"-") -> -
B24: Subvención $ | H24: =IF(ISBLANK(D24),"",IF(ISERROR(D24/D20),"",D24/D20)) -> 
B26: Datos del seguro
B27: Tipo seguro de daños | D27: SEGURO FINANCIADO ANUAL
B28: Importe del seguro | D28: =IF(D19="","-",VLOOKUP(D19,Catalogos!$AA$3:$AB$262,2,0)*VLOOKUP(D12,Catalogos!$G$2:$H$33,2,0)*1.16+348) -> 
B29: * El pago incluye la mensualidad del seguro en caso de ser financiado.
B31: ** En caso de tener subvencion de la agencia, la tasa podrá ser modificada previa autorización de la agencia.
B32: *** CAT promedio sin IVA. Informativo. Tasa fija anual. Comisión por apertura de contado. Cobertura Nacional. Crédito en Moneda Nacional. Información sujeta a cambios sin previo aviso. Aplican condiciones.
B33: Sujeto a aprobación de crédito. Consulta términos, condiciones de contratación y comisiones en www.hsbc.com.mx | K33: Fecha de cálculo | M33: =TODAY() -> 2020-03-31
B34: La tasa de interés fija anual será determinada por el porcentaje de financiamiento, la capacidad de pago e historial crediticio del cliente.
B35: La información aquí mostrada es para fines informativos y de comparación, exclusivamente, por lo que no constituye la asunción de obligación alguna por parte de HSBC o de las Aseguradoras que se indican.
B36: El Seguro de Vida, es registrado y operado por HSBC Seguros S.A. de CV., Grupo Financiero HSBC. El Seguro de Daños (Seguro de Auto), es registrado y operado por AXA Seguros S.A. de C.V.
B37: La tasa de interés fija anual será determinada por el porcentaje de financiamiento, la capacidad de pago e historial crediticio del cliente.
N39: V.20.022019
B43: Control de Cambios
B44: V.5.022017 | C44: Se modifica fecha de tabla de amortización. Cambia del día 30 de cada mes al último día de cada mes.
C45: Se eliminan vehiculos 2010 2011 2012
B46: V.7.042017 | C46: Se modifica lógica de precios conforme a autorización de marzo 2017
C47: Se incluye enganche partiendo de 10% para Autos Nuevos
B48: V.9.042017 | C48: Se actualizan tarifas de Primas hasta May17 con valores de 2012 a 2018
B49: V.12.072017 | C49: Se actualizan factores de ingresos para no asalariados
B50: V.12.092017 | C50: Se actualizan tarifas y enganches mínimos para auto o camioneta
B51: V.13.102017 | C51: Se anexa link de solicitud, modificación del % de enganche y actualización de tarifas

Sheet Amortización
AB3: Condiciones generales | AF3: Condiciones pagos Periodicos
V4: Comision con Iva % | W4: =IF(Simulación!E3="",Simulación!N15/Simulación!M18,"-") ->  | AB4: Días x año | AD4: 360
C6: Inmediauto | V6: Seguro sin Iva | W6: =(Simulación!D28-348)/1.16 ->  | AB6: Pagos anuales | AD6: =IF(J13="Quincenal",2,1)*12 -> 12
C8: Datos del vehículo | H8: Datos del crédito | V8: Tasa Base | W8: =Simulación!U18 ->  | AB8: Tasa diaria | AD8: =J11/AD4 ->  | AF8: Pago del Auto: | AH8: =J10*AD9*(1+AD9)^AD13/(((1+AD9)^AD13)-1) -> 
C9: Marca | E9: =Simulación!D17 -> 0 | H9: Enganche | J9: =Simulación!D22 -> 0 | L9: =IF(Simulación!E3="",Simulación!D22/Simulación!D20,"-") ->  | U9: Crédito Subvención | W9: =J10-(Simulación!D24/1.16) ->  | AB9: Tasa periódica | AD9: =J11/AD6 ->  | AF9: Prima de seguro daños multianual: | AH9: =((AD11+W16)*AD10*(1+AD10)^AD15)/(((1+AD10)^AD15)-1) -> 
C10: Año | E10: =Simulación!D18 -> 0 | H10: Crédito | J10: =IFERROR(E12-(L9*E12),"") ->  | V10: Pago Subvención | W10: =PMT(W8/12,J12,-W9) ->  | AB10: Tasa periódica seguro | AD10: =W15/AD6 -> 0.01208333333 | AF10: Prima de seguro daños anual: | AH10: =((W6+W16)*AD10*(1+AD10)^(IF(J13="Quincenal",2,1)*12))/(((1+AD10)^(IF(J13="Quincenal",2,1)*12))-1) -> 
C11: Modelo | E11: =Simulación!D19 -> VENTO STARTLINE STD 4P 4CIL | H11: Tasa anual | J11: =IF(Simulación!E3="",W11,"-") ->  | U11: Tasa de Interés | W11: =IF(RATE(J12,W10,-J10)*12<0,0.00001,RATE(J12,W10,-J10)*12) ->  | AB11: Seguro de daño multianual | AD11: =W6*J12/12 ->  | AF11: Prima de seguro solo 6 meses: | AH11: =(((W6/2)+W16)*AD10*(1+AD10)^(IF(J13="Quincenal",2,1)*6))/(((1+AD10)^(IF(J13="Quincenal",2,1)*6))-1) -> 
C12: Precio del auto | E12: =Simulación!D20 -> 0 | H12: Plazo | J12: =Simulación!D23 -> 60 | AB12: Seguro de daño semestral | AD12: =W6/2 -> 
C13: Datos del seguro | H13: Periodicidad | J13: Mensual | V13: Datos Generales | AB13: Periodos crédito auto | AD13: =IF(J13="Quincenal",2,1)*J12 -> 60
C14: Tipo seguro de daños | E14: =Simulación!D27 -> SEGURO FINANCIADO ANUAL | H14: Comisión por apertura (Iva incluido): | J14: =IF(J10="","",Simulación!N15*1.16) ->  | V14: Segmento de cliente | W14: =Simulación!D14 -> 0 | AB14: Nemonico seguro | AD14: =VLOOKUP(E14,Catalogos!$A$21:$B$26,2,0) -> SFA
C15: Importe del seguro | E15: =Simulación!D28 ->  | H15: Subvención | J15: =Simulación!D24 -> 0 | U15: Tasa seguro | V15: tasa seg | W15: 0.145 | AB15: Periodos seguro | AD15: =AD13 -> 60
H16: Fecha cotización | J16: =NOW() -> 2020-03-31T10:58:41.940 | V16: Prima emisión de póliza | W16: 300
C17: Pago inicial (Com. Apert. + Seg. + Eng.) | E17: =Simulación!M14 -> - | H17: Tipo Prepago | J17: Mensualidad
H18: CAT | J18: =HLOOKUP(J12,Ofertas!$C$21:$K$28,8,0) -> -
AC21: SFM | AD21: SFA | AE21: SCA | AF21: SCM | AG21: SG | AH21: SCA
C22: Pago No. | D22: Fecha de pago | E22: Pago a Capital | F22: Pago intereses | G22: Pago Total Crédito Auto | H22: Pago seguro daños (con IVA) | I22: Pago Total (Iva Incluido) | J22: Prepago adicional | K22: Saldo Final (solo Auto) | R22: Pago seguro daños (sin IVA) | T22: Flujo sin IVA | V22: Fecha pago Mensual | W22: Fecha Pago Quincenal | Y22: Periodos anual | Z22: Periodos quincenal | AA22: IVA mult (seguros + int) | AB22: IVA anual (seguros + int) | AC22: Seguro financiado multianual | AD22: Seguro financiado anual | AE22: Seguro de contado anual | AF22: Seguro de contado multianual | AG22: Seguro gratis agencia | AH22: Otra aseguradora 1er año
C23: Total | E23: =SUM(E25:E96) -> 0 | F23: 0 | G23: 0 | H23: 0 | I23: 0 | J23: 0
C24: 0 | H24: =R24*1.16 -> 0 | I24: =R24*1.16 -> 0 | K24: =+J10 ->  | R24: =IF(C24="","",IF($AD$14="SFM",AC24,IF($AD$14="SFA",AD24,IF($AD$14="SCA",AE24,IF($AD$14="SCM",AF24,IF($AD$14="SG",AG24,IF($AD$14="SFA",AH24,0))))))) -> 0 | T24: =-K24+R24+(W4*J10)/1.16 ->  | AE24: =IF(C25="",0,IF(AND(OR(C24=0,C24=13,C24=25,C24=49,C24=61),OR($J$12=6,$J$12=18,$J$12=30),$AD$13-C25<(IF($J$13="Quincenal",2,1)*6)),$AD$12+$W$16,IF(OR(AND($J$13="Quincenal",OR(C24=0,C24=25,C24=49,C24=73,C24=97,C24=121)),AND($J$13="Mensual",OR(C24=0,C24=13,C24=25,C24=37,C24=49,C24=61))),$W$6+$W$16,0))) -> 0 | AF24: =AD11 ->  | AH24: =AE24 -> 0
C25: =IF(AND($J$10<>"",C24<$AD$13,K24<>0),C24+1,"") ->  | D25: =IF(J10="","",IF($J$13="Quincenal",W25,V25)) ->  | E25: =IF(D25="","",IF($J$17="Mensualidad",PMT($J$11/12,$J$12-C24,-K24)-F25,MIN(PMT($J$11/12,$J$12,-$J$10)-F25,K24))) ->  | F25: =IF(D25="","",K24*IF($J$13="Quincenal",15,30)*$AD$8) ->  | G25: =IF(C25="","",SUM(E25:F25)) ->  | H25: =IF(C25="","",IF(OR($AD$14="SCA",$AD$14="SGA"),R25*1.16,R25)+IF($AD$14="SFM",AA25,0)+IF($AD$14="SFA",AB25)) ->  | I25: =IF(C25="","",G25+(F25*0.16)+IF(OR($AD$14="SCA",$AD$14="SGA"),R25*1.16,R25)+IF($AD$14="SFM",AA25,0)+IF($AD$14="SFA",AB25)) ->  | K25: =IF(D25<>"",K24-E25-J25,"") ->  | T25: =IF(D25="","",G25+R25) ->  | V25: =IF(DAY(J16)<16,EOMONTH(J16,0)+15,EOMONTH(J16,1)) -> 2020-04-30 | W25: =IF(AND(C25<>"",DAY($J$16)<=15),EOMONTH(J16,-1)+IF(MONTH(J16)=2,28,30),IF(AND(C25<>"",DAY($J$16)>15),DATE(YEAR(J16),MONTH(J16)+1,DAY(15)))) -> FALSE | Y25: 1 | Z25: 1 | AA25: =IPMT(AD$10,C25,AD$13,-(AD$11+W$16)*1.16)*0.16+AC25*0.16 ->  | AB25: =IPMT(AD$10,IF($J$13="Quincenal",Z25,Y25),$AD$6,-(IF(AND(OR($J$12=6,$J$12=18,$J$12=30),$AD$13-C25<(IF($J$13="Quincenal",2,1)*6)),$AD$12,$W$6)+$W$16)*1.16)*0.16+AD25*0.16 ->  | AC25: =IF(C25<=$AD$15,$AH$9,"") ->  | AD25: =IF(AND(OR($J$12=6,$J$12=18,$J$12=30),$AD$13-C25<(IF($J$13="Quincenal",2,1)*6)),$AH$11,$AH$10) ->  | AE25: =IF(C26="",0,IF(AND(OR(C25=0,C25=13,C25=25,C25=49,C25=61),OR($J$12=6,$J$12=18,$J$12=30),$AD$13-C26<(IF($J$13="Quincenal",2,1)*6)),$AD$12+$W$16,IF(OR(AND($J$13="Quincenal",OR(C25=0,C25=25,C25=49,C25=73,C25=97,C25=121)),AND($J$13="Mensual",OR(C25=0,C25=13,C25=25,C25=37,C25=49,C25=61))),$W$6+$W$16,0))) -> 0 | AG25: =IF($J$13="Quincenal",IF(C25<25,0,AE25),IF(C25<13,0,AE25)) -> 0 | AH25: =AE25 -> 0
D26: =IF($J$13="Quincenal",W26,V26) ->  | E26: =IF(D26="","",IF($J$17="Mensualidad",PMT($J$11/12,$J$12-C25,-K25)-F26,MIN(PMT($J$11/12,$J$12,-$J$10)-F26,K25))) ->  | G26: =IF(C26="","",SUM(E26:F26)) ->  | H26: =IF(C26="","",IF(OR($AD$14="SCA",$AD$14="SGA"),R26*1.16,R26)+IF($AD$14="SFM",AA26,0)+IF($AD$14="SFA",AB26)) ->  | K26: =IF(D26<>"",K25-E26-J26,"") ->  | T26: =IF(D26="","",G26+R26) ->  | V26: =IF(C26="","",IF(DAY(V25)<16,EOMONTH(V25,0)+15,EOMONTH(V25,1))) ->  | W26: =IF(C26<>"",IF(DAY(W25)=15,EOMONTH(W25,-1)+IF(MONTH(W25)=2,28,30),EOMONTH(W25,0)+15),"") ->  | Y26: 2 | Z26: 2 | AE26: 0 | AG26: 0 | AH26: 0
V27: =IF(C27="","",IF(DAY(V26)<16,EOMONTH(V26,0)+15,EOMONTH(V26,1))) ->  | Y27: 3 | Z27: 3 | AE27: 0 | AG27: 0 | AH27: 0
K28: =IF(D28<>"",K27-E28-J28,"") ->  | Y28: 4 | Z28: 4 | AE28: 0 | AG28: 0 | AH28: 0
D29: =IF($J$13="Quincenal",W29,V29) ->  | K29: =IF(D29<>"",K28-E29-J29,"") ->  | Y29: 5 | Z29: 5 | AE29: 0 | AG29: 0 | AH29: 0
Y30: 6 | Z30: 6 | AE30: 0 | AG30: 0 | AH30: 0
C31: =IF(AND($J$10<>"",C30<$AD$13,K30<>0),C30+1,"") ->  | Y31: 7 | Z31: 7 | AE31: 0 | AG31: 0 | AH31: 0
C32: =IF(AND($J$10<>"",C31<$AD$13,K31<>0),C31+1,"") ->  | Y32: 8 | Z32: 8 | AE32: 0 | AG32: 0 | AH32: 0
Y33: 9 | Z33: 9 | AE33: 0 | AG33: 0 | AH33: 0
Y34: 10 | Z34: 10 | AE34: 0 | AG34: 0 | AH34: 0
Y35: 11 | Z35: 11 | AE35: 0 | AG35: 0 | AH35: 0
Y36: 12 | Z36: 12 | AE36: 0 | AG36: 0 | AH36: 0
Y37: 1 | Z37: 13 | AE37: 0 | AG37: 0 | AH37: 0
Y38: 2 | Z38: 14 | AE38: 0 | AG38: 0 | AH38: 0
Y39: 3 | Z39: 15 | AE39: 0 | AG39: 0 | AH39: 0
Y40: 4 | Z40: 16 | AE40: 0 | AG40: 0 | AH40: 0
Y41: 5 | Z41: 17 | AE41: 0 | AG41: 0 | AH41: 0
Y42: 6 | Z42: 18 | AE42: 0 | AG42: 0 | AH42: 0
D43: =IF($J$13="Quincenal",W43,V43) ->  | K43: =IF(D43<>"",K42-E43-J43,"") ->  | Y43: 7 | Z43: 19 | AE43: 0 | AG43: 0 | AH43: 0
K44: =IF(D44<>"",K43-E44-J44,"") ->  | Y44: 8 | Z44: 20 | AE44: 0 | AG44: 0 | AH44: 0
Y45: 9 | Z45: 21 | AE45: 0 | AG45: 0 | AH45: 0
Y46: 10 | Z46: 22 | AE46: 0 | AG46: 0 | AH46: 0
Y47: 11 | Z47: 23 | AE47: 0 | AG47: 0 | AH47: 0
Y48: 12 | Z48: 24 | AE48: 0 | AG48: 0 | AH48: 0
Y49: 1 | Z49: 1 | AE49: 0 | AG49: 0 | AH49: 0
Y50: 2 | Z50: 2 | AE50: 0 | AG50: 0 | AH50: 0
Y51: 3 | Z51: 3 | AE51: 0 | AG51: 0 | AH51: 0
Y52: 4 | Z52: 4 | AE52: 0 | AG52: 0 | AH52: 0
Y53: 5 | Z53: 5 | AE53: 0 | AG53: 0 | AH53: 0
Y54: 6 | Z54: 6 | AE54: 0 | AG54: 0 | AH54: 0
Y55: 7 | Z55: 7 | AE55: 0 | AG55: 0 | AH55: 0
R56: =IF(C56="","",IF($AD$14="SFM",AC56,IF($AD$14="SFA",AD56,IF($AD$14="SCA",AE56,IF($AD$14="SCM",AF56,IF($AD$14="SG",AG56,IF($AD$14="SFA",AH56,0))))))) ->  | Y56: 8 | Z56: 8 | AE56: 0 | AG56: 0 | AH56: 0
D57: =IF($J$13="Quincenal",W57,V57) ->  | F57: =IF(D57="","",K56*IF($J$13="Quincenal",15,30)*$AD$8) ->  | I57: =IF(C57="","",G57+(F57*0.16)+IF(OR($AD$14="SCA",$AD$14="SGA"),R57*1.16,R57)+IF($AD$14="SFM",AA57,0)+IF($AD$14="SFA",AB57)) ->  | T57: =IF(D57="","",G57+R57) ->  | Y57: 9 | Z57: 9 | AA57: =IPMT(AD$10,C57,AD$13,-(AD$11+W$16)*1.16)*0.16+AC57*0.16 ->  | AB57: =IPMT(AD$10,IF($J$13="Quincenal",Z57,Y57),$AD$6,-(IF(AND(OR($J$12=6,$J$12=18,$J$12=30),$AD$13-C57<(IF($J$13="Quincenal",2,1)*6)),$AD$12,$W$6)+$W$16)*1.16)*0.16+AD57*0.16 ->  | AC57: =IF(C57<=$AD$15,$AH$9,"") ->  | AD57: =IF(AND(OR($J$12=6,$J$12=18,$J$12=30),$AD$13-C57<(IF($J$13="Quincenal",2,1)*6)),$AH$11,$AH$10) ->  | AE57: 0 | AG57: =IF($J$13="Quincenal",IF(C57<25,0,AE57),IF(C57<13,0,AE57)) -> 0 | AH57: 0
W58: =IF(C58<>"",IF(DAY(W57)=15,EOMONTH(W57,-1)+IF(MONTH(W57)=2,28,30),EOMONTH(W57,0)+15),"") ->  | Y58: 10 | Z58: 10 | AE58: 0 | AG58: 0 | AH58: 0
Y59: 11 | Z59: 11 | AE59: 0 | AG59: 0 | AH59: 0
Y60: 12 | Z60: 12 | AE60: 0 | AG60: 0 | AH60: 0
Y61: 1 | Z61: 13 | AE61: 0 | AG61: 0 | AH61: 0
Y62: 2 | Z62: 14 | AE62: 0 | AG62: 0 | AH62: 0
Y63: 3 | Z63: 15 | AE63: 0 | AG63: 0 | AH63: 0
Y64: 4 | Z64: 16 | AE64: 0 | AG64: 0 | AH64: 0
Y65: 5 | Z65: 17 | AE65: 0 | AG65: 0 | AH65: 0
Y66: 6 | Z66: 18 | AE66: 0 | AG66: 0 | AH66: 0
Y67: 7 | Z67: 19 | AE67: 0 | AG67: 0 | AH67: 0
Y68: 8 | Z68: 20 | AE68: 0 | AG68: 0 | AH68: 0
Y69: 9 | Z69: 21 | AE69: 0 | AG69: 0 | AH69: 0
Y70: 10 | Z70: 22 | AE70: 0 | AG70: 0 | AH70: 0
Y71: 11 | Z71: 23 | AE71: 0 | AG71: 0 | AH71: 0
Y72: 12 | Z72: 24 | AE72: 0 | AG72: 0 | AH72: 0
Y73: 1 | Z73: 1 | AE73: 0 | AG73: 0 | AH73: 0
Y74: 2 | Z74: 2 | AE74: 0 | AG74: 0 | AH74: 0
Y75: 3 | Z75: 3 | AE75: 0 | AG75: 0 | AH75: 0
Y76: 4 | Z76: 4 | AE76: 0 | AG76: 0 | AH76: 0
Y77: 5 | Z77: 5 | AE77: 0 | AG77: 0 | AH77: 0
Y78: 6 | Z78: 6 | AE78: 0 | AG78: 0 | AH78: 0
Y79: 7 | Z79: 7 | AE79: 0 | AG79: 0 | AH79: 0
Y80: 8 | Z80: 8 | AE80: 0 | AG80: 0 | AH80: 0
Y81: 9 | Z81: 9 | AE81: 0 | AG81: 0 | AH81: 0
Y82: 10 | Z82: 10 | AE82: 0 | AG82: 0 | AH82: 0
Y83: 11 | Z83: 11 | AE83: 0 | AG83: 0 | AH83: 0
Y84: 12 | Z84: 12 | AA84: =IPMT(AD$10,C84,AD$13,-(AD$11+W$16)*1.16)*0.16+AC84*0.16 ->  | AE84: 0 | AG84: 0 | AH84: =AE84 -> 0
K85: =IF(D85<>"",K84-E85-J85,"") ->  | Y85: 1 | Z85: 1 | AA85: =IPMT(AD$10,C85,AD$13,-(AD$11+W$16)*1.16)*0.16+AC85*0.16 ->  | AD85: =IF(AND(OR($J$12=6,$J$12=18,$J$12=30),$AD$13-C85<(IF($J$13="Quincenal",2,1)*6)),$AH$11,$AH$10) ->  | AE85: 0 | AG85: =IF($J$13="Quincenal",IF(C85<25,0,AE85),IF(C85<13,0,AE85)) -> 0 | AH85: =AE85 -> 0
C86: =IF(AND($J$10<>"",C85<$AD$13,K85<>0),C85+1,"") ->  | Y86: 2 | Z86: 2 | AE86: 0 | AG86: 0 | AH86: 0
Y87: 3 | Z87: 3 | AE87: 0 | AG87: 0 | AH87: 0
Y88: 4 | Z88: 4 | AE88: 0 | AG88: 0 | AH88: 0
Y89: 5 | Z89: 5 | AE89: =IF(C90="",0,IF(AND(OR(C89=0,C89=13,C89=25,C89=49,C89=61),OR($J$12=6,$J$12=18,$J$12=30),$AD$13-C90<(IF($J$13="Quincenal",2,1)*6)),$AD$12+$W$16,IF(OR(AND($J$13="Quincenal",OR(C89=0,C89=25,C89=49,C89=73,C89=97,C89=121)),AND($J$13="Mensual",OR(C89=0,C89=13,C89=25,C89=37,C89=49,C89=61))),$W$6+$W$16,0))) -> 0 | AG89: 0 | AH89: 0
E90: =IF(D90="","",IF($J$17="Mensualidad",PMT($J$11/12,$J$12-C89,-K89)-F90,MIN(PMT($J$11/12,$J$12,-$J$10)-F90,K89))) ->  | G90: =IF(C90="","",SUM(E90:F90)) ->  | H90: =IF(C90="","",IF(OR($AD$14="SCA",$AD$14="SGA"),R90*1.16,R90)+IF($AD$14="SFM",AA90,0)+IF($AD$14="SFA",AB90)) ->  | Y90: 6 | Z90: 6 | AE90: 0 | AG90: 0 | AH90: 0
V91: =IF(C91="","",IF(DAY(V90)<16,EOMONTH(V90,0)+15,EOMONTH(V90,1))) ->  | Y91: 7 | Z91: 7 | AE91: 0 | AG91: 0 | AH91: 0
Y92: 8 | Z92: 8 | AE92: 0 | AG92: 0 | AH92: 0
Y93: 9 | Z93: 9 | AE93: 0 | AG93: 0 | AH93: 0
Y94: 10 | Z94: 10 | AE94: 0 | AG94: 0 | AH94: 0
Y95: 11 | Z95: 11 | AE95: 0 | AG95: 0 | AH95: 0
C96: =IF(AND($J$10<>"",C95<$AD$13,K95<>0),C95+1,"") ->  | K96: =IF(D96<>"",K95-E96-J96,"") ->  | Y96: 12 | Z96: 12 | AE96: 0 | AG96: 0 | AH96: 0
C98: * CAT promedio sin IVA. Informativo. Tasa fija anual. Comisión por apertura de contado. Cobertura Nacional. Crédito en Moneda Nacional. Información sujeta a cambios sin previo aviso. Aplican condiciones.
C99: Sujeto a aprobación de crédito. Consulta términos, condiciones de contratación y comisiones en www.hsbc.com.mx | J99: Fecha de cálculo | K99: =TODAY() -> 2020-03-31
C100: La información aquí mostrada es para fines informativos y de comparación, exclusivamente, por lo que no constituye la asunción de obligación alguna por parte de HSBC o de las Aseguradoras que se indican.
C101: El Seguro de Vida, es registrado y operado por HSBC Seguros S.A. de CV., Grupo Financiero HSBC. El Seguro de Daños (Seguro de Auto), es registrado y operado por AXA Seguros S.A. de C.V.

Sheet Ofertas
R4: 0
R5: Asalariado / Asimilado
B7: Inmediauto
R11: Declaración de Impuestos
B14: Marca | C14: =Simulación!D17 -> 0 | F14: Enganche | H14: =Simulación!D22 -> 0
B15: Año | C15: =Simulación!D18 -> 0 | F15: Plazo | H15: =Simulación!D23 -> 60
B16: Modelo | C16: =Simulación!D19 -> VENTO STARTLINE STD 4P 4CIL | F16: Periodicidad del pago | H16: Mensual
B17: Precio del auto | C17: =Simulación!D20 -> 0 | F17: Pago inicial (Com. Apert. + Seguro + Enganche) | H17: =Simulación!M14 -> -
M20: 6 Meses | U20: 12 Meses | AC20: 18 Meses | AK20: 24 Meses | AS20: 30 Meses | BA20: 36 Meses | BI20: 48 Meses | BQ20: 60 Meses | BY20: 60 Meses
B21: Plazo | C21: 6 | D21: 12 | E21: 18 | F21: 24 | G21: 30 | H21: 36 | I21: 48 | J21: 60 | K21: 72 | R21: Monto | S21: =Simulación!M18 -> - | Z21: Monto | AA21: =Simulación!M18 -> - | AH21: Monto | AI21: =Simulación!M18 -> - | AP21: Monto | AQ21: =Simulación!M18 -> - | AX21: Monto | AY21: =Simulación!M18 -> - | BF21: Monto | BG21: =Simulación!M18 -> - | BN21: Monto | BO21: =Simulación!M18 -> - | BV21: Monto | BW21: =Simulación!M18 -> - | CD21: Monto | CE21: =Simulación!M18 -> -
B22: Tasa | C22: =Simulación!$U$18 ->  | D22: =Simulación!$U$18 ->  | E22: =Simulación!$U$18 ->  | F22: =Simulación!$U$18 ->  | G22: =Simulación!$U$18 ->  | H22: =Simulación!$U$18 ->  | I22: =Simulación!$U$18 ->  | J22: =Simulación!$U$18 ->  | K22: =IF(Simulación!D22/Simulación!D20>=40%,Ofertas!J22+1%,Ofertas!J22+0.5%) ->  | R22: tasa | S22: =C23 -> - | Z22: tasa | AA22: =D23 -> - | AH22: tasa | AI22: =E23 -> - | AP22: tasa | AQ22: =F23 -> - | AX22: tasa | AY22: =G23 -> - | BF22: tasa | BG22: =H23 -> - | BN22: tasa | BO22: =I23 -> - | BV22: tasa | BW22: =J23 -> - | CD22: tasa | CE22: =J23 -> -
B23: Tasa Subvención | C23: =IFERROR(IF(RATE(C64,C67,-Simulación!$M$18)*12<0,0.00001,RATE(C64,C67,-Simulación!$M$18)*12),"-") -> - | D23: =IFERROR(IF(RATE(D64,D67,-Simulación!$M$18)*12<0,0.00001,RATE(D64,D67,-Simulación!$M$18)*12),"-") -> - | E23: =IFERROR(IF(RATE(E64,E67,-Simulación!$M$18)*12<0,0.00001,RATE(E64,E67,-Simulación!$M$18)*12),"-") -> - | F23: =IFERROR(IF(RATE(F64,F67,-Simulación!$M$18)*12<0,0.00001,RATE(F64,F67,-Simulación!$M$18)*12),"-") -> - | G23: =IFERROR(IF(RATE(G64,G67,-Simulación!$M$18)*12<0,0.00001,RATE(G64,G67,-Simulación!$M$18)*12),"-") -> - | H23: =IFERROR(IF(RATE(H64,H67,-Simulación!$M$18)*12<0,0.00001,RATE(H64,H67,-Simulación!$M$18)*12),"-") -> - | I23: =IFERROR(IF(RATE(I64,I67,-Simulación!$M$18)*12<0,0.00001,RATE(I64,I67,-Simulación!$M$18)*12),"-") -> - | J23: =IFERROR(IF(RATE(J64,J67,-Simulación!$M$18)*12<0,0.00001,RATE(J64,J67,-Simulación!$M$18)*12),"-") -> - | K23: =IFERROR(IF(RATE(K64,K67,-Simulación!$M$18)*12<0,0.00001,RATE(K64,K67,-Simulación!$M$18)*12),"-") -> - | R23: Plazo | S23: 6 | Z23: Plazo | AA23: 12 | AH23: Plazo | AI23: 18 | AP23: Plazo | AQ23: 24 | AX23: Plazo | AY23: 30 | BF23: Plazo | BG23: 36 | BN23: Plazo | BO23: 48 | BV23: Plazo | BW23: 60 | CD23: Plazo | CE23: 72
B24: Comisión por apertura (Iva incluido) | C24: =Simulación!$N$12 -> - | D24: =Simulación!$N$12 -> - | E24: =Simulación!$N$12 -> - | F24: =Simulación!$N$12 -> - | G24: =Simulación!$N$12 -> - | H24: =Simulación!$N$12 -> - | I24: =Simulación!$N$12 -> - | J24: =Simulación!$N$12 -> - | K24: =Simulación!$N$12 -> -
B25: Pago mensual con IVA | C25: =IFERROR(N40+O40,"-") -> - | D25: =IFERROR(V40+W40,"-") -> - | E25: =IFERROR(AD40+AE40,"-") -> - | F25: =IFERROR(AL40+AM40,"-") -> - | G25: =IFERROR(AT40+AU40,"-") -> - | H25: =IFERROR(BB40+BC40,"-") -> - | I25: =IFERROR(BJ40+BK40,"-") -> - | J25: =IFERROR(BR40+BS40,"-") -> - | K25: =IFERROR(BZ40+CA40,"-") -> - | R25: Seguro Multianual | S25: =S26*(S23/12) ->  | Z25: Seguro Multianual | AA25: =AA26*(AA23/12) ->  | AH25: Seguro Multianual | AI25: =AI26*(AI23/12) ->  | AP25: Seguro Multianual | AQ25: =AQ26*(AQ23/12) ->  | AX25: Seguro Multianual | AY25: =AY26*(AY23/12) ->  | BF25: Seguro Multianual | BG25: =BG26*(BG23/12) ->  | BN25: Seguro Multianual | BO25: =BO26*(BO23/12) ->  | BV25: Seguro Multianual | BW25: =BW26*(BW23/12) ->  | CD25: Seguro Multianual | CE25: =CE26*(CE23/12) -> 
B26: Pago mensual con seguro | C26: =IFERROR(C25+S40,"-") -> - | D26: =IFERROR(D25+AA40,"-") -> - | E26: =IFERROR(E25+AI40,"-") -> - | F26: =IFERROR(F25+AQ40,"-") -> - | G26: =IFERROR(G25+AY40,"-") -> - | H26: =IFERROR(H25+BG40,"-") -> - | I26: =IFERROR(I25+BO40,"-") -> - | J26: =IFERROR(J25+BW40,"-") -> - | K26: =IFERROR(K25+CE40,"-") -> - | R26: Seguro Anual | S26: =Simulación!$D$28/1.16 ->  | Z26: Seguro Anual | AA26: =Simulación!$D$28/1.16 ->  | AH26: Seguro Anual | AI26: =Simulación!$D$28/1.16 ->  | AP26: Seguro Anual | AQ26: =Simulación!$D$28/1.16 ->  | AX26: Seguro Anual | AY26: =Simulación!$D$28/1.16 ->  | BF26: Seguro Anual | BG26: =Simulación!$D$28/1.16 ->  | BN26: Seguro Anual | BO26: =Simulación!$D$28/1.16 ->  | BV26: Seguro Anual | BW26: =Simulación!$D$28/1.16 ->  | CD26: Seguro Anual | CE26: =Simulación!$D$28/1.16 -> 
B27: % Comisión por apertura | C27: =IFERROR(Simulación!$N$15/Simulación!$M$18,"-") -> - | D27: =IFERROR(Simulación!$N$15/Simulación!$M$18,"-") -> - | E27: =IFERROR(Simulación!$N$15/Simulación!$M$18,"-") -> - | F27: =IFERROR(Simulación!$N$15/Simulación!$M$18,"-") -> - | G27: =IFERROR(Simulación!$N$15/Simulación!$M$18,"-") -> - | H27: =IFERROR(Simulación!$N$15/Simulación!$M$18,"-") -> - | I27: =IFERROR(Simulación!$N$15/Simulación!$M$18,"-") -> - | J27: =IFERROR(Simulación!$N$15/Simulación!$M$18,"-") -> - | K27: =IFERROR(Simulación!$N$15/Simulación!$M$18,"-") -> - | R27: Derechos Poliza | S27: 300 | Z27: Derechos Poliza | AA27: 300 | AH27: Derechos Poliza | AI27: 300 | AP27: Derechos Poliza | AQ27: 300 | AX27: Derechos Poliza | AY27: 300 | BF27: Derechos Poliza | BG27: 300 | BN27: Derechos Poliza | BO27: 300 | BV27: Derechos Poliza | BW27: 300 | CD27: Derechos Poliza | CE27: 300
B28: CAT | C28: =IFERROR(S36,"-") -> - | D28: =IFERROR(AA36,"-") -> - | E28: =IFERROR(AI36,"-") -> - | F28: =IFERROR(AQ36,"-") -> - | G28: =IFERROR(AY36,"-") -> - | H28: =IFERROR(BG36,"-") -> - | I28: =IFERROR(BO36,"-") -> - | J28: =IFERROR(BW36,"-") -> - | K28: =IFERROR(CE36,"-") -> - | R28: Tasa Seguros | S28: 0.145 | Z28: Tasa Seguros | AA28: 0.145 | AH28: Tasa Seguros | AI28: 0.145 | AP28: Tasa Seguros | AQ28: 0.145 | AX28: Tasa Seguros | AY28: 0.145 | BF28: Tasa Seguros | BG28: 0.145 | BN28: Tasa Seguros | BO28: 0.145 | BV28: Tasa Seguros | BW28: 0.145 | CD28: Tasa Seguros | CE28: 0.145
B29: Ingreso requerido | C29: =IFERROR(MAX(C51:C52)/$C$45,"-") -> - | D29: - | E29: - | F29: - | G29: - | H29: - | I29: - | J29: =IFERROR(MAX(J51:J52)/$C$45,"-") -> - | K29: =IFERROR(MAX(K51:K52)/$C$45,"-") -> - | R29: Tipo Seguro | S29: =VLOOKUP(Simulación!D27,Catalogos!$A$21:$B$26,2,0) -> SFA | Z29: Tipo Seguro | AA29: =VLOOKUP(Simulación!D27,Catalogos!$A$21:$B$26,2,0) -> SFA | AH29: Tipo Seguro | AI29: =VLOOKUP(Simulación!D27,Catalogos!$A$21:$B$26,2,0) -> SFA | AP29: Tipo Seguro | AQ29: =VLOOKUP(Simulación!D27,Catalogos!$A$21:$B$26,2,0) -> SFA | AX29: Tipo Seguro | AY29: =VLOOKUP(Simulación!D27,Catalogos!$A$21:$B$26,2,0) -> SFA | BF29: Tipo Seguro | BG29: =VLOOKUP(Simulación!D27,Catalogos!$A$21:$B$26,2,0) -> SFA | BN29: Tipo Seguro | BO29: =VLOOKUP(Simulación!D27,Catalogos!$A$21:$B$26,2,0) -> SFA | BV29: Tipo Seguro | BW29: =VLOOKUP(Simulación!D27,Catalogos!$A$21:$B$26,2,0) -> SFA | CD29: Tipo Seguro | CE29: =VLOOKUP(Simulación!D27,Catalogos!$A$21:$B$26,2,0) -> SFA
B31: * CAT promedio sin IVA. Informativo. Tasa fija anual. Comisión por apertura de contado. Cobertura Nacional. Crédito en Moneda Nacional. Información sujeta a cambios sin previo aviso. Aplican condiciones. | R31: Pago Anual | S31: =-PMT(S28/12,12,S26+S27) ->  | Z31: Pago Anual | AA31: =-PMT(AA28/12,12,AA26+AA27) ->  | AH31: Pago Anual | AI31: =-PMT(AI28/12,12,AI26+AI27) ->  | AP31: Pago Anual | AQ31: =-PMT(AQ28/12,12,AQ26+AQ27) ->  | AX31: Pago Anual | AY31: =-PMT(AY28/12,12,AY26+AY27) ->  | BF31: Pago Anual | BG31: =-PMT(BG28/12,12,BG26+BG27) ->  | BN31: Pago Anual | BO31: =-PMT(BO28/12,12,BO26+BO27) ->  | BV31: Pago Anual | BW31: =-PMT(BW28/12,12,BW26+BW27) ->  | CD31: Pago Anual | CE31: =-PMT(CE28/12,12,CE26+CE27) -> 
B33: Sujeto a aprobación de crédito. Consulta términos, condiciones de contratación y comisiones en www.hsbc.com.mx | I33: Fecha de cálculo | J33: =NOW() -> 2020-03-31T10:58:41.940 | M33: =TODAY() -> 2020-03-31 | R33: Pago Medio año | S33: =-PMT(S28/12,6,(S26/2+S27)) ->  | Z33: Pago Medio año | AA33: =-PMT(AA28/12,6,AA26/2+AA27) ->  | AH33: Pago Medio año | AI33: =-PMT(AI28/12,6,AI26/2+AI27) ->  | AP33: Pago Medio año | AQ33: =-PMT(AQ28/12,6,AQ26/2+AQ27) ->  | AX33: Pago Medio año | AY33: =-PMT(AY28/12,6,AY26/2+AY27) ->  | BF33: Pago Medio año | BG33: =-PMT(BG28/12,6,BG26/2+BG27) ->  | BN33: Pago Medio año | BO33: =-PMT(BO28/12,6,BO26/2+BO27) ->  | BV33: Pago Medio año | BW33: =-PMT(BW28/12,6,BW26/2+BW27) ->  | CD33: Pago Medio año | CE33: =-PMT(CE28/12,6,CE26/2+CE27) -> 
B34: La información aquí mostrada es para fines informativos y de comparación, exclusivamente, por lo que no constituye la asunción de obligación alguna por parte de HSBC o de las Aseguradoras que se indican. | R34: Pago Multianual | S34: =-PMT(S28/12,S23,S25+S27) ->  | Z34: Pago Multianual | AA34: =-PMT(AA28/12,AA23,AA25+AA27) ->  | AH34: Pago Multianual | AI34: =-PMT(AI28/12,AI23,AI25+AI27) ->  | AP34: Pago Multianual | AQ34: =-PMT(AQ28/12,AQ23,AQ25+AQ27) ->  | AX34: Pago Multianual | AY34: =-PMT(AY28/12,AY23,AY25+AY27) ->  | BF34: Pago Multianual | BG34: =-PMT(BG28/12,BG23,BG25+BG27) ->  | BN34: Pago Multianual | BO34: =-PMT(BO28/12,BO23,BO25+BO27) ->  | BV34: Pago Multianual | BW34: =-PMT(BW28/12,BW23,BW25+BW27) ->  | CD34: Pago Multianual | CE34: =-PMT(CE28/12,CE23,CE25+CE27) -> 
R35: CAT Mensual | S35: =IRR(R39:R45) ->  | Z35: CAT Mensual | AA35: =IRR(Z39:Z51) ->  | AH35: CAT Mensual | AI35: =IRR(AH39:AH57) ->  | AP35: CAT Mensual | AQ35: =IRR(AP39:AP63) ->  | AX35: CAT Mensual | AY35: =IRR(AX39:AX69) ->  | BF35: CAT Mensual | BG35: =IRR(BF39:BF75) ->  | BN35: CAT Mensual | BO35: =IRR(BN39:BN87) ->  | BV35: CAT Mensual | BW35: =IRR(BV39:BV99) ->  | CD35: CAT Mensual | CE35: =IRR(CD39:CD111) -> 
B36: El Seguro de Vida, es registrado y operado por HSBC Seguros S.A. de CV., Grupo Financiero HSBC. El Seguro de Daños (Seguro de Auto), es registrado y operado por AXA Seguros S.A. de C.V. | R36: CAT Anual | S36: =(1+S35)^12-1 ->  | Z36: CAT Anual | AA36: =(1+AA35)^12-1 ->  | AH36: CAT Anual | AI36: =(1+AI35)^12-1 ->  | AP36: CAT Anual | AQ36: =(1+AQ35)^12-1 ->  | AX36: CAT Anual | AY36: =(1+AY35)^12-1 ->  | BF36: CAT Anual | BG36: =(1+BG35)^12-1 ->  | BN36: CAT Anual | BO36: =(1+BO35)^12-1 ->  | BV36: CAT Anual | BW36: =(1+BW35)^12-1 ->  | CD36: CAT Anual | CE36: =(1+CE35)^12-1 -> 
N38: Pago (K+i) | O38: Iva intereses | P38: Flujo | Q38: Pago Seguro | R38: Flujo con Seguros | S38: Pago Seguro con IVA | V38: Pago (K+i) | W38: Iva intereses | X38: Flujo | Y38: Pago Seguro | Z38: Flujo con Seguros | AA38: Pago Seguro con IVA | AD38: Pago (K+i) | AE38: Iva intereses | AF38: Flujo | AG38: Pago Seguro | AH38: Flujo con Seguros | AI38: Pago Seguro con IVA | AL38: Pago (K+i) | AM38: Iva intereses | AN38: Flujo | AO38: Pago Seguro | AP38: Flujo con Seguros | AQ38: Pago Seguro con IVA | AT38: Pago (K+i) | AU38: Iva intereses | AV38: Flujo | AW38: Pago Seguro | AX38: Flujo con Seguros | AY38: Pago Seguro con IVA | BB38: Pago (K+i) | BC38: Iva intereses | BD38: Flujo | BE38: Pago Seguro | BF38: Flujo con Seguros | BG38: Pago Seguro con IVA | BJ38: Pago (K+i) | BK38: Iva intereses | BL38: Flujo | BM38: Pago Seguro | BN38: Flujo con Seguros | BO38: Pago Seguro con IVA | BR38: Pago (K+i) | BS38: Iva intereses | BT38: Flujo | BU38: Pago Seguro | BV38: Flujo con Seguros | BW38: Pago Seguro con IVA | BZ38: Pago (K+i) | CA38: Iva intereses | CB38: Flujo | CC38: Pago Seguro | CD38: Flujo con Seguros | CE38: Pago Seguro con IVA
M39: 0 | P39: =-Simulación!M18+Simulación!N15 ->  | Q39: =IF(OR(S$29="SCA"),S$26/2+S$27,IF(S29="SCM",S25,0)) -> 0 | R39: =P39+Q39 ->  | S39: =IF(OR(S$29="SCA",S$29="SCM"),Q39*1.16,0) -> 0 | U39: 0 | X39: =-Simulación!M18+Simulación!N15 ->  | Y39: =IF(OR(AA$29="SCA"),AA$26+AA$27,IF(AA29="SCM",AA25,0)) -> 0 | Z39: =X39+Y39 ->  | AA39: =IF(OR(AA$29="SCA",AA$29="SCM"),Y39*1.16,0) -> 0 | AC39: 0 | AF39: =-Simulación!M18+Simulación!N15 ->  | AG39: =IF(OR(AI$29="SCA"),AI$26+AI$27,IF(AI29="SCM",AI25,0)) -> 0 | AH39: =AF39+AG39 ->  | AI39: =IF(OR(AI$29="SCA",AI$29="SCM"),AG39*1.16,0) -> 0 | AK39: 0 | AN39: =-Simulación!M18+Simulación!N15 ->  | AO39: =IF(OR(AQ$29="SCA"),AQ$26+AQ$27,IF(AQ29="SCM",AQ25,0)) -> 0 | AP39: =AN39+AO39 ->  | AQ39: =IF(OR(AQ$29="SCA",AQ$29="SCM"),AO39*1.16,0) -> 0 | AS39: 0 | AV39: =-Simulación!M18+Simulación!N15 ->  | AW39: =IF(OR(AY$29="SCA"),AY$26+AY$27,IF(AY29="SCM",AY25,0)) -> 0 | AX39: =AV39+AW39 ->  | AY39: =IF(OR(AY$29="SCA",AY$29="SCM"),AW39*1.16,0) -> 0 | BA39: 0 | BD39: =-Simulación!M18+Simulación!N15 ->  | BE39: =IF(OR(BG$29="SCA"),BG$26+BG$27,IF(BG29="SCM",BG25,0)) -> 0 | BF39: =BD39+BE39 ->  | BG39: =IF(OR(BG$29="SCA",BG$29="SCM"),BE39*1.16,0) -> 0 | BI39: 0 | BL39: =-Simulación!M18+Simulación!N15 ->  | BM39: =IF(OR(BO$29="SCA"),BO$26+BO$27,IF(BO29="SCM",BO25,0)) -> 0 | BN39: =BL39+BM39 ->  | BO39: =IF(OR(BO$29="SCA",BO$29="SCM"),BM39*1.16,0) -> 0 | BQ39: 0 | BT39: =-Simulación!M18+Simulación!N15 ->  | BU39: =IF(OR(BW$29="SCA"),BW$26+BW$27,IF(BW29="SCM",BW25,0)) -> 0 | BV39: =BT39+BU39 ->  | BW39: =IF(OR(BW$29="SCA",BW$29="SCM"),BU39*1.16,0) -> 0 | BY39: 0 | CB39: =-Simulación!M18+Simulación!N15 ->  | CC39: =IF(OR(CE$29="SCA"),CE$26+CE$27,IF(CE29="SCM",CE25,0)) -> 0 | CD39: =CB39+CC39 ->  | CE39: =IF(OR(CE$29="SCA",CE$29="SCM"),CC39*1.16,0) -> 0
M40: 1 | N40: =-PMT($S$22/12,$S$23,$S$21) ->  | O40: =-IPMT($S$22/12,M40,$S$23,$S$21)*0.16 ->  | P40: =SUM(N40:N40) ->  | Q40: =IF(S$29="SCA",0,IF(S$29="SFA",S$33,IF(S$29="SFM",S$34,0))) ->  | S40: =IF(S$29="SFM",IPMT(S$28/12,M40,S$23,-((S$25)+S$27)*1.16)*0.16+Q40*1.16,IF(S$29="SFA",$Q64,0)) ->  | U40: 1 | V40: =-PMT($AA$22/12,$AA$23,$AA$21) ->  | W40: =-IPMT($AA$22/12,U40,$AA$23,$AA$21)*0.16 ->  | X40: =SUM(V40:V40) ->  | Y40: =IF(AA$29="SCA",0,IF(AA$29="SFA",AA$31,IF(AA$29="SFM",AA$34,0))) ->  | AA40: =IF(AA$29="SFM",IPMT(AA$28/12,U40,AA$23,-((AA$25)+AA$27)*1.16)*0.16+Y40*1.16,IF(AA$29="SFA",$Q51,0)) ->  | AC40: 1 | AD40: =-PMT($AI$22/12,$AI$23,$AI$21) ->  | AE40: =-IPMT($AI$22/12,AC40,$AI$23,$AI$21)*0.16 ->  | AF40: =SUM(AD40:AD40) ->  | AG40: =IF(AI$29="SCA",0,IF(AI$29="SFA",AI$31,IF(AI$29="SFM",AI$34,0))) ->  | AI40: =IF(AI$29="SFM",IPMT(AI$28/12,AC40,AI$23,-((AI$25)+AI$27)*1.16)*0.16+AG40*1.16,IF(AI$29="SFA",$Q51,0)) ->  | AK40: 1 | AL40: =-PMT($AQ$22/12,$AQ$23,$AQ$21) ->  | AM40: =-IPMT($AQ$22/12,AK40,$AQ$23,$AQ$21)*0.16 ->  | AN40: =SUM(AL40:AL40) ->  | AO40: =IF(AQ$29="SCA",0,IF(AQ$29="SFA",AQ$31,IF(AQ$29="SFM",AQ$34,0))) ->  | AQ40: =IF(AQ$29="SFM",IPMT(AQ$28/12,AK40,AQ$23,-((AQ$25)+AQ$27)*1.16)*0.16+AO40*1.16,IF(AQ$29="SFA",$Q51,0)) ->  | AS40: 1 | AT40: =-PMT($AY$22/12,$AY$23,$AY$21) ->  | AU40: =-IPMT($AY$22/12,AS40,$AY$23,$AY$21)*0.16 ->  | AV40: =SUM(AT40:AT40) ->  | AW40: =IF(AY$29="SCA",0,IF(AY$29="SFA",AY$31,IF(AY$29="SFM",AY$34,0))) ->  | AY40: =IF(AY$29="SFM",IPMT(AY$28/12,AS40,AY$23,-((AY$25)+AY$27)*1.16)*0.16+AW40*1.16,IF(AY$29="SFA",$Q51,0)) ->  | BA40: 1 | BB40: =-PMT($BG$22/12,$BG$23,$BG$21) ->  | BC40: =-IPMT($BG$22/12,BA40,$BG$23,$BG$21)*0.16 ->  | BD40: =SUM(BB40:BB40) ->  | BE40: =IF(BG$29="SCA",0,IF(BG$29="SFA",BG$31,IF(BG$29="SFM",BG$34,0))) ->  | BG40: =IF(BG$29="SFM",IPMT(BG$28/12,BA40,BG$23,-((BG$25)+BG$27)*1.16)*0.16+BE40*1.16,IF(BG$29="SFA",$Q51,0)) ->  | BI40: 1 | BJ40: =-PMT($BO$22/12,$BO$23,$BO$21) ->  | BK40: =-IPMT($BO$22/12,BI40,$BO$23,$BO$21)*0.16 ->  | BL40: =SUM(BJ40:BJ40) ->  | BM40: =IF(BO$29="SCA",0,IF(BO$29="SFA",BO$31,IF(BO$29="SFM",BO$34,0))) ->  | BO40: =IF(BO$29="SFM",IPMT(BO$28/12,BI40,BO$23,-((BO$25)+BO$27)*1.16)*0.16+BM40*1.16,IF(BO$29="SFA",$Q51,0)) ->  | BQ40: 1 | BR40: =-PMT($BW$22/12,$BW$23,$BW$21) ->  | BS40: =-IPMT($BW$22/12,BQ40,$BW$23,$BW$21)*0.16 ->  | BT40: =SUM(BR40:BR40) ->  | BU40: =IF(BW$29="SCA",0,IF(BW$29="SFA",BW$31,IF(BW$29="SFM",BW$34,0))) ->  | BV40: =BR40+BU40 ->  | BW40: =IF(BW$29="SFM",IPMT(BW$28/12,BQ40,BW$23,-((BW$25)+BW$27)*1.16)*0.16+BU40*1.16,IF(BW$29="SFA",$Q51,0)) ->  | BY40: 1 | BZ40: =-PMT($CE$22/12,$CE$23,$CE$21) ->  | CA40: =-IPMT($CE$22/12,BY40,$CE$23,$CE$21)*0.16 ->  | CB40: =SUM(BZ40:BZ40) ->  | CC40: =IF(CE$29="SCA",0,IF(CE$29="SFA",CE$31,IF(CE$29="SFM",CE$34,0))) ->  | CD40: =BZ40+CC40 ->  | CE40: =IF(CE$29="SFM",IPMT(CE$28/12,BY40,CE$23,-((CE$25)+CE$27)*1.16)*0.16+CC40*1.16,IF(CE$29="SFA",$Q51,0)) -> 
M41: 2 | U41: 2 | AC41: 2 | AK41: 2 | AS41: 2 | BA41: 2 | BI41: 2 | BQ41: 2 | BY41: 2 | BZ41: =-PMT($CE$22/12,$CE$23,$CE$21) ->  | CA41: =-IPMT($CE$22/12,BY41,$CE$23,$CE$21)*0.16 -> 
M42: 3 | U42: 3 | AC42: 3 | AK42: 3 | AS42: 3 | BA42: 3 | BI42: 3 | BQ42: 3 | BY42: 3
M43: 4 | U43: 4 | AC43: 4 | AK43: 4 | AS43: 4 | BA43: 4 | BI43: 4 | BQ43: 4 | BY43: 4
M44: 5 | U44: 5 | AC44: 5 | AK44: 5 | AS44: 5 | BA44: 5 | BI44: 5 | BQ44: 5 | BY44: 5
B45: Factores Ingreso | C45: =VLOOKUP(R5,Catalogos!$A$56:$C$62,IF(R11="Declaración de Impuestos",2,3),0) -> 1 | M45: 6 | U45: 6 | AC45: 6 | AK45: 6 | AS45: 6 | BA45: 6 | BI45: 6 | BQ45: 6 | BY45: 6
U46: 7 | AC46: 7 | AK46: 7 | AS46: 7 | BA46: 7 | BI46: 7 | BQ46: 7 | BY46: 7
B47: Ajuste iteración | U47: 8 | AC47: 8 | AK47: 8 | AS47: 8 | BA47: 8 | BI47: 8 | BQ47: 8 | BY47: 8
B48: Ajuste | C48: =VLOOKUP(MAX(C59:C60),Catalogos!$G$42:$H$51,2) ->  | D48: =VLOOKUP(MAX(D59:D60),Catalogos!$G$42:$H$51,2) ->  | E48: =VLOOKUP(MAX(E59:E60),Catalogos!$G$42:$H$51,2) ->  | F48: =VLOOKUP(MAX(F59:F60),Catalogos!$G$42:$H$51,2) ->  | G48: =VLOOKUP(MAX(G59:G60),Catalogos!$G$42:$H$51,2) ->  | H48: =VLOOKUP(MAX(H59:H60),Catalogos!$G$42:$H$51,2) ->  | I48: =VLOOKUP(MAX(I59:I60),Catalogos!$G$42:$H$51,2) ->  | J48: =VLOOKUP(MAX(J59:J60),Catalogos!$G$42:$H$51,2) ->  | K48: =VLOOKUP(MAX(K59:K60),Catalogos!$G$42:$H$51,2) ->  | U48: 9 | AC48: 9 | AK48: 9 | AS48: 9 | BA48: 9 | BI48: 9 | BQ48: 9 | BY48: 9
B49: DTI | C49: =40%-C48 ->  | D49: =40%-D48 ->  | N49: Pago Total Seguro | O49: Mensualidad | P49: Iva de Intereses del SeguroIVAIncluido | Q49: Iva de Intereses del SeguroIVAIncluido | U49: 10 | AC49: 10 | AK49: 10 | AS49: 10 | BA49: 10 | BI49: 10 | BQ49: 10 | BY49: 10
B50: PTI | C50: =33%-C48 ->  | D50: =33%-D48 ->  | U50: 11 | AC50: 11 | AK50: 11 | AS50: 11 | BA50: 11 | BI50: 11 | BQ50: 11 | BY50: 11
B51: Ingreso DTI | C51: =C26/C49+$R$4 ->  | N51: =PMT(AA$28/12,12,-((AA$26)+AA$27)*1.16) ->  | O51: 1 | P51: =IPMT(AA$28/12,O51,12,-((AA$26)+AA$27)*1.16)*0.16 ->  | Q51: =N51+P51 ->  | U51: 12 | AC51: 12 | AK51: 12 | AS51: 12 | BA51: 12 | BI51: 12 | BQ51: 12 | BY51: 12
B52: Ingreso PTI | C52: =C26/C50 ->  | O52: 2 | AC52: 13 | AG52: =IF(OR(AI$29="SCA",AI29="SG"),AI$26/2+AI$27,IF(OR(AI$29="SFA",AI$29="SG"),AI$33,IF(AI$29="SFM",AI$34,0))) ->  | AI52: =IF(OR(AI$29="SCA",AI$29="SG"),AG52*1.16,IF(AI$29="SFM",IPMT(AI$28/12,AC52,AI$23,-((AI$25)+AI$27)*1.16)*0.16+AG52*1.16,IF(AI$29="SFA",$Q64,0))) ->  | AK52: 13 | AO52: =IF(OR(AQ$29="SCA",$AQ$29="SG"),AQ$26+AQ$27,IF(OR(AQ$29="SFA",AQ$29="SG"),AQ$31,IF(AQ$29="SFM",AQ$34,0))) ->  | AQ52: =IF(OR(AQ$29="SCA",AQ$29="SG"),AO52*1.16,IF(AQ$29="SFM",IPMT(AQ$28/12,AK52,AQ$23,-((AQ$25)+AQ$27)*1.16)*0.16+AO52*1.16,IF(AQ$29="SFA",$Q51,0))) ->  | AS52: 13 | AW52: =IF(OR(AY$29="SCA",AY$29="SG"),AY$26+AY$27,IF(OR(AY$29="SFA",AY$29="SG"),AY$31,IF(AY$29="SFM",AY$34,0))) ->  | AY52: =IF(OR(AY$29="SCA",AY$29="SG"),AW52*1.16,IF(AY$29="SFM",IPMT(AY$28/12,AS52,AY$23,-((AY$25)+AY$27)*1.16)*0.16+AW52*1.16,IF(AY$29="SFA",$Q51,0))) ->  | BA52: 13 | BE52: =IF(OR(BG$29="SCA",BG$29="SG"),BG$26+BG$27,IF(OR(BG$29="SFA",BG$29="SG"),BG$31,IF(BG$29="SFM",BG$34,0))) ->  | BG52: =IF(OR(BG$29="SCA",BG$29="SG"),BE52*1.16,IF(BG$29="SFM",IPMT(BG$28/12,BA52,BG$23,-((BG$25)+BG$27)*1.16)*0.16+BE52*1.16,IF(BG$29="SFA",$Q64,0))) ->  | BI52: 13 | BM52: =IF(OR(BO$29="SCA",BO$29="SG"),BO$26+BO$27,IF(OR(BO$29="SFA",BO$29="SG"),BO$31,IF(BO$29="SFM",BO$34,0))) ->  | BO52: =IF(OR(BO29="SCA",BO29="SG"),BM52*1.16,IF(BO$29="SFM",IPMT(BO$28/12,BI52,BO$23,-((BO$25)+BO$27)*1.16)*0.16+BM52*1.16,IF(BO$29="SFA",$Q64,0))) ->  | BQ52: 13 | BU52: =IF(OR(BW$29="SCA",BW$29="SG"),BW$26+BW$27,IF(OR(BW$29="SFA",BW$29="SG"),BW$31,IF(BW$29="SFM",BW$34,0))) ->  | BW52: =IF(OR(BW$29="SCA",BW$29="SG"),BU52*1.16,IF(BW$29="SFM",IPMT(BW$28/12,BQ52,BW$23,-((BW$25)+BW$27)*1.16)*0.16+BU52*1.16,IF(BW$29="SFA",$Q64,0))) ->  | BY52: 13 | CC52: =IF(OR(CE$29="SCA",CE$29="SG"),CE$26+CE$27,IF(OR(CE$29="SFA",CE$29="SG"),CE$31,IF(CE$29="SFM",CE$34,0))) ->  | CE52: =IF(OR(CE$29="SCA",CE$29="SG"),CC52*1.16,IF(CE$29="SFM",IPMT(CE$28/12,BY52,CE$23,-((CE$25)+CE$27)*1.16)*0.16+CC52*1.16,IF(CE$29="SFA",$Q64,0))) -> 
O53: 3 | AC53: 14 | AG53: =IF(AI$29="SCA",0,IF(OR(AI$29="SFA"),AI$33,IF(AI$29="SFM",AI$34,0))) ->  | AI53: =IF(AI$29="SFM",IPMT(AI$28/12,AC53,AI$23,-((AI$25)+AI$27)*1.16)*0.16+AG53*1.16,IF(AI$29="SFA",$Q65,0)) ->  | AK53: 14 | AO53: =IF(AQ$29="SCA",0,IF(OR(AQ$29="SFA"),AQ$31,IF(AQ$29="SFM",AQ$34,0))) ->  | AQ53: =IF(AQ$29="SFM",IPMT(AQ$28/12,AK53,AQ$23,-((AQ$25)+AQ$27)*1.16)*0.16+AO53*1.16,IF(AQ$29="SFA",$Q52,0)) ->  | AS53: 14 | AW53: =IF(AY$29="SCA",0,IF(OR(AY$29="SFA"),AY$31,IF(AY$29="SFM",AY$34,0))) ->  | AY53: =IF(AY$29="SFM",IPMT(AY$28/12,AS53,AY$23,-((AY$25)+AY$27)*1.16)*0.16+AW53*1.16,IF(AY$29="SFA",$Q52,0)) ->  | BA53: 14 | BE53: =IF(BG$29="SCA",0,IF(OR(BG$29="SFA"),BG$31,IF(BG$29="SFM",BG$34,0))) ->  | BG53: =IF(BG$29="SFM",IPMT(BG$28/12,BA53,BG$23,-((BG$25)+BG$27)*1.16)*0.16+BE53*1.16,IF(BG$29="SFA",$Q52,0)) ->  | BI53: 14 | BM53: =IF(BO$29="SCA",0,IF(OR(BO$29="SFA"),BO$31,IF(BO$29="SFM",BO$34,0))) ->  | BO53: =IF(BO$29="SFM",IPMT(BO$28/12,BI53,BO$23,-((BO$25)+BO$27)*1.16)*0.16+BM53*1.16,IF(BO$29="SFA",$Q52,0)) ->  | BQ53: 14 | BU53: =IF(BW$29="SCA",0,IF(OR(BW$29="SFA"),BW$31,IF(BW$29="SFM",BW$34,0))) ->  | BW53: =IF(BW$29="SFM",IPMT(BW$28/12,BQ53,BW$23,-((BW$25)+BW$27)*1.16)*0.16+BU53*1.16,IF(BW$29="SFA",$Q52,0)) ->  | BY53: 14 | CC53: =IF(CE$29="SCA",0,IF(OR(CE$29="SFA"),CE$31,IF(CE$29="SFM",CE$34,0))) ->  | CE53: =IF(CE$29="SFM",IPMT(CE$28/12,BY53,CE$23,-((CE$25)+CE$27)*1.16)*0.16+CC53*1.16,IF(CE$29="SFA",$Q52,0)) -> 
O54: 4 | AC54: 15 | AG54: =IF(AI$29="SCA",0,IF(OR(AI$29="SFA"),AI$33,IF(AI$29="SFM",AI$34,0))) ->  | AI54: =IF(AI$29="SFM",IPMT(AI$28/12,AC54,AI$23,-((AI$25)+AI$27)*1.16)*0.16+AG54*1.16,IF(AI$29="SFA",$Q66,0)) ->  | AK54: 15 | AS54: 15 | BA54: 15 | BI54: 15 | BQ54: 15 | BY54: 15
B55: Primer Iteración | O55: 5 | AC55: 16 | AG55: =IF(AI$29="SCA",0,IF(OR(AI$29="SFA"),AI$33,IF(AI$29="SFM",AI$34,0))) ->  | AI55: =IF(AI$29="SFM",IPMT(AI$28/12,AC55,AI$23,-((AI$25)+AI$27)*1.16)*0.16+AG55*1.16,IF(AI$29="SFA",$Q67,0)) ->  | AK55: 16 | AS55: 16 | BA55: 16 | BI55: 16 | BQ55: 16 | BY55: 16
B56: Ajuste | C56: 0 | D56: 0 | E56: 0 | F56: 0 | G56: 0 | H56: 0 | I56: 0 | J56: 0 | K56: 0 | O56: 6 | AC56: 17 | AG56: =IF(AI$29="SCA",0,IF(OR(AI$29="SFA"),AI$33,IF(AI$29="SFM",AI$34,0))) ->  | AI56: =IF(AI$29="SFM",IPMT(AI$28/12,AC56,AI$23,-((AI$25)+AI$27)*1.16)*0.16+AG56*1.16,IF(AI$29="SFA",$Q68,0)) ->  | AK56: 17 | AS56: 17 | BA56: 17 | BI56: 17 | BQ56: 17 | BY56: 17
B57: DTI | C57: =40%-C56 -> 0.4 | D57: 0.4 | E57: 0.4 | F57: 0.4 | G57: 0.4 | H57: 0.4 | I57: 0.4 | J57: =40%-J56 -> 0.4 | K57: =40%-K56 -> 0.4 | O57: 7 | AC57: 18 | AG57: =IF(AI$29="SCA",0,IF(OR(AI$29="SFA"),AI$33,IF(AI$29="SFM",AI$34,0))) ->  | AI57: =IF(AI$29="SFM",IPMT(AI$28/12,AC57,AI$23,-((AI$25)+AI$27)*1.16)*0.16+AG57*1.16,IF(AI$29="SFA",$Q69,0)) ->  | AK57: 18 | AS57: 18 | BA57: 18 | BI57: 18 | BQ57: 18 | BY57: 18
B58: PTI | C58: =33%-C56 -> 0.33 | D58: =33%-D56 -> 0.33 | E58: 0.33 | F58: 0.33 | G58: 0.33 | H58: 0.33 | I58: 0.33 | J58: 0.33 | K58: 0.33 | O58: 8 | AK58: 19 | AS58: 19 | BA58: 19 | BI58: 19 | BQ58: 19 | BY58: 19
B59: Ingreso DTI | C59: =C26/C57+$R$4 ->  | O59: 9 | AK59: 20 | AS59: 20 | BA59: 20 | BI59: 20 | BQ59: 20 | BY59: 20
B60: Ingreso PTI | C60: =C26/C58+$R$4 ->  | O60: 10 | AK60: 21 | AS60: 21 | BA60: 21 | BI60: 21 | BQ60: 21 | BY60: 21
O61: 11 | AK61: 22 | AS61: 22 | BA61: 22 | BI61: 22 | BQ61: 22 | BY61: 22
O62: 12 | AK62: 23 | AS62: 23 | BA62: 23 | BI62: 23 | BQ62: 23 | BY62: 23
AK63: 24 | AS63: 24 | BA63: 24 | BI63: 24 | BQ63: 24 | BY63: 24
B64: Periodos | C64: 6 | D64: 12 | E64: 18 | F64: 24 | G64: 30 | H64: 36 | I64: 48 | J64: 60 | K64: 72 | N64: =PMT(AA$28/12,6,-((AA$26/2)+AA$27)*1.16) ->  | O64: 1 | P64: =IPMT(AA$28/12,O64,6,-((AA$26/2)+AA$27)*1.16)*0.16 ->  | Q64: =N64+P64 ->  | AS64: 25 | AW64: =IF(OR(AY$29="SCA",AY$29="SG"),AY$26/2+AY$27,IF(OR(AY$29="SFA",AY$29="SG"),AY$33,IF(AY$29="SFM",AY$34,0))) ->  | AY64: =IF(OR(AY$29="SCA",AY$29="SG"),AW64*1.16,IF(AY$29="SFM",IPMT(AY$28/12,AS64,AY$23,-((AY$25)+AY$27)*1.16)*0.16+AW64*1.16,IF(AY$29="SFA",$Q64,0))) ->  | BA64: 25 | BE64: =IF(OR(BG$29="SCA",BG$29="SG"),BG$26+BG$27,IF(OR(BG$29="SFA",BG$29="SG"),BG$31,IF(BG$29="SFM",BG$34,0))) ->  | BG64: =IF(OR(BG$29="SCA",BG$29="SG"),BE64*1.16,IF(BG$29="SFM",IPMT(BG$28/12,BA64,BG$23,-((BG$25)+BG$27)*1.16)*0.16+BE64*1.16,IF(BG$29="SFA",Q51,0))) ->  | BI64: 25 | BM64: =IF(OR(BO$29="SCA",BO$29="SG"),BO$26+BO$27,IF(OR(BO$29="SFA",BO$29="SG"),BO$31,IF(BO$29="SFM",BO$34,0))) ->  | BO64: =IF(OR(BO$29="SCA",BO$29="SG"),BM64*1.16,IF(BO$29="SFM",IPMT(BO$28/12,BI64,BO$23,-((BO$25)+BO$27)*1.16)*0.16+BM64*1.16,IF(BO$29="SFA",Q51,0))) ->  | BQ64: 25 | BU64: =IF(OR(BW$29="SCA",BW29="SG"),BW$26+BW$27,IF(OR(BW$29="SFA",BW$29="SG"),BW$31,IF(BW$29="SFM",BW$34,0))) ->  | BW64: =IF(OR(BW$29="SCA",BW$29="SG"),BU64*1.16,IF(BW$29="SFM",IPMT(BW$28/12,BQ64,BW$23,-((BW$25)+BW$27)*1.16)*0.16+BU64*1.16,IF(BW$29="SFA",Q51,0))) ->  | BY64: 25 | CC64: =IF(OR(CE$29="SCA",CE29="SG"),CE$26+CE$27,IF(OR(CE$29="SFA",CE$29="SG"),CE$31,IF(CE$29="SFM",CE$34,0))) ->  | CE64: =IF(OR(CE$29="SCA",CE$29="SG"),CC64*1.16,IF(CE$29="SFM",IPMT(CE$28/12,BY64,CE$23,-((CE$25)+CE$27)*1.16)*0.16+CC64*1.16,IF(CE$29="SFA",Y51,0))) -> 
B65: Tasa Base | C65: =$C$22 ->  | D65: =$C$22 ->  | J65: =$C$22 ->  | K65: =$K$22 ->  | O65: 2 | AS65: 26 | AW65: =IF(AY$29="SCA",0,IF(OR(AY$29="SFA"),AY$33,IF(AY$29="SFM",AY$34,0))) ->  | AY65: =IF(AY$29="SFM",IPMT(AY$28/12,AS65,AY$23,-((AY$25)+AY$27)*1.16)*0.16+AW65*1.16,IF(AY$29="SFA",$Q65,0)) ->  | BA65: 26 | BE65: =IF(BG$29="SCA",0,IF(OR(BG$29="SFA"),BG$31,IF(BG$29="SFM",BG$34,0))) ->  | BG65: =IF(BG$29="SFM",IPMT(BG$28/12,BA65,BG$23,-((BG$25)+BG$27)*1.16)*0.16+BE65*1.16,IF(BG$29="SFA",$Q52,0)) ->  | BI65: 26 | BM65: =IF(BO$29="SCA",0,IF(OR(BO$29="SFA"),BO$31,IF(BO$29="SFM",BO$34,0))) ->  | BO65: =IF(BO$29="SFM",IPMT(BO$28/12,BI65,BO$23,-((BO$25)+BO$27)*1.16)*0.16+BM65*1.16,IF(BO$29="SFA",$Q52,0)) ->  | BQ65: 26 | BU65: =IF(BW$29="SCA",0,IF(OR(BW$29="SFA"),BW$31,IF(BW$29="SFM",BW$34,0))) ->  | BW65: =IF(BW$29="SFM",IPMT(BW$28/12,BQ65,BW$23,-((BW$25)+BW$27)*1.16)*0.16+BU65*1.16,IF(BW$29="SFA",$Q52,0)) ->  | BY65: 26 | CC65: =IF(CE$29="SCA",0,IF(OR(CE$29="SFA"),CE$31,IF(CE$29="SFM",CE$34,0))) ->  | CE65: =IF(CE$29="SFM",IPMT(CE$28/12,BY65,CE$23,-((CE$25)+CE$27)*1.16)*0.16+CC65*1.16,IF(CE$29="SFA",$Q52,0)) -> 
B66: Crédito Subvencion | C66: =Simulación!$M$18-(Simulación!$D$24/1.16) ->  | D66: =Simulación!$M$18-(Simulación!$D$24/1.16) ->  | E66: =Simulación!$M$18-(Simulación!$D$24/1.16) ->  | F66: =Simulación!$M$18-(Simulación!$D$24/1.16) ->  | G66: =Simulación!$M$18-(Simulación!$D$24/1.16) ->  | H66: =Simulación!$M$18-(Simulación!$D$24/1.16) ->  | I66: =Simulación!$M$18-(Simulación!$D$24/1.16) ->  | J66: =Simulación!$M$18-(Simulación!$D$24/1.16) ->  | K66: =Simulación!$M$18-(Simulación!$D$24/1.16) ->  | O66: 3 | AS66: 27 | AW66: =IF(AY$29="SCA",0,IF(OR(AY$29="SFA"),AY$33,IF(AY$29="SFM",AY$34,0))) ->  | AY66: =IF(AY$29="SFM",IPMT(AY$28/12,AS66,AY$23,-((AY$25)+AY$27)*1.16)*0.16+AW66*1.16,IF(AY$29="SFA",$Q66,0)) ->  | BA66: 27 | BI66: 27 | BQ66: 27 | BY66: 27
B67: Pago Subvención | C67: =PMT(C65/12,C64,-C66) ->  | D67: =PMT(D65/12,D64,-D66) ->  | O67: 4 | AS67: 28 | AW67: =IF(AY$29="SCA",0,IF(OR(AY$29="SFA"),AY$33,IF(AY$29="SFM",AY$34,0))) ->  | AY67: =IF(AY$29="SFM",IPMT(AY$28/12,AS67,AY$23,-((AY$25)+AY$27)*1.16)*0.16+AW67*1.16,IF(AY$29="SFA",$Q67,0)) ->  | BA67: 28 | BI67: 28 | BQ67: 28 | BY67: 28
O68: 5 | AS68: 29 | AW68: =IF(AY$29="SCA",0,IF(OR(AY$29="SFA"),AY$33,IF(AY$29="SFM",AY$34,0))) ->  | AY68: =IF(AY$29="SFM",IPMT(AY$28/12,AS68,AY$23,-((AY$25)+AY$27)*1.16)*0.16+AW68*1.16,IF(AY$29="SFA",$Q68,0)) ->  | BA68: 29 | BI68: 29 | BQ68: 29 | BY68: 29
O69: 6 | AS69: 30 | AW69: =IF(AY$29="SCA",0,IF(OR(AY$29="SFA"),AY$33,IF(AY$29="SFM",AY$34,0))) ->  | AY69: =IF(AY$29="SFM",IPMT(AY$28/12,AS69,AY$23,-((AY$25)+AY$27)*1.16)*0.16+AW69*1.16,IF(AY$29="SFA",$Q69,0)) ->  | BA69: 30 | BI69: 30 | BQ69: 30 | BY69: 30
BA70: 31 | BI70: 31 | BQ70: 31 | BY70: 31
BA71: 32 | BI71: 32 | BN71: =BL71+BM71 ->  | BQ71: 32 | BY71: 32
BA72: 33 | BI72: 33 | BQ72: 33 | BR72: =-PMT($BW$22/12,$BW$23,$BW$21) ->  | BS72: =-IPMT($BW$22/12,BQ72,$BW$23,$BW$21)*0.16 ->  | BT72: =SUM(BR72:BR72) ->  | BV72: =BR72+BU72 ->  | BY72: 33
BA73: 34 | BI73: 34 | BQ73: 34 | BY73: 34
BA74: 35 | BI74: 35 | BQ74: 35 | BY74: 35
BA75: 36 | BI75: 36 | BQ75: 36 | BY75: 36
BI76: 37 | BM76: =IF(OR(BO$29="SCA",BO$29="SG"),BO$26+BO$27,IF(OR(BO$29="SFA",BO$29="SG"),BO$31,IF(BO$29="SFM",BO$34,0))) ->  | BO76: =IF(OR(BO$29="SCA",BO$29="SG"),BM76*1.16,IF(BO$29="SFM",IPMT(BO$28/12,BI76,BO$23,-((BO$25)+BO$27)*1.16)*0.16+BM76*1.16,IF(BO$29="SFA",$AA46,0))) ->  | BQ76: 37 | BU76: =IF(OR(BW$29="SCA",BW$29="SG"),BW$26+BW$27,IF(OR(BW$29="SFA",BW$29="SG"),BW$31,IF(BW$29="SFM",BW$34,0))) ->  | BW76: =IF(OR(BW$29="SCA",BW$29="SG"),BU76*1.16,IF(BW$29="SFM",IPMT(BW$28/12,BQ76,BW$23,-((BW$25)+BW$27)*1.16)*0.16+BU76*1.16,IF(BW$29="SFA",$AA46,0))) ->  | BY76: 37 | CC76: =IF(OR(CE$29="SCA",CE$29="SG"),CE$26+CE$27,IF(OR(CE$29="SFA",CE$29="SG"),CE$31,IF(CE$29="SFM",CE$34,0))) ->  | CE76: =IF(OR(CE$29="SCA",CE$29="SG"),CC76*1.16,IF(CE$29="SFM",IPMT(CE$28/12,BY76,CE$23,-((CE$25)+CE$27)*1.16)*0.16+CC76*1.16,IF(CE$29="SFA",$AA46,0))) -> 
BI77: 38 | BM77: =IF(BO$29="SCA",0,IF(OR(BO$29="SFA"),BO$31,IF(BO$29="SFM",BO$34,0))) ->  | BO77: =IF(BO$29="SFM",IPMT(BO$28/12,BI77,BO$23,-((BO$25)+BO$27)*1.16)*0.16+BM77*1.16,IF(BO$29="SFA",$Q52,0)) ->  | BQ77: 38 | BU77: =IF(BW$29="SCA",0,IF(OR(BW$29="SFA"),BW$31,IF(BW$29="SFM",BW$34,0))) ->  | BW77: =IF(BW$29="SFM",IPMT(BW$28/12,BQ77,BW$23,-((BW$25)+BW$27)*1.16)*0.16+BU77*1.16,IF(BW$29="SFA",$Q52,0)) ->  | BY77: 38 | CC77: =IF(CE$29="SCA",0,IF(OR(CE$29="SFA"),CE$31,IF(CE$29="SFM",CE$34,0))) ->  | CE77: =IF(CE$29="SFM",IPMT(CE$28/12,BY77,CE$23,-((CE$25)+CE$27)*1.16)*0.16+CC77*1.16,IF(CE$29="SFA",$Q52,0)) -> 
BI78: 39 | BQ78: 39 | BY78: 39
BI79: 40 | BQ79: 40 | BY79: 40
BI80: 41 | BQ80: 41 | BY80: 41
BI81: 42 | BQ81: 42 | BY81: 42
BI82: 43 | BQ82: 43 | BY82: 43
BI83: 44 | BQ83: 44 | BY83: 44
BI84: 45 | BQ84: 45 | BY84: 45
BI85: 46 | BQ85: 46 | BY85: 46
BI86: 47 | BQ86: 47 | BY86: 47
BI87: 48 | BQ87: 48 | BY87: 48
BQ88: 49 | BU88: =IF(OR(BW$29="SCA",BW$29="SG"),BW$26+BW$27,IF(OR(BW$29="SFA",BW$29="SG"),BW$31,IF(BW$29="SFM",BW$34,0))) ->  | BW88: =IF(OR(BW$29="SCA",BW$29="SG"),BU88*1.16,IF(BW$29="SFM",IPMT(BW$28/12,BQ88,BW$23,-((BW$25)+BW$27)*1.16)*0.16+BU88*1.16,IF(BW$29="SFA",Q51,0))) ->  | BY88: 49 | CC88: =IF(OR(CE$29="SCA",CE$29="SG"),CE$26+CE$27,IF(OR(CE$29="SFA",CE$29="SG"),CE$31,IF(CE$29="SFM",CE$34,0))) ->  | CE88: =IF(OR(CE$29="SCA",CE$29="SG"),CC88*1.16,IF(CE$29="SFM",IPMT(CE$28/12,BY88,CE$23,-((CE$25)+CE$27)*1.16)*0.16+CC88*1.16,IF(CE$29="SFA",Y51,0))) -> 
BQ89: 50 | BU89: =IF(BW$29="SCA",0,IF(OR(BW$29="SFA"),BW$31,IF(BW$29="SFM",BW$34,0))) ->  | BW89: =IF(BW$29="SFM",IPMT(BW$28/12,BQ89,BW$23,-((BW$25)+BW$27)*1.16)*0.16+BU89*1.16,IF(BW$29="SFA",$Q52,0)) ->  | BY89: 50 | CC89: =IF(CE$29="SCA",0,IF(OR(CE$29="SFA"),CE$31,IF(CE$29="SFM",CE$34,0))) ->  | CE89: =IF(CE$29="SFM",IPMT(CE$28/12,BY89,CE$23,-((CE$25)+CE$27)*1.16)*0.16+CC89*1.16,IF(CE$29="SFA",$Q52,0)) -> 
BQ90: 51 | BY90: 51
BQ91: 52 | BY91: 52
BQ92: 53 | BY92: 53
BQ93: 54 | BY93: 54
BQ94: 55 | BY94: 55
BQ95: 56 | BY95: 56
BQ96: 57 | BY96: 57
BQ97: 58 | BY97: 58
BQ98: 59 | BY98: 59
BQ99: 60 | BY99: 60
BY100: 61 | CD100: =CB100+CC100 ->  | CE100: =IF(OR(CE$29="SCA",CE$29="SCM"),CC100*1.16,0) -> 0
BY101: 62 | CE101: 0
BY102: 63 | CE102: 0
BY103: 64 | CE103: 0
BY104: 65 | CB104: =SUM(BZ104:BZ104) ->  | CE104: 0
BY105: 66 | BZ105: =-PMT($CE$22/12,$CE$23,$CE$21) ->  | CA105: =-IPMT($CE$22/12,BY105,$CE$23,$CE$21)*0.16 ->  | CE105: 0
BY106: 67 | CE106: 0
BY107: 68 | CE107: 0
BY108: 69 | CE108: 0
BY109: 70 | CE109: 0
BY110: 71 | CE110: 0
BY111: 72 | CE111: 0

Sheet Ayuda
B6: Inmediauto
B11: Datos Generales
B12: Campo | C12: Descripción
B13: Nombre del cliente | C13: Captura le nombre del cliente al cual realizas la cotización
B14: Estado | C14: Captura el estado donde vive el cliente (no donde comprará el auto) esto es para el cálculo del Seguro, según la zona
B15: ¿Es cliente HSBC? | C15: Seleccione si el cliente ya tiene relación con HSBC
B16: Esquema de cliente | C16: Seleccione si el cliente tiene su nómina en HSBC, si es cliente Advance, cliente Premier o en otro caso seleccione Banca Personal
B18: Datos del Auto
B19: Campo | C19: Descripción
B20: Marca | C20: Selecciona la marca de tu agencia
B21: Año | C21: Selecciona el año del vehículo a financiar
B22: Modelo | C22: Selecciona el auto según tipo deseado
B23: Precio $ | C23: Ingresa el precio de la unidad vendida (si usas promoción en tasa, seguro o enganche, el precio regularmente es el de lista)
B24: Datos del Seguro
B25: Campo | C25: Descripción
B26: Tipo seguro de daños | C26: Selecciona la forma de pago del seguro: Financiado por un año (Financiado Anual), Financiado por el plazo del crédito del auto (Financiado Multianual), Contado Anual (una exhibición al inicio de cada año), Contado Multianual (una exhibición al incio del crédito del auto), Seguro gratis 1er año (algunas agencias incluyen en seguro gratis para el 1er año), Otra aseguradora.
B27: Importe del seguro | C27: El campo se llena automáticamente con el precio del seguro anual
B28: Datos del crédito
B29: Campo | C29: Descripción
B30: Enganche | C30: Ingresa el enganche a pagar por el cliente (IMPORTANTE: éste no debe de ser menor al indicado)
B31: Plazo | C31: Selecciona el plazo deseado por el cliente (6,12,18,24,30,48 o 60 meses)
B32: Periodicidad | C32: Selecciona la frecuencia con que quieras realizar tus pagos ( Quincela, Mensual)
B33: Subsidio o subvención con IVA | C33: Ingresa el subsidio para la unidad elegida en pesos y con IVA incluido
B34: Datos de agencia
B35: Campo | C35: Descripción
B36: Agencia | C36: Escribe el nombre de la agencia
B37: Teléfonos | C37: Escribe los teléfonos de la agencia
B38: Promotor | C38: Escribe tu nombre (promotor / vendedor)
B39: Ingreso
B40: Campo | C40: Descripción
B41: Incluira coacreditado | C41: Al seleccionar sí, permite seleccionar opciones de ingresos de un coacreditado
B42: Ingreso del cliente | C42: Ingresa el Ingreso mensual del cliente
B43: Pago mensual por deudas (BC) | C43: Ingresa el importe de pagos mensuales que tiene que hacer el cliente registrados en Buró de Crédito
B44: Actividad del cliente | C44: Selecciona la actividad del cliente, para opciones adicionales de cálculo de ingreso seleccionar el boton de "Ingresos"
B45: Comprobante | C45: Selecciona el tipo de comprobante de ingresos a utilizar ( puede ser Declaración de Impuestos o Estados de Cuenta)
B46: Vinculos
B47: Campo | C47: Descripción
B48: El botón | C48: te permite ver multiples ofertas por plazo, para que veas la que se ajuste más a tus necesidades
B49: El botón | C49: te permite ver detalladamente los pagos periodicos
B50: El botón | C50: te permite realizar una estimación más precisa de los ingresos que consideramos para darte una oferta
B51: El botón | C51: te regresará a esta hoja cuando tu requieras alguna ayuda con los campos

Sheet Ingreso
B5: Inmediauto
B6: INSTRUCCIONES: Selecciona los tipos de Actividad económica del Titular y/o Co-Acreditado.
B11: ¿Incluirá un Co-acreditado? | C11: No | F11: Capacidad de pago Mensual | G11: =MIN(C42:C43) -> 0
B12: Plazo | C12: 60 | F12: Crédito a otorgar | G12: =IF(G11<=0,"-",G11/(C44*(1+C44)^C12/(((1+C44)^C12)-1))) -> -
B14: TITULAR
B15: Pagos mensuales de créditos (Obligaciones): | C15: 0
B16: =+IF(C11="Si","Tipo de Actividad del Titular","Tipo de Actividad") -> Tipo de Actividad | C16: Asalariado / Asimilado
B17: Comprobante de Ingreso | C17: Estados de Cuenta
B18: Ingreso mensual del cliente | F18: Tipo de Actividad
B19: Ingreso mensual segunda actividad | F19: Tipo de Actividad
B20: Ingreso mensual otra actividad | F20: Tipo de Actividad
B22: COACREDITADO
B23: Pagos mensuales del coacreditado (Obligaciones):
B24: Tipo de Actividad del Co-Acreditado | C24: Asalariado / Asimilado
B25: Comprobante de Ingreso | C25: Estados de Cuenta
B26: Ingreso mensual del cliente | F26: Tipo de Actividad
B27: Ingreso mensual segunda actividad | F27: Tipo de Actividad
B28: Ingreso mensual otra actividad | F28: Tipo de Actividad
B30: Total de Ingresos a Considerar | C30: =O64 -> 0 | F30: =IF(AND(C30<7000,C30>0),"Lo sentimos el ingreso considerado es menor al mínimo","") -> 
B31: Total de Obligaciones a Considerar | C31: =IF(C11="Si",C23,0)+C15 -> 0
B38: Factor ajuste Capacidad Pago | C38: =VLOOKUP(C30,Catalogos!$G$42:$H$51,2) -> 0
B39: DTI | C39: =40%-C38 -> 0.4 | K39: TITULAR
B40: PTI | C40: =33%-C38 -> 0.33 | M40: Inicial | N40: Factor | O40: Final | P40: Declaración de Impuestos | Q40: Estados de Cuenta | S40: Auxiliar
K41: Asalariado / Asimilado | L41: 1 | M41: =IF($C$16=$K$48,(IF(K41=$G$18,$C$18,0)+IF(K41=$G$19,$C$19,0)+IF(K41=$G$20,$C$20,0)),IF(K41=$C$16,$C$18,0)) -> 0 | N41: =+IF(OR($C$17="",$C$17=$P$40),P41,Q41) -> 1 | O41: =+M41*N41 -> 0 | P41: =VLOOKUP(K41,Catalogos!$A$56:$C$62,2,0) -> 1 | Q41: =VLOOKUP(K41,Catalogos!$A$56:$C$62,3,0) -> 1
B42: Capacidad Pago DTI | C42: =C30*C39-C31 -> 0 | K42: Independiente | L42: 2 | M42: 0 | N42: 0.75 | O42: 0 | P42: =VLOOKUP(K42,Catalogos!$A$56:$C$62,2,0) -> 0.85 | Q42: =VLOOKUP(K42,Catalogos!$A$56:$C$62,3,0) -> 0.75 | S42: =VLOOKUP(C16,$K$41:$L$48,2,0) -> 1
B43: Capacidad Pago PTI | C43: =C30*C40 -> 0 | K43: Actividad Empresarial / RIF (Comercio) | L43: 3 | M43: 0 | N43: 0.5 | O43: 0 | P43: =VLOOKUP(K43,Catalogos!$A$56:$C$62,2,0) -> 0.6 | Q43: =VLOOKUP(K43,Catalogos!$A$56:$C$62,3,0) -> 0.5
B44: Tasa mensual | C44: =Simulación!U18/12 ->  | K44: Actividad Empresarial / RIF (Servicio) | L44: 4 | M44: 0 | N44: =+IF(OR($C$17="",$C$17=$P$40),P44,Q44) -> 0.55 | O44: =+M44*N44 -> 0 | P44: =VLOOKUP(K44,Catalogos!$A$56:$C$62,2,0) -> 0.65 | Q44: =VLOOKUP(K44,Catalogos!$A$56:$C$62,3,0) -> 0.55
K45: Utilidades / Dividendos | L45: 5 | M45: 0 | N45: 0.55 | O45: 0 | P45: =VLOOKUP(K45,Catalogos!$A$56:$C$62,2,0) -> 0.65 | Q45: =VLOOKUP(K45,Catalogos!$A$56:$C$62,3,0) -> 0.55
K46: Arrendamiento | L46: 6 | M46: 0 | N46: 0.8 | O46: 0 | P46: =VLOOKUP(K46,Catalogos!$A$56:$C$62,2,0) -> 0.9 | Q46: =VLOOKUP(K46,Catalogos!$A$56:$C$62,3,0) -> 0.8
K47: Inversiones | L47: 7 | M47: 0 | N47: 0.85 | O47: 0 | P47: =VLOOKUP(K47,Catalogos!$A$56:$C$62,2,0) -> 0.9 | Q47: =VLOOKUP(K47,Catalogos!$A$56:$C$62,3,0) -> 0.85
K48: Mixto (suma de actividades) | L48: 8 | M48: 0 | O48: =SUM(O41:O47) -> 0
K51: Coacreditado | M51: 1
M52: Inicial | N52: Factor | O52: Final | P52: Declaración de Impuestos | Q52: Estados de Cuenta | S52: Auxiliar
K53: =+K41 -> Asalariado / Asimilado | L53: 1 | M53: =IF($C$24=$K$60,(IF(K53=$G$26,$C$26,0)+IF(K53=$G$27,$C$27,0)+IF(K53=$G$28,$C$28,0)),IF(K53=$C$24,$C$26,0)) -> 0 | N53: =+IF(OR($C$25="",$C$25=$P$40),P53,Q53) -> 1 | O53: =+M53*N53 -> 0 | P53: =VLOOKUP(K53,Catalogos!$A$56:$C$62,2,0) -> 1 | Q53: =VLOOKUP(K53,Catalogos!$A$56:$C$62,3,0) -> 1
K54: Independiente | L54: 2 | M54: 0 | N54: 0.75 | O54: 0 | P54: =VLOOKUP(K54,Catalogos!$A$56:$C$62,2,0) -> 0.85 | Q54: =VLOOKUP(K54,Catalogos!$A$56:$C$62,3,0) -> 0.75 | S54: =VLOOKUP(C24,$K$53:$L$60,2,0) -> 1
K55: Actividad Empresarial / RIF (Comercio) | L55: 3 | M55: 0 | N55: 0.5 | O55: 0 | P55: =VLOOKUP(K55,Catalogos!$A$56:$C$62,2,0) -> 0.6 | Q55: =VLOOKUP(K55,Catalogos!$A$56:$C$62,3,0) -> 0.5
K56: Actividad Empresarial / RIF (Servicio) | L56: 4 | M56: 0 | N56: =+IF(OR($C$25="",$C$25=$P$40),P56,Q56) -> 0.55 | O56: =+M56*N56 -> 0 | P56: =VLOOKUP(K56,Catalogos!$A$56:$C$62,2,0) -> 0.65 | Q56: =VLOOKUP(K56,Catalogos!$A$56:$C$62,3,0) -> 0.55
K57: Utilidades / Dividendos | L57: 5 | M57: 0 | N57: 0.55 | O57: 0 | P57: =VLOOKUP(K57,Catalogos!$A$56:$C$62,2,0) -> 0.65 | Q57: =VLOOKUP(K57,Catalogos!$A$56:$C$62,3,0) -> 0.55
K58: Arrendamiento | L58: 6 | M58: 0 | N58: 0.8 | O58: 0 | P58: =VLOOKUP(K58,Catalogos!$A$56:$C$62,2,0) -> 0.9 | Q58: =VLOOKUP(K58,Catalogos!$A$56:$C$62,3,0) -> 0.8
K59: Inversiones | L59: 7 | M59: 0 | N59: 0.85 | O59: 0 | P59: =VLOOKUP(K59,Catalogos!$A$56:$C$62,2,0) -> 0.9 | Q59: =VLOOKUP(K59,Catalogos!$A$56:$C$62,3,0) -> 0.85
K60: Mixto (suma de actividades) | L60: 8 | M60: 0 | O60: =IF(SUM(O53:O59)>O48,O48,SUM(O53:O59)) -> 0
M64: Importe Final | O64: =IF(C11="No",O48,O48+O60) -> 0

Sheet Catalogos (hidden)
A1: Cliente HSBC | B1: Coacreditado | C1: Comprobantes | F1: Estado | H1: Descuento | I1: CAMIONETA | J1: AUTO | L1: Marca | O1: Vehiculo | X1: Por Buscar | Z1: =Simulación!D16 -> 0
A2: SI | B2: Si | C2: Declaración de Impuestos | F2: 1 | G2: AGUASCALIENTES | H2: =IF(Simulación!$D$16="camioneta",I2,J2) -> 0.5991 | I2: 0.85 | J2: 0.5991 | L2: SELECCIONA MARCA | M2: 0 | O2: Marca | P2: Año | Q2: Tipo | R2: Marca # | S2: Número | T2: Concatenado | U2: Descripción | V2: Prima | X2: Número | Y2: Marca # | Z2: Concatenado | AA2: Descripción | AB2: Prima
A3: NO | B3: No | C3: Estados de Cuenta | F3: 2 | G3: BAJA CALIFORNIA NORTE | H3: =IF(Simulación!$D$16="camioneta",I3,J3) -> 0.674 | I3: 0.85 | J3: 0.674 | L3: ACURA | M3: 1 | O3: PEUGEOT | P3: 2021 | Q3: AUTOMOVIL | R3: =VLOOKUP(O3,$L$3:$M$43,2,0) -> 31 | S3: =IF(O3&P3=O2&P2,S2+1,1) -> 1 | T3: =R3&"_"&S3&"_"&P3&"_"&Q3 -> 31_1_2021_AUTOMOVIL | U3: 3008 ALLURE PACK AUT 5P 4CIL | V3: 26875.2617 | X3: 1 | Y3: =VLOOKUP(Simulación!$D$17,Catalogos!$O:$R,4,0) ->  | Z3: =Y3&"_"&X3&"_"&Simulación!$D$18&"_"&$Z$1 ->  | AA3: =IFERROR(VLOOKUP(Z3,$T:$V,2,0),"") ->  | AB3: =IFERROR(VLOOKUP(Z3,$T:$V,3,0),"") -> 
F4: 3 | G4: BAJA CALIFORNIA SUR | H4: =IF(Simulación!$D$16="camioneta",I4,J4) -> 0.6902 | I4: 0.85 | J4: 0.6902 | L4: ALFA ROMEO | M4: 2 | O4: PEUGEOT | P4: 2021 | Q4: AUTOMOVIL | R4: =VLOOKUP(O4,$L$3:$M$43,2,0) -> 31 | S4: 2 | T4: =R4&"_"&S4&"_"&P4&"_"&Q4 -> 31_2_2021_AUTOMOVIL | U4: 301 ACTIVE 1.6L SEDAN STD | V4: 12883.07409 | X4: 2 | Y4: =VLOOKUP(Simulación!$D$17,Catalogos!$O:$R,4,0) ->  | Z4: =Y4&"_"&X4&"_"&Simulación!$D$18&"_"&$Z$1 -> 
A5: Plazos | F5: 4 | G5: CAMPECHE | H5: =IF(Simulación!$D$16="camioneta",I5,J5) -> 0.8687 | I5: 0.85 | J5: 0.8687 | L5: ASTON MARTIN | M5: 3 | O5: PEUGEOT | P5: 2021 | Q5: AUTOMOVIL | R5: 31 | S5: 3 | T5: 31_3_2021_AUTOMOVIL | U5: 301 ACTIVE HDI STD 4P 4CIL | V5: 13815.31143 | X5: 3 | Y5: =VLOOKUP(Simulación!$D$17,Catalogos!$O:$R,4,0) ->  | Z5: =Y5&"_"&X5&"_"&Simulación!$D$18&"_"&$Z$1 -> 
A6: =HLOOKUP(Simulación!$D$18,Catalogos!$A$68:$G$77,2,0) ->  | F6: 5 | G6: COAHUILA | H6: =IF(Simulación!$D$16="camioneta",I6,J6) -> 0.6902 | I6: 0.85 | J6: 0.6902 | L6: AUDI | M6: 4 | O6: PEUGEOT | P6: 2021 | Q6: AUTOMOVIL | R6: 31 | S6: 4 | T6: 31_4_2021_AUTOMOVIL | U6: 301 ALLURE HDI STD 4P 4CIL | V6: 15038.59357 | X6: 4 | Y6: =VLOOKUP(Simulación!$D$17,Catalogos!$O:$R,4,0) ->  | Z6: =Y6&"_"&X6&"_"&Simulación!$D$18&"_"&$Z$1 -> 
A7: =HLOOKUP(Simulación!$D$18,Catalogos!$A$68:$G$77,3,0) ->  | F7: 6 | G7: COLIMA | H7: =IF(Simulación!$D$16="camioneta",I7,J7) -> 0.6902 | I7: 0.85 | J7: 0.6902 | L7: BAIC | M7: 5 | O7: PEUGEOT | P7: 2021 | Q7: AUTOMOVIL | R7: 31 | S7: 5 | T7: 31_5_2021_AUTOMOVIL | U7: 3008 GT LINE AUT 5P 4CIL | V7: 31352.68626 | X7: 5 | Y7: =VLOOKUP(Simulación!$D$17,Catalogos!$O:$R,4,0) ->  | Z7: =Y7&"_"&X7&"_"&Simulación!$D$18&"_"&$Z$1 -> 
A8: =HLOOKUP(Simulación!$D$18,Catalogos!$A$68:$G$77,4,0) ->  | F8: 7 | G8: CHIAPAS | H8: =IF(Simulación!$D$16="camioneta",I8,J8) -> 0.674 | I8: 0.85 | J8: 0.674 | L8: BENTLEY | M8: 6 | O8: PEUGEOT | P8: 2021 | Q8: AUTOMOVIL | R8: 31 | S8: 6 | T8: 31_6_2021_AUTOMOVIL | U8: 3008 GT LINE HDI AUT 5P 4CIL | V8: 33091.22086 | X8: 6 | Y8: =VLOOKUP(Simulación!$D$17,Catalogos!$O:$R,4,0) ->  | Z8: =Y8&"_"&X8&"_"&Simulación!$D$18&"_"&$Z$1 -> 
A9: =HLOOKUP(Simulación!$D$18,Catalogos!$A$68:$G$77,5,0) ->  | F9: 8 | G9: CHIHUAHUA | H9: =IF(Simulación!$D$16="camioneta",I9,J9) -> 0.674 | I9: 0.85 | J9: 0.674 | L9: BMW | M9: 7 | O9: PEUGEOT | P9: 2021 | Q9: AUTOMOVIL | R9: 31 | S9: 7 | T9: 31_7_2021_AUTOMOVIL | U9: EXPERT HDI STD 4P 4CIL | V9: 24767.20823 | X9: 7 | Y9: =VLOOKUP(Simulación!$D$17,Catalogos!$O:$R,4,0) ->  | Z9: =Y9&"_"&X9&"_"&Simulación!$D$18&"_"&$Z$1 -> 
A10: =HLOOKUP(Simulación!$D$18,Catalogos!$A$68:$G$77,6,0) ->  | F10: 9 | G10: CIUDAD DE MEXICO | H10: =IF(Simulación!$D$16="camioneta",I10,J10) -> 0.8999 | I10: 0.85 | J10: 0.8999 | L10: CHEVROLET | M10: 8 | O10: PEUGEOT | P10: 2021 | Q10: AUTOMOVIL | R10: 31 | S10: 8 | T10: 31_8_2021_AUTOMOVIL | U10: TRAVELLER ALLURE HDI AUT 5P 4CIL | V10: 31684.21146 | X10: 8 | Y10: =VLOOKUP(Simulación!$D$17,Catalogos!$O:$R,4,0) ->  | Z10: =Y10&"_"&X10&"_"&Simulación!$D$18&"_"&$Z$1 -> 
A11: =HLOOKUP(Simulación!$D$18,Catalogos!$A$68:$G$77,7,0) ->  | F11: 10 | G11: DURANGO | H11: =IF(Simulación!$D$16="camioneta",I11,J11) -> 0.674 | I11: 0.85 | J11: 0.674 | L11: CHRYSLER | M11: 9 | O11: PEUGEOT | P11: 2021 | Q11: AUTOMOVIL | R11: 31 | S11: 9 | T11: 31_9_2021_AUTOMOVIL | U11: 2008 ALLURE PACK AUT 5P 3CIL | V11: 11385.16903 | X11: 9 | Y11: =VLOOKUP(Simulación!$D$17,Catalogos!$O:$R,4,0) ->  | Z11: =Y11&"_"&X11&"_"&Simulación!$D$18&"_"&$Z$1 -> 
A12: =HLOOKUP(Simulación!$D$18,Catalogos!$A$68:$G$77,8,0) ->  | F12: 11 | G12: ESTADO DE MÉXICO | H12: =IF(Simulación!$D$16="camioneta",I12,J12) -> 0.8999 | I12: 0.85 | J12: 0.8999 | L12: DODGE | M12: 10 | O12: PEUGEOT | P12: 2021 | Q12: AUTOMOVIL | R12: 31 | S12: 10 | T12: 31_10_2021_AUTOMOVIL | U12: 5008 ALLURE PACK AUT 5P 4CIL | V12: 15693.91688 | X12: 10 | Y12: =VLOOKUP(Simulación!$D$17,Catalogos!$O:$R,4,0) ->  | Z12: =Y12&"_"&X12&"_"&Simulación!$D$18&"_"&$Z$1 -> 
A13: =HLOOKUP(Simulación!$D$18,Catalogos!$A$68:$G$77,9,0) ->  | F13: 12 | G13: GUANAJUATO | H13: =IF(Simulación!$D$16="camioneta",I13,J13) -> 0.5991 | I13: 0.85 | J13: 0.5991 | L13: FERRARI | M13: 11 | O13: PEUGEOT | P13: 2021 | Q13: AUTOMOVIL | R13: 31 | S13: 11 | T13: 31_11_2021_AUTOMOVIL | U13: 5008 GT LINE AUT 5P 4CIL | V13: 17930.69123 | X13: 11 | Y13: =VLOOKUP(Simulación!$D$17,Catalogos!$O:$R,4,0) ->  | Z13: =Y13&"_"&X13&"_"&Simulación!$D$18&"_"&$Z$1 -> 
A14: =HLOOKUP(Simulación!$D$18,Catalogos!$A$68:$G$77,10,0) ->  | F14: 13 | G14: GUERRERO | H14: =IF(Simulación!$D$16="camioneta",I14,J14) -> 1.017 | I14: 0.884 | J14: 1.017 | L14: FIAT | M14: 12 | O14: PEUGEOT | P14: 2021 | Q14: AUTOMOVIL | R14: 31 | S14: 12 | T14: 31_12_2021_AUTOMOVIL | U14: 5008 GT LINE HDI AUT 5P 4CIL | V14: 18639.56353 | X14: 12 | Y14: =VLOOKUP(Simulación!$D$17,Catalogos!$O:$R,4,0) ->  | Z14: =Y14&"_"&X14&"_"&Simulación!$D$18&"_"&$Z$1 -> 
F15: 14 | G15: HIDALGO | H15: =IF(Simulación!$D$16="camioneta",I15,J15) -> 0.8787 | I15: 0.85 | J15: 0.8787 | L15: FORD | M15: 13 | O15: PEUGEOT | P15: 2021 | Q15: AUTOMOVIL | R15: 31 | S15: 13 | T15: 31_13_2021_AUTOMOVIL | U15: 3008 ACTIVE AUT 5P 4CIL | V15: 24364.52408 | X15: 13 | Y15: =VLOOKUP(Simulación!$D$17,Catalogos!$O:$R,4,0) ->  | Z15: =Y15&"_"&X15&"_"&Simulación!$D$18&"_"&$Z$1 -> 
A16: Esquema | F16: 15 | G16: JALISCO | H16: =IF(Simulación!$D$16="camioneta",I16,J16) -> 0.831 | I16: 0.884 | J16: 0.831 | L16: GIANT MOTORS | M16: 14 | O16: PEUGEOT | P16: 2021 | Q16: AUTOMOVIL | R16: 31 | S16: 14 | T16: 31_14_2021_AUTOMOVIL | U16: RIFTER ACTIVE STD 5P 4CIL | V16: 17467.36655 | X16: 14 | Y16: =VLOOKUP(Simulación!$D$17,Catalogos!$O:$R,4,0) ->  | Z16: =Y16&"_"&X16&"_"&Simulación!$D$18&"_"&$Z$1 -> 
A17: Mensual | F17: 16 | G17: MICHOACAN | H17: =IF(Simulación!$D$16="camioneta",I17,J17) -> 0.7798 | I17: 0.85 | J17: 0.7798 | L17: HONDA | M17: 15 | O17: PEUGEOT | P17: 2021 | Q17: AUTOMOVIL | R17: 31 | S17: 15 | T17: 31_15_2021_AUTOMOVIL | U17: RIFTER ALLURE STD 5P 4CIL | V17: 19844.82041 | X17: 15 | Y17: =VLOOKUP(Simulación!$D$17,Catalogos!$O:$R,4,0) ->  | Z17: =Y17&"_"&X17&"_"&Simulación!$D$18&"_"&$Z$1 -> 
A18: Quincenal | F18: 17 | G18: MORELOS | H18: =IF(Simulación!$D$16="camioneta",I18,J18) -> 0.9436 | I18: 0.85 | J18: 0.9436 | L18: HYUNDAI | M18: 16 | O18: PEUGEOT | P18: 2021 | Q18: AUTOMOVIL | R18: 31 | S18: 16 | T18: 31_16_2021_AUTOMOVIL | U18: 2008 ACTIVE AUT 5P 3CIL | V18: 11028.57791 | X18: 16 | Y18: =VLOOKUP(Simulación!$D$17,Catalogos!$O:$R,4,0) ->  | Z18: =Y18&"_"&X18&"_"&Simulación!$D$18&"_"&$Z$1 -> 
F19: 18 | G19: NAYARIT | H19: =IF(Simulación!$D$16="camioneta",I19,J19) -> 0.8687 | I19: 0.85 | J19: 0.8687 | L19: INFINITI | M19: 17 | O19: NISSAN | P19: 2020 | Q19: AUTOMOVIL | R19: 30 | S19: 1 | T19: 30_1_2020_AUTOMOVIL | U19: URVAN NV350 AMPLIA TM 15 PAS | V19: 18716.03627 | X19: 17 | Y19: =VLOOKUP(Simulación!$D$17,Catalogos!$O:$R,4,0) ->  | Z19: =Y19&"_"&X19&"_"&Simulación!$D$18&"_"&$Z$1 -> 
A20: Esquema seguro | F20: 19 | G20: NUEVO LEON | H20: =IF(Simulación!$D$16="camioneta",I20,J20) -> 0.679 | I20: 0.85 | J20: 0.679 | L20: JAC | M20: 18 | O20: AUDI | P20: 2020 | Q20: AUTOMOVIL | R20: 4 | S20: 1 | T20: 4_1_2020_AUTOMOVIL | U20: A1 SPORTBACK EGO STRONIC | V20: 20565.86321 | X20: 18 | Y20: =VLOOKUP(Simulación!$D$17,Catalogos!$O:$R,4,0) ->  | Z20: =Y20&"_"&X20&"_"&Simulación!$D$18&"_"&$Z$1 -> 
A21: SEGURO FINANCIADO ANUAL | B21: SFA | F21: 20 | G21: OAXACA | H21: =IF(Simulación!$D$16="camioneta",I21,J21) -> 0.7798 | I21: 0.85 | J21: 0.7798 | L21: JEEP | M21: 19 | O21: INFINITI | P21: 2020 | Q21: AUTOMOVIL | R21: 17 | S21: 1 | T21: 17_1_2020_AUTOMOVIL | U21: Q50 SPORT PLUS AUT 4P 6CIL 3.0L | V21: 38420.7528 | X21: 19 | Y21: =VLOOKUP(Simulación!$D$17,Catalogos!$O:$R,4,0) ->  | Z21: =Y21&"_"&X21&"_"&Simulación!$D$18&"_"&$Z$1 -> 
A22: SEGURO FINANCIADO MULTIANUAL | B22: SFM | F22: 21 | G22: PUEBLA | H22: =IF(Simulación!$D$16="camioneta",I22,J22) -> 0.6202 | I22: 0.85 | J22: 0.6202 | L22: KIA | M22: 20 | O22: AUDI | P22: 2020 | Q22: AUTOMOVIL | R22: 4 | S22: 1 | T22: 4_1_2020_AUTOMOVIL | U22: Q3 S LINE STRONIC QUATTRO 5P 4CIL | V22: 27438.7265 | X22: 20 | Y22: =VLOOKUP(Simulación!$D$17,Catalogos!$O:$R,4,0) ->  | Z22: =Y22&"_"&X22&"_"&Simulación!$D$18&"_"&$Z$1 -> 
A23: SEGURO CONTADO ANUAL | B23: SCA | F23: 22 | G23: QUERETARO | H23: =IF(Simulación!$D$16="camioneta",I23,J23) -> 0.5991 | I23: 0.85 | J23: 0.5991 | L23: LAMBORGHINI | M23: 21 | O23: AUDI | P23: 2020 | Q23: AUTOMOVIL | R23: 4 | S23: 2 | T23: 4_2_2020_AUTOMOVIL | U23: Q3 SELECT QUATTRO STRONIC 5P 4CIL | V23: 26708.12958 | X23: 21 | Y23: =VLOOKUP(Simulación!$D$17,Catalogos!$O:$R,4,0) ->  | Z23: =Y23&"_"&X23&"_"&Simulación!$D$18&"_"&$Z$1 -> 
A24: SEGURO CONTADO MULTIANUAL | B24: SCM | F24: 23 | G24: QUINTANA ROO | H24: =IF(Simulación!$D$16="camioneta",I24,J24) -> 0.674 | I24: 0.85 | J24: 0.674 | L24: LAND ROVER | M24: 22 | O24: AUDI | P24: 2020 | Q24: AUTOMOVIL | R24: 4 | S24: 3 | T24: 4_3_2020_AUTOMOVIL | U24: Q3 SELECT STRONIC 5P 4CIL | V24: 24692.12402 | X24: 22 | Y24: =VLOOKUP(Simulación!$D$17,Catalogos!$O:$R,4,0) ->  | Z24: =Y24&"_"&X24&"_"&Simulación!$D$18&"_"&$Z$1 -> 
A25: PROMOCIÓN SEGURO GRATIS AGENCIA | B25: SG | F25: 24 | G25: SAN LUIS POTOSI | H25: =IF(Simulación!$D$16="camioneta",I25,J25) -> 0.5991 | I25: 0.85 | J25: 0.5991 | L25: LICOLN | M25: 23 | O25: CHRYSLER | P25: 2020 | Q25: AUTOMOVIL | R25: 9 | S25: 1 | T25: 9_1_2020_AUTOMOVIL | U25: GRAND CHEROKEE TRAILHAWK AUT 5P 8CIL 4X4 | V25: 24217.69278 | X25: 23 | Y25: =VLOOKUP(Simulación!$D$17,Catalogos!$O:$R,4,0) ->  | Z25: =Y25&"_"&X25&"_"&Simulación!$D$18&"_"&$Z$1 -> 
A26: OTRA ASEGURADORA PRIMER AÑO | B26: SCA | F26: 25 | G26: SINALOA | H26: =IF(Simulación!$D$16="camioneta",I26,J26) -> 0.831 | I26: 0.884 | J26: 0.831 | L26: MASERATI | M26: 24 | O26: VOLKSWAGEN | P26: 2020 | Q26: AUTOMOVIL | R26: 40 | S26: 1 | T26: 40_1_2020_AUTOMOVIL | U26: GOL STD 5P 4CIL 1.6L | V26: 14389.4765 | X26: 24 | Y26: =VLOOKUP(Simulación!$D$17,Catalogos!$O:$R,4,0) ->  | Z26: =Y26&"_"&X26&"_"&Simulación!$D$18&"_"&$Z$1 -> 
F27: 26 | G27: SONORA | H27: =IF(Simulación!$D$16="camioneta",I27,J27) -> 0.679 | I27: 0.85 | J27: 0.679 | L27: MASTRETTA | M27: 25 | O27: AUDI | P27: 2020 | Q27: AUTOMOVIL | R27: 4 | S27: 1 | T27: 4_1_2020_AUTOMOVIL | U27: Q3 DYNAMIC 5P 4CIL 1.4L S TRONIC | V27: 24810.57299 | X27: 25 | Y27: =VLOOKUP(Simulación!$D$17,Catalogos!$O:$R,4,0) ->  | Z27: =Y27&"_"&X27&"_"&Simulación!$D$18&"_"&$Z$1 -> 
A28: Tasas previas | F28: 27 | G28: TABASCO | H28: =IF(Simulación!$D$16="camioneta",I28,J28) -> 0.7728 | I28: 0.85 | J28: 0.7728 | L28: MAZDA | M28: 26 | O28: AUDI | P28: 2020 | Q28: AUTOMOVIL | R28: 4 | S28: 2 | T28: 4_2_2020_AUTOMOVIL | U28: TT S AUT 2P 4CIL 2.0L AWD | V28: 45030.99007 | X28: 26 | Y28: =VLOOKUP(Simulación!$D$17,Catalogos!$O:$R,4,0) ->  | Z28: =Y28&"_"&X28&"_"&Simulación!$D$18&"_"&$Z$1 -> 
B29: 0.4 | C29: 0.2 | D29: 0.1 | F29: 28 | G29: TAMAULIPAS | H29: =IF(Simulación!$D$16="camioneta",I29,J29) -> 0.679 | I29: 0.85 | J29: 0.679 | L29: MCLAREN | M29: 27 | O29: CHEVROLET | P29: 2020 | Q29: AUTOMOVIL | R29: 8 | S29: 1 | T29: 8_1_2020_AUTOMOVIL | U29: BUICK ENCORE GX CONVENIENCE CVT 5P 3CIL 1.3L | V29: 16159.39468 | X29: 27 | Y29: =VLOOKUP(Simulación!$D$17,Catalogos!$O:$R,4,0) ->  | Z29: =Y29&"_"&X29&"_"&Simulación!$D$18&"_"&$Z$1 -> 
A30: CAMPAÑA LOVERS | B30: 0.124 | C30: 0.135 | D30: 0.139 | F30: 29 | G30: TLAXCALA | H30: =IF(Simulación!$D$16="camioneta",I30,J30) -> 0.8687 | I30: 0.85 | J30: 0.8687 | L30: MERCEDES BENZ | M30: 28 | O30: CHEVROLET | P30: 2020 | Q30: AUTOMOVIL | R30: 8 | S30: 2 | T30: 8_2_2020_AUTOMOVIL | U30: BUICK ENCORE GX LEATHER CVT 5P 3CIL 1.3L | V30: 17963.92974 | X30: 28 | Y30: =VLOOKUP(Simulación!$D$17,Catalogos!$O:$R,4,0) ->  | Z30: =Y30&"_"&X30&"_"&Simulación!$D$18&"_"&$Z$1 -> 
B31: 0.124 | C31: 0.135 | D31: 0.139 | F31: 30 | G31: VERACRUZ | H31: =IF(Simulación!$D$16="camioneta",I31,J31) -> 0.7728 | I31: 0.85 | J31: 0.7728 | L31: MITSUBISHI | M31: 29 | O31: CHEVROLET | P31: 2020 | Q31: AUTOMOVIL | R31: 8 | S31: 3 | T31: 8_3_2020_AUTOMOVIL | U31: BUICK ENCORE GX SPORT TOURING CVT 5P 3CIL 1.3L | V31: 18620.26155 | X31: 29 | Y31: =VLOOKUP(Simulación!$D$17,Catalogos!$O:$R,4,0) ->  | Z31: =Y31&"_"&X31&"_"&Simulación!$D$18&"_"&$Z$1 -> 
B32: 0.124 | C32: 0.135 | D32: 0.139 | F32: 31 | G32: YUCATAN | H32: =IF(Simulación!$D$16="camioneta",I32,J32) -> 0.6202 | I32: 0.85 | J32: 0.6202 | L32: NISSAN | M32: 30 | O32: BMW | P32: 2020 | Q32: AUTOMOVIL | R32: 7 | S32: 1 | T32: 7_1_2020_AUTOMOVIL | U32: MINI COOPER PURE BURGUNDY AUT 3P 3CIL | V32: 36623.02226 | X32: 30 | Y32: =VLOOKUP(Simulación!$D$17,Catalogos!$O:$R,4,0) ->  | Z32: =Y32&"_"&X32&"_"&Simulación!$D$18&"_"&$Z$1 -> 
F33: 32 | G33: ZACATECAS | H33: =IF(Simulación!$D$16="camioneta",I33,J33) -> 0.6902 | I33: 0.85 | J33: 0.6902 | L33: PEUGEOT | M33: 31 | O33: BMW | P33: 2020 | Q33: AUTOMOVIL | R33: 7 | S33: 2 | T33: 7_2_2020_AUTOMOVIL | U33: X3 M AUT 5P 6CIL 4WD 3.0L | V33: 62956.81631 | X33: 31 | Y33: =VLOOKUP(Simulación!$D$17,Catalogos!$O:$R,4,0) ->  | Z33: =Y33&"_"&X33&"_"&Simulación!$D$18&"_"&$Z$1 -> 
L34: PORSCHE | M34: 32 | O34: BMW | P34: 2020 | Q34: AUTOMOVIL | R34: 7 | S34: 3 | T34: 7_3_2020_AUTOMOVIL | U34: X3 M COMPETITION AUT 5P 6CIL 4WD 3.0L | V34: 69261.82217 | X34: 32 | Y34: =VLOOKUP(Simulación!$D$17,Catalogos!$O:$R,4,0) ->  | Z34: =Y34&"_"&X34&"_"&Simulación!$D$18&"_"&$Z$1 -> 
L35: RENAULT | M35: 33 | O35: BMW | P35: 2020 | Q35: AUTOMOVIL | R35: 7 | S35: 4 | T35: 7_4_2020_AUTOMOVIL | U35: X3 XDRIVE30E HIBRIDO AUT 5P 4CIL 2.0L 4WD | V35: 42929.35711 | X35: 33 | Y35: =VLOOKUP(Simulación!$D$17,Catalogos!$O:$R,4,0) ->  | Z35: =Y35&"_"&X35&"_"&Simulación!$D$18&"_"&$Z$1 ->  | AA35: =IFERROR(VLOOKUP(Z35,$T:$V,2,0),"") -> 
G36: 12225.48277 | L36: SEAT | M36: 34 | O36: RENAULT | P36: 2020 | Q36: AUTOMOVIL | R36: 33 | S36: 1 | T36: 33_1_2020_AUTOMOVIL | U36: CAPTUR INTENS SMR AUT 5P 4CIL 2.0L | V36: 18155.94046 | X36: 34 | Y36: =VLOOKUP(Simulación!$D$17,Catalogos!$O:$R,4,0) ->  | Z36: =Y36&"_"&X36&"_"&Simulación!$D$18&"_"&$Z$1 -> 
A37: Con Subvención | H37: =G36*85% -> 10391.66035 | I37: =(H37+300)*1.16 -> 12402.32601 | L37: SMART | M37: 35 | O37: RENAULT | P37: 2020 | Q37: AUTOMOVIL | R37: 33 | S37: 2 | T37: 33_2_2020_AUTOMOVIL | U37: CAPTUR ICONIC SMR AUT 5P 4CIL 2.0L | V37: 19485.33027 | X37: 35 | Y37: =VLOOKUP(Simulación!$D$17,Catalogos!$O:$R,4,0) ->  | Z37: =Y37&"_"&X37&"_"&Simulación!$D$18&"_"&$Z$1 -> 
L38: SUBARU | M38: 36 | O38: LAND ROVER | P38: 2020 | Q38: AUTOMOVIL | R38: 22 | S38: 1 | T38: 22_1_2020_AUTOMOVIL | U38: DISCOVERY SPORT HSE P250 AUT 5P 4CIL 2.0L AWD | V38: 50959.64215 | X38: 36 | Y38: =VLOOKUP(Simulación!$D$17,Catalogos!$O:$R,4,0) ->  | Z38: =Y38&"_"&X38&"_"&Simulación!$D$18&"_"&$Z$1 -> 
A39: Años | L39: SUZUKI | M39: 37 | O39: LAND ROVER | P39: 2020 | Q39: AUTOMOVIL | R39: 22 | S39: 2 | T39: 22_2_2020_AUTOMOVIL | U39: DISCOVERY S P340 AUT 5P 6CIL 3.0L 4WD | V39: 58742.92583 | X39: 37 | Y39: =VLOOKUP(Simulación!$D$17,Catalogos!$O:$R,4,0) ->  | Z39: =Y39&"_"&X39&"_"&Simulación!$D$18&"_"&$Z$1 -> 
A40: 2021 | B40: 72 | G40: Ajustes DTI - PTI | L40: TESLA | M40: 38 | O40: LAND ROVER | P40: 2020 | Q40: AUTOMOVIL | R40: 22 | S40: 3 | T40: 22_3_2020_AUTOMOVIL | U40: RANGE ROVER VELAR R-DYNAMIC S P250 AUT 5P 4CIL 2.0L 4WD | V40: 57572.2108 | X40: 38 | Y40: =VLOOKUP(Simulación!$D$17,Catalogos!$O:$R,4,0) ->  | Z40: =Y40&"_"&X40&"_"&Simulación!$D$18&"_"&$Z$1 -> 
A41: 2020 | B41: 72 | G41: Rango >$ | H41: Costo | L41: TOYOTA | M41: 39 | O41: LAND ROVER | P41: 2020 | Q41: AUTOMOVIL | R41: 22 | S41: 4 | T41: 22_4_2020_AUTOMOVIL | U41: DISCOVERY S P300 AUT 5P 4CIL 2.0L AWD | V41: 48910.76271 | X41: 39 | Y41: =VLOOKUP(Simulación!$D$17,Catalogos!$O:$R,4,0) ->  | Z41: =Y41&"_"&X41&"_"&Simulación!$D$18&"_"&$Z$1 -> 
B42: 60 | G42: 0 | H42: 0 | L42: VOLKSWAGEN | M42: 40 | O42: LAND ROVER | P42: 2020 | Q42: AUTOMOVIL | R42: 22 | S42: 5 | T42: 22_5_2020_AUTOMOVIL | U42: DEFENDER 110 AUT 5P 6CIL 3.0L AWD | V42: 46634.21506 | X42: 40 | Y42: =VLOOKUP(Simulación!$D$17,Catalogos!$O:$R,4,0) ->  | Z42: =Y42&"_"&X42&"_"&Simulación!$D$18&"_"&$Z$1 -> 
B43: 60 | G43: 60000 | H43: 0.005 | L43: VOLVO | M43: 41 | O43: LAND ROVER | P43: 2020 | Q43: AUTOMOVIL | R43: 22 | S43: 6 | T43: 22_6_2020_AUTOMOVIL | U43: DEFENDER 110 FIRST EDITION AUT 5P 6CIL 3.0L AWD | V43: 57661.91593 | X43: 41 | Y43: =VLOOKUP(Simulación!$D$17,Catalogos!$O:$R,4,0) ->  | Z43: =Y43&"_"&X43&"_"&Simulación!$D$18&"_"&$Z$1 -> 
B44: 48 | G44: 75001 | H44: 0.01 | O44: MERCEDES BENZ | P44: 2020 | Q44: AUTOMOVIL | R44: 28 | S44: 1 | T44: 28_1_2020_AUTOMOVIL | U44: GLE 53 AMG MHEV AUT 5P 6CIL 3.0L 4MATIC | V44: 60242.55235 | X44: 42 | Y44: =VLOOKUP(Simulación!$D$17,Catalogos!$O:$R,4,0) ->  | Z44: =Y44&"_"&X44&"_"&Simulación!$D$18&"_"&$Z$1 -> 
B45: 48 | G45: 90001 | H45: 0.015 | O45: MERCEDES BENZ | P45: 2020 | Q45: AUTOMOVIL | R45: 28 | S45: 2 | T45: 28_2_2020_AUTOMOVIL | U45: GLC 300 COUPE AUT 5P 4CIL 2.0L 4MATIC | V45: 47839.92935 | X45: 43 | Y45: =VLOOKUP(Simulación!$D$17,Catalogos!$O:$R,4,0) ->  | Z45: =Y45&"_"&X45&"_"&Simulación!$D$18&"_"&$Z$1 -> 
B46: 48 | G46: 105001 | H46: 0.02 | O46: MERCEDES BENZ | P46: 2020 | Q46: AUTOMOVIL | R46: 28 | S46: 3 | T46: 28_3_2020_AUTOMOVIL | U46: SPRINTER 516 XLARGA CDI 22 ASIENTOS STD 5P AC 4CIL | V46: 56395.48579 | X46: 44 | Y46: =VLOOKUP(Simulación!$D$17,Catalogos!$O:$R,4,0) ->  | Z46: =Y46&"_"&X46&"_"&Simulación!$D$18&"_"&$Z$1 -> 
G47: 135001 | H47: 0.025 | O47: MERCEDES BENZ | P47: 2020 | Q47: AUTOMOVIL | R47: 28 | S47: 4 | T47: 28_4_2020_AUTOMOVIL | U47: CLA 200 COMFORT AUT 4P 4CIL 1.3L | V47: 25436.45864 | X47: 45 | Y47: =VLOOKUP(Simulación!$D$17,Catalogos!$O:$R,4,0) ->  | Z47: =Y47&"_"&X47&"_"&Simulación!$D$18&"_"&$Z$1 -> 
G48: 180001 | H48: 0.03 | O48: MERCEDES BENZ | P48: 2020 | Q48: AUTOMOVIL | R48: 28 | S48: 5 | T48: 28_5_2020_AUTOMOVIL | U48: A 35 AMG DCT 4P 4CIL 2.0L 4MATIC | V48: 43920.33654 | X48: 46 | Y48: =VLOOKUP(Simulación!$D$17,Catalogos!$O:$R,4,0) ->  | Z48: =Y48&"_"&X48&"_"&Simulación!$D$18&"_"&$Z$1 -> 
A49: Actividades | G49: 250001 | H49: 0.035 | O49: MERCEDES BENZ | P49: 2020 | Q49: AUTOMOVIL | R49: 28 | S49: 6 | T49: 28_6_2020_AUTOMOVIL | U49: A 35 AMG DCT 5P 4CIL 2.0L 4MATIC | V49: 43711.91646 | X49: 47 | Y49: =VLOOKUP(Simulación!$D$17,Catalogos!$O:$R,4,0) ->  | Z49: =Y49&"_"&X49&"_"&Simulación!$D$18&"_"&$Z$1 -> 
A50: Servicio | G50: 340001 | H50: 0.04 | O50: MERCEDES BENZ | P50: 2020 | Q50: AUTOMOVIL | R50: 28 | S50: 7 | T50: 28_7_2020_AUTOMOVIL | U50: GLC 43 AMG AUT 5P 6CIL 3.0L AWD | V50: 59228.15025 | X50: 48 | Y50: =VLOOKUP(Simulación!$D$17,Catalogos!$O:$R,4,0) ->  | Z50: =Y50&"_"&X50&"_"&Simulación!$D$18&"_"&$Z$1 -> 
A51: Comercio | G51: 500001 | H51: 0.045 | O51: MERCEDES BENZ | P51: 2020 | Q51: AUTOMOVIL | R51: 28 | S51: 8 | T51: 28_8_2020_AUTOMOVIL | U51: GLC 300 COMFORT AUT 5P 4CIL 2.0L 4MATIC | V51: 41767.33401 | X51: 49 | Y51: =VLOOKUP(Simulación!$D$17,Catalogos!$O:$R,4,0) ->  | Z51: =Y51&"_"&X51&"_"&Simulación!$D$18&"_"&$Z$1 -> 
O52: MERCEDES BENZ | P52: 2020 | Q52: AUTOMOVIL | R52: 28 | S52: 9 | T52: 28_9_2020_AUTOMOVIL | U52: GLC 300 AUT 5P 4CIL 2.0L 4MATIC | V52: 44611.28477 | X52: 50 | Y52: =VLOOKUP(Simulación!$D$17,Catalogos!$O:$R,4,0) ->  | Z52: =Y52&"_"&X52&"_"&Simulación!$D$18&"_"&$Z$1 -> 
A53: Catálogo Factores Ajuste | O53: FORD | P53: 2020 | Q53: AUTOMOVIL | R53: 13 | S53: 1 | T53: 13_1_2020_AUTOMOVIL | U53: LINCOLN NAUTILUS RESERVE AUT 5P 6CIL 2.7L | V53: 42649.01976 | X53: 51 | Y53: =VLOOKUP(Simulación!$D$17,Catalogos!$O:$R,4,0) ->  | Z53: =Y53&"_"&X53&"_"&Simulación!$D$18&"_"&$Z$1 -> 
B54: Declaración de Impuestos | C54: Estados de Cuenta | O54: CHEVROLET | P54: 2021 | Q54: AUTOMOVIL | R54: 8 | S54: 1 | T54: 8_1_2021_AUTOMOVIL | U54: ONIX PREMIER G AUT 4P 4CIL 1.2L | V54: 17416.52172 | X54: 52 | Y54: =VLOOKUP(Simulación!$D$17,Catalogos!$O:$R,4,0) ->  | Z54: =Y54&"_"&X54&"_"&Simulación!$D$18&"_"&$Z$1 -> 
B55: Unificados | O55: CHEVROLET | P55: 2021 | Q55: AUTOMOVIL | R55: 8 | S55: 2 | T55: 8_2_2021_AUTOMOVIL | U55: ONIX LT D AUT 4P 4CIL 1.0L | V55: 16568.53764 | X55: 53 | Y55: =VLOOKUP(Simulación!$D$17,Catalogos!$O:$R,4,0) ->  | Z55: =Y55&"_"&X55&"_"&Simulación!$D$18&"_"&$Z$1 -> 
A56: Asalariado / Asimilado | B56: 1 | C56: 1 | O56: CHEVROLET | P56: 2021 | Q56: AUTOMOVIL | R56: 8 | S56: 3 | T56: 8_3_2021_AUTOMOVIL | U56: ONIX LT C STD 4P 4CIL 1.0L | V56: 15924.99628 | X56: 54 | Y56: =VLOOKUP(Simulación!$D$17,Catalogos!$O:$R,4,0) ->  | Z56: =Y56&"_"&X56&"_"&Simulación!$D$18&"_"&$Z$1 -> 
A57: Independiente | B57: 0.85 | C57: 0.75 | O57: CHEVROLET | P57: 2021 | Q57: AUTOMOVIL | R57: 8 | S57: 4 | T57: 8_4_2021_AUTOMOVIL | U57: ONIX LS B AUT 4P 4CIL 1.0L | V57: 15426.30468 | X57: 55 | Y57: =VLOOKUP(Simulación!$D$17,Catalogos!$O:$R,4,0) ->  | Z57: =Y57&"_"&X57&"_"&Simulación!$D$18&"_"&$Z$1 -> 
A58: Actividad Empresarial / RIF (Comercio) | B58: 0.6 | C58: 0.5 | O58: CHEVROLET | P58: 2021 | Q58: AUTOMOVIL | R58: 8 | S58: 5 | T58: 8_5_2021_AUTOMOVIL | U58: ONIX LS A STD 4P 4CIL 1.0L | V58: 14431.19616 | X58: 56 | Y58: =VLOOKUP(Simulación!$D$17,Catalogos!$O:$R,4,0) ->  | Z58: =Y58&"_"&X58&"_"&Simulación!$D$18&"_"&$Z$1 -> 
A59: Actividad Empresarial / RIF (Servicio) | B59: 0.65 | C59: 0.55 | O59: BMW | P59: 2020 | Q59: AUTOMOVIL | R59: 7 | S59: 1 | T59: 7_1_2020_AUTOMOVIL | U59: 118IA 1.6 SPORT LINE AT | V59: 28506.5275 | X59: 57 | Y59: =VLOOKUP(Simulación!$D$17,Catalogos!$O:$R,4,0) ->  | Z59: =Y59&"_"&X59&"_"&Simulación!$D$18&"_"&$Z$1 -> 
A60: Utilidades / Dividendos | B60: 0.65 | C60: 0.55 | O60: NISSAN | P60: 2020 | Q60: AUTOMOVIL | R60: 30 | S60: 1 | T60: 30_1_2020_AUTOMOVIL | U60: V-DRIVE STD 4P 4CIL 1.6L | V60: 9598.643642 | X60: 58 | Y60: =VLOOKUP(Simulación!$D$17,Catalogos!$O:$R,4,0) ->  | Z60: =Y60&"_"&X60&"_"&Simulación!$D$18&"_"&$Z$1 -> 
A61: Arrendamiento | B61: 0.9 | C61: 0.8 | O61: MERCEDES BENZ | P61: 2020 | Q61: AUTOMOVIL | R61: 28 | S61: 1 | T61: 28_1_2020_AUTOMOVIL | U61: C 63 S AMG AUT 4P 8CIL | V61: 70708.03878 | X61: 59 | Y61: =VLOOKUP(Simulación!$D$17,Catalogos!$O:$R,4,0) ->  | Z61: =Y61&"_"&X61&"_"&Simulación!$D$18&"_"&$Z$1 -> 
A62: Inversiones | B62: 0.9 | C62: 0.85 | O62: TESLA | P62: 2020 | Q62: AUTOMOVIL | R62: 38 | S62: 1 | T62: 38_1_2020_AUTOMOVIL | U62: MODEL Y PERFORMANCE AUT 5P 4WD | V62: 29778.64012 | X62: 60 | Y62: =VLOOKUP(Simulación!$D$17,Catalogos!$O:$R,4,0) ->  | Z62: =Y62&"_"&X62&"_"&Simulación!$D$18&"_"&$Z$1 -> 
O63: TESLA | P63: 2020 | Q63: AUTOMOVIL | R63: 38 | S63: 2 | T63: 38_2_2020_AUTOMOVIL | U63: MODEL Y LONG RANGE AUT 5P | V63: 24175.126 | X63: 61 | Y63: =VLOOKUP(Simulación!$D$17,Catalogos!$O:$R,4,0) ->  | Z63: =Y63&"_"&X63&"_"&Simulación!$D$18&"_"&$Z$1 -> 
O64: TESLA | P64: 2020 | Q64: AUTOMOVIL | R64: 38 | S64: 3 | T64: 38_3_2020_AUTOMOVIL | U64: MODEL Y LONG RANGE AUT 5P 4WD | V64: 25916.54319 | X64: 62 | Y64: =VLOOKUP(Simulación!$D$17,Catalogos!$O:$R,4,0) ->  | Z64: =Y64&"_"&X64&"_"&Simulación!$D$18&"_"&$Z$1 -> 
O65: BMW | P65: 2020 | Q65: AUTOMOVIL | R65: 7 | S65: 1 | T65: 7_1_2020_AUTOMOVIL | U65: X6 XDRIVE 40I M SPORT AUT 5P 6CIL 3.0L | V65: 68454.51973 | X65: 63 | Y65: =VLOOKUP(Simulación!$D$17,Catalogos!$O:$R,4,0) ->  | Z65: =Y65&"_"&X65&"_"&Simulación!$D$18&"_"&$Z$1 -> 
O66: MERCEDES BENZ | P66: 2020 | Q66: AUTOMOVIL | R66: 28 | S66: 1 | T66: 28_1_2020_AUTOMOVIL | U66: C 300 COUPE AUT 2P 4CIL 2.0L | V66: 38266.96803 | X66: 64 | Y66: =VLOOKUP(Simulación!$D$17,Catalogos!$O:$R,4,0) ->  | Z66: =Y66&"_"&X66&"_"&Simulación!$D$18&"_"&$Z$1 -> 
A67: Plazos vs Años | O67: PEUGEOT | P67: 2020 | Q67: AUTOMOVIL | R67: 31 | S67: =IF(O67&P67=O66&P66,S66+1,1) -> 1 | T67: =R67&"_"&S67&"_"&P67&"_"&Q67 -> 31_1_2020_AUTOMOVIL | U67: 208 ALLURE PACK AUT 5P 4CIL | V67: 10390.61097 | X67: 65 | Y67: =VLOOKUP(Simulación!$D$17,Catalogos!$O:$R,4,0) ->  | Z67: =Y67&"_"&X67&"_"&Simulación!$D$18&"_"&$Z$1 ->  | AA67: =IFERROR(VLOOKUP(Z67,$T:$V,2,0),"") ->  | AB67: =IFERROR(VLOOKUP(Z67,$T:$V,3,0),"") -> 
A68: 2014 | B68: 2015 | C68: 2016 | D68: 2017 | E68: 2018 | F68: 2019 | G68: 2020 | O68: PEUGEOT | P68: 2020 | Q68: AUTOMOVIL | R68: =VLOOKUP(O68,$L$3:$M$43,2,0) -> 31 | S68: 2 | T68: 31_2_2020_AUTOMOVIL | U68: 3008 ALLURE PACK AUT 5P 4CIL | V68: 26321.62203 | X68: 66 | Y68: =VLOOKUP(Simulación!$D$17,Catalogos!$O:$R,4,0) ->  | Z68: =Y68&"_"&X68&"_"&Simulación!$D$18&"_"&$Z$1 -> 
A69: 6 | B69: 6 | C69: 6 | D69: 6 | E69: 6 | F69: 6 | G69: 6 | O69: PEUGEOT | P69: 2020 | Q69: AUTOMOVIL | R69: 31 | S69: 3 | T69: 31_3_2020_AUTOMOVIL | U69: 3008 ALLURE PACK HDI AUT 5P 4CIL | V69: 28018.90505 | X69: 67 | Y69: =VLOOKUP(Simulación!$D$17,Catalogos!$O:$R,4,0) ->  | Z69: =Y69&"_"&X69&"_"&Simulación!$D$18&"_"&$Z$1 -> 
A70: 12 | B70: 12 | C70: 12 | D70: 12 | E70: 12 | F70: 12 | G70: 12 | O70: PEUGEOT | P70: 2020 | Q70: AUTOMOVIL | R70: 31 | S70: 4 | T70: 31_4_2020_AUTOMOVIL | U70: 3008 GT LINE AUT 5P 4CIL | V70: 30697.0032 | X70: 68 | Y70: =VLOOKUP(Simulación!$D$17,Catalogos!$O:$R,4,0) ->  | Z70: =Y70&"_"&X70&"_"&Simulación!$D$18&"_"&$Z$1 -> 
A71: 18 | B71: 18 | C71: 18 | D71: 18 | E71: 18 | F71: 18 | G71: 18 | O71: PEUGEOT | P71: 2020 | Q71: AUTOMOVIL | R71: 31 | S71: 5 | T71: 31_5_2020_AUTOMOVIL | U71: 3008 GT LINE HDI AUT 5P 4CIL | V71: 32396.45736 | X71: 69 | Y71: =VLOOKUP(Simulación!$D$17,Catalogos!$O:$R,4,0) ->  | Z71: =Y71&"_"&X71&"_"&Simulación!$D$18&"_"&$Z$1 -> 
A72: 24 | B72: 24 | C72: 24 | D72: 24 | E72: 24 | F72: 24 | G72: 24 | O72: PEUGEOT | P72: 2020 | Q72: AUTOMOVIL | R72: 31 | S72: 6 | T72: 31_6_2020_AUTOMOVIL | U72: 3008 ACTIVE AUT 5P 4CIL | V72: 23893.38758 | X72: 70 | Y72: =VLOOKUP(Simulación!$D$17,Catalogos!$O:$R,4,0) ->  | Z72: =Y72&"_"&X72&"_"&Simulación!$D$18&"_"&$Z$1 -> 
A73: 30 | B73: 30 | C73: 30 | D73: 30 | E73: 30 | F73: 30 | G73: 30 | O73: PEUGEOT | P73: 2020 | Q73: AUTOMOVIL | R73: 31 | S73: 7 | T73: 31_7_2020_AUTOMOVIL | U73: 301 ACTIVE HDI STD 4P 4CIL | V73: 13543.91943 | X73: 71 | Y73: =VLOOKUP(Simulación!$D$17,Catalogos!$O:$R,4,0) ->  | Z73: =Y73&"_"&X73&"_"&Simulación!$D$18&"_"&$Z$1 -> 
A74: 36 | B74: 36 | C74: 36 | D74: 36 | E74: 36 | F74: 36 | G74: 36 | O74: PEUGEOT | P74: 2020 | Q74: AUTOMOVIL | R74: 31 | S74: 8 | T74: 31_8_2020_AUTOMOVIL | U74: RIFTER ACTIVE STD 5P 4CIL | V74: 17143.86729 | X74: 72 | Y74: =VLOOKUP(Simulación!$D$17,Catalogos!$O:$R,4,0) ->  | Z74: =Y74&"_"&X74&"_"&Simulación!$D$18&"_"&$Z$1 -> 
A75: 48 | B75: 48 | C75: 48 | D75: 48 | E75: 48 | F75: 48 | G75: 48 | O75: PEUGEOT | P75: 2020 | Q75: AUTOMOVIL | R75: 31 | S75: 9 | T75: 31_9_2020_AUTOMOVIL | U75: RIFTER ALLURE STD 5P 4CIL | V75: 19471.38503 | X75: 73 | Y75: =VLOOKUP(Simulación!$D$17,Catalogos!$O:$R,4,0) ->  | Z75: =Y75&"_"&X75&"_"&Simulación!$D$18&"_"&$Z$1 -> 
D76: 60 | E76: 60 | F76: 60 | G76: 60 | O76: KIA | P76: 2020 | Q76: AUTOMOVIL | R76: 20 | S76: 1 | T76: 20_1_2020_AUTOMOVIL | U76: SOUL LX AUT 5P 4CIL | V76: 9306.192826 | X76: 74 | Y76: =VLOOKUP(Simulación!$D$17,Catalogos!$O:$R,4,0) ->  | Z76: =Y76&"_"&X76&"_"&Simulación!$D$18&"_"&$Z$1 -> 
F77: 72 | G77: 72 | O77: KIA | P77: 2020 | Q77: AUTOMOVIL | R77: 20 | S77: 2 | T77: 20_2_2020_AUTOMOVIL | U77: SOUL EX AUT 5P 4CIL | V77: 10347.44847 | X77: 75 | Y77: =VLOOKUP(Simulación!$D$17,Catalogos!$O:$R,4,0) ->  | Z77: =Y77&"_"&X77&"_"&Simulación!$D$18&"_"&$Z$1 -> 
O78: KIA | P78: 2020 | Q78: AUTOMOVIL | R78: 20 | S78: 3 | T78: 20_3_2020_AUTOMOVIL | U78: SOUL LX STD 5P 4CIL | V78: 8830.056295 | X78: 76 | Y78: =VLOOKUP(Simulación!$D$17,Catalogos!$O:$R,4,0) ->  | Z78: =Y78&"_"&X78&"_"&Simulación!$D$18&"_"&$Z$1 -> 
O79: KIA | P79: 2020 | Q79: AUTOMOVIL | R79: 20 | S79: 4 | T79: 20_4_2020_AUTOMOVIL | U79: SOUL EX PACK AUT 5P 4CIL | V79: 11427.38517 | X79: 77 | Y79: =VLOOKUP(Simulación!$D$17,Catalogos!$O:$R,4,0) ->  | Z79: =Y79&"_"&X79&"_"&Simulación!$D$18&"_"&$Z$1 -> 
O80: TOYOTA | P80: 2020 | Q80: AUTOMOVIL | R80: 39 | S80: 1 | T80: 39_1_2020_AUTOMOVIL | U80: SIENNA 3.5 LE AT | V80: 9495.360316 | X80: 78 | Y80: =VLOOKUP(Simulación!$D$17,Catalogos!$O:$R,4,0) ->  | Z80: =Y80&"_"&X80&"_"&Simulación!$D$18&"_"&$Z$1 -> 
O81: TOYOTA | P81: 2020 | Q81: AUTOMOVIL | R81: 39 | S81: 2 | T81: 39_2_2020_AUTOMOVIL | U81: SIENNA 3.5 CE AT | V81: 8719.841795 | X81: 79 | Y81: =VLOOKUP(Simulación!$D$17,Catalogos!$O:$R,4,0) ->  | Z81: =Y81&"_"&X81&"_"&Simulación!$D$18&"_"&$Z$1 -> 
O82: TOYOTA | P82: 2020 | Q82: AUTOMOVIL | R82: 39 | S82: 3 | T82: 39_3_2020_AUTOMOVIL | U82: SIENNA 3.5 LIMITED AT (N) | V82: 14206.10024 | X82: 80 | Y82: =VLOOKUP(Simulación!$D$17,Catalogos!$O:$R,4,0) ->  | Z82: =Y82&"_"&X82&"_"&Simulación!$D$18&"_"&$Z$1 -> 
O83: TOYOTA | P83: 2020 | Q83: AUTOMOVIL | R83: 39 | S83: 4 | T83: 39_4_2020_AUTOMOVIL | U83: COROLLA BASE MT | V83: 17857.59567 | X83: 81 | Y83: =VLOOKUP(Simulación!$D$17,Catalogos!$O:$R,4,0) ->  | Z83: =Y83&"_"&X83&"_"&Simulación!$D$18&"_"&$Z$1 -> 
O84: TOYOTA | P84: 2020 | Q84: AUTOMOVIL | R84: 39 | S84: 5 | T84: 39_5_2020_AUTOMOVIL | U84: COROLLA BASE AT | V84: 18501.86787 | X84: 82 | Y84: =VLOOKUP(Simulación!$D$17,Catalogos!$O:$R,4,0) ->  | Z84: =Y84&"_"&X84&"_"&Simulación!$D$18&"_"&$Z$1 -> 
O85: TOYOTA | P85: 2020 | Q85: AUTOMOVIL | R85: 39 | S85: 6 | T85: 39_6_2020_AUTOMOVIL | U85: COROLLA LE | V85: 18662.28182 | X85: 83 | Y85: =VLOOKUP(Simulación!$D$17,Catalogos!$O:$R,4,0) ->  | Z85: =Y85&"_"&X85&"_"&Simulación!$D$18&"_"&$Z$1 -> 
O86: TOYOTA | P86: 2020 | Q86: AUTOMOVIL | R86: 39 | S86: 7 | T86: 39_7_2020_AUTOMOVIL | U86: SIENNA 3.5 XLE AT | V86: 10279.97619 | X86: 84 | Y86: =VLOOKUP(Simulación!$D$17,Catalogos!$O:$R,4,0) ->  | Z86: =Y86&"_"&X86&"_"&Simulación!$D$18&"_"&$Z$1 -> 
O87: TOYOTA | P87: 2020 | Q87: AUTOMOVIL | R87: 39 | S87: 8 | T87: 39_8_2020_AUTOMOVIL | U87: SIENNA XLE AUT 5P PIEL 6CIL | V87: 11811.76951 | X87: 85 | Y87: =VLOOKUP(Simulación!$D$17,Catalogos!$O:$R,4,0) ->  | Z87: =Y87&"_"&X87&"_"&Simulación!$D$18&"_"&$Z$1 -> 
O88: TOYOTA | P88: 2020 | Q88: AUTOMOVIL | R88: 39 | S88: 9 | T88: 39_9_2020_AUTOMOVIL | U88: COROLLA SE AUT 4P 4CIL | V88: 21793.21655 | X88: 86 | Y88: =VLOOKUP(Simulación!$D$17,Catalogos!$O:$R,4,0) ->  | Z88: =Y88&"_"&X88&"_"&Simulación!$D$18&"_"&$Z$1 -> 
O89: TOYOTA | P89: 2020 | Q89: AUTOMOVIL | R89: 39 | S89: 10 | T89: 39_10_2020_AUTOMOVIL | U89: COROLLA LE HV AUT 4P 4CIL | V89: 25306.68996 | X89: 87 | Y89: =VLOOKUP(Simulación!$D$17,Catalogos!$O:$R,4,0) ->  | Z89: =Y89&"_"&X89&"_"&Simulación!$D$18&"_"&$Z$1 -> 
O90: TOYOTA | P90: 2020 | Q90: AUTOMOVIL | R90: 39 | S90: 11 | T90: 39_11_2020_AUTOMOVIL | U90: HIACE 12 PASAJEROS | V90: 16175.07551 | X90: 88 | Y90: =VLOOKUP(Simulación!$D$17,Catalogos!$O:$R,4,0) ->  | Z90: =Y90&"_"&X90&"_"&Simulación!$D$18&"_"&$Z$1 -> 
O91: TOYOTA | P91: 2020 | Q91: AUTOMOVIL | R91: 39 | S91: 12 | T91: 39_12_2020_AUTOMOVIL | U91: AVANZA LE STD 5P 4CIL | V91: 7926.050839 | X91: 89 | Y91: =VLOOKUP(Simulación!$D$17,Catalogos!$O:$R,4,0) ->  | Z91: =Y91&"_"&X91&"_"&Simulación!$D$18&"_"&$Z$1 -> 
O92: TOYOTA | P92: 2020 | Q92: AUTOMOVIL | R92: 39 | S92: 13 | T92: 39_13_2020_AUTOMOVIL | U92: AVANZA XLE AUT 5P 4CIL | V92: 8718.348039 | X92: 90 | Y92: =VLOOKUP(Simulación!$D$17,Catalogos!$O:$R,4,0) ->  | Z92: =Y92&"_"&X92&"_"&Simulación!$D$18&"_"&$Z$1 -> 
O93: TOYOTA | P93: 2020 | Q93: AUTOMOVIL | R93: 39 | S93: 14 | T93: 39_14_2020_AUTOMOVIL | U93: AVANZA LE AUT 5P 4CIL | V93: 8051.139365 | X93: 91 | Y93: =VLOOKUP(Simulación!$D$17,Catalogos!$O:$R,4,0) ->  | Z93: =Y93&"_"&X93&"_"&Simulación!$D$18&"_"&$Z$1 -> 
O94: HONDA | P94: 2020 | Q94: AUTOMOVIL | R94: 15 | S94: 1 | T94: 15_1_2020_AUTOMOVIL | U94: CITY LX MT 1.5 | V94: 12957.9252 | X94: 92 | Y94: =VLOOKUP(Simulación!$D$17,Catalogos!$O:$R,4,0) ->  | Z94: =Y94&"_"&X94&"_"&Simulación!$D$18&"_"&$Z$1 -> 
O95: HONDA | P95: 2020 | Q95: AUTOMOVIL | R95: 15 | S95: 2 | T95: 15_2_2020_AUTOMOVIL | U95: CITY LX AT 1.5 | V95: 13802.57952 | X95: 93 | Y95: =VLOOKUP(Simulación!$D$17,Catalogos!$O:$R,4,0) ->  | Z95: =Y95&"_"&X95&"_"&Simulación!$D$18&"_"&$Z$1 -> 
O96: HONDA | P96: 2020 | Q96: AUTOMOVIL | R96: 15 | S96: 3 | T96: 15_3_2020_AUTOMOVIL | U96: CITY EX AT 1.5 | V96: 14564.71932 | X96: 94 | Y96: =VLOOKUP(Simulación!$D$17,Catalogos!$O:$R,4,0) ->  | Z96: =Y96&"_"&X96&"_"&Simulación!$D$18&"_"&$Z$1 -> 
O97: BMW | P97: 2020 | Q97: AUTOMOVIL | R97: 7 | S97: 1 | T97: 7_1_2020_AUTOMOVIL | U97: CHILI (N) | V97: 20249.56972 | X97: 95 | Y97: =VLOOKUP(Simulación!$D$17,Catalogos!$O:$R,4,0) ->  | Z97: =Y97&"_"&X97&"_"&Simulación!$D$18&"_"&$Z$1 -> 
O98: LAND ROVER | P98: 2020 | Q98: AUTOMOVIL | R98: 22 | S98: 1 | T98: 22_1_2020_AUTOMOVIL | U98: RANGE ROVER EVOQUE SE AUT 5P 4CIL | V98: 50578.19921 | X98: 96 | Y98: =VLOOKUP(Simulación!$D$17,Catalogos!$O:$R,4,0) ->  | Z98: =Y98&"_"&X98&"_"&Simulación!$D$18&"_"&$Z$1 -> 
O99: MAZDA | P99: 2020 | Q99: AUTOMOVIL | R99: 26 | S99: 1 | T99: 26_1_2020_AUTOMOVIL | U99: MAZDA6 I SPORT AT | V99: 14705.08574 | X99: 97 | Y99: =VLOOKUP(Simulación!$D$17,Catalogos!$O:$R,4,0) ->  | Z99: =Y99&"_"&X99&"_"&Simulación!$D$18&"_"&$Z$1 -> 
O100: PEUGEOT | P100: 2020 | Q100: AUTOMOVIL | R100: 31 | S100: 1 | T100: 31_1_2020_AUTOMOVIL | U100: 301 ACTIVE 1.6L SEDAN STD | V100: 12618.19551 | X100: 98 | Y100: =VLOOKUP(Simulación!$D$17,Catalogos!$O:$R,4,0) ->  | Z100: =Y100&"_"&X100&"_"&Simulación!$D$18&"_"&$Z$1 -> 
O101: PEUGEOT | P101: 2020 | Q101: AUTOMOVIL | R101: 31 | S101: 2 | T101: 31_2_2020_AUTOMOVIL | U101: 301 ALLURE 1.6L SEDAN TIPTRONIC | V101: 15294.25977 | X101: 99 | Y101: =VLOOKUP(Simulación!$D$17,Catalogos!$O:$R,4,0) ->  | Z101: =Y101&"_"&X101&"_"&Simulación!$D$18&"_"&$Z$1 -> 
O102: PEUGEOT | P102: 2020 | Q102: AUTOMOVIL | R102: 31 | S102: 3 | T102: 31_3_2020_AUTOMOVIL | U102: 301 ALLURE HDI STD 4P 4CIL | V102: 14745.49022 | X102: 100 | Y102: =VLOOKUP(Simulación!$D$17,Catalogos!$O:$R,4,0) ->  | Z102: =Y102&"_"&X102&"_"&Simulación!$D$18&"_"&$Z$1 -> 
O103: PEUGEOT | P103: 2020 | Q103: AUTOMOVIL | R103: 31 | S103: 4 | T103: 31_4_2020_AUTOMOVIL | U103: 5008 ALLURE PACK AUT 5P 4CIL | V103: 15366.94599 | X103: 101 | Y103: =VLOOKUP(Simulación!$D$17,Catalogos!$O:$R,4,0) ->  | Z103: =Y103&"_"&X103&"_"&Simulación!$D$18&"_"&$Z$1 -> 
O104: PEUGEOT | P104: 2020 | Q104: AUTOMOVIL | R104: 31 | S104: 5 | T104: 31_5_2020_AUTOMOVIL | U104: 5008 GT LINE AUT 5P 4CIL | V104: 17548.44108 | X104: 102 | Y104: =VLOOKUP(Simulación!$D$17,Catalogos!$O:$R,4,0) ->  | Z104: =Y104&"_"&X104&"_"&Simulación!$D$18&"_"&$Z$1 -> 
O105: PEUGEOT | P105: 2020 | Q105: AUTOMOVIL | R105: 31 | S105: 6 | T105: 31_6_2020_AUTOMOVIL | U105: 5008 GT LINE HDI AUT 5P 4CIL | V105: 18239.67107 | X105: 103 | Y105: =VLOOKUP(Simulación!$D$17,Catalogos!$O:$R,4,0) ->  | Z105: =Y105&"_"&X105&"_"&Simulación!$D$18&"_"&$Z$1 -> 
O106: PEUGEOT | P106: 2020 | Q106: AUTOMOVIL | R106: 31 | S106: 7 | T106: 31_7_2020_AUTOMOVIL | U106: 308 GT AUT 5P 4CIL | V106: 25290.33246 | X106: 104 | Y106: =VLOOKUP(Simulación!$D$17,Catalogos!$O:$R,4,0) ->  | Z106: =Y106&"_"&X106&"_"&Simulación!$D$18&"_"&$Z$1 -> 
O107: MERCEDES BENZ | P107: 2020 | Q107: AUTOMOVIL | R107: 28 | S107: 1 | T107: 28_1_2020_AUTOMOVIL | U107: 2008 ACTIVE AUT 5P 3CIL | V107: 10835.18809 | X107: 105 | Y107: =VLOOKUP(Simulación!$D$17,Catalogos!$O:$R,4,0) ->  | Z107: =Y107&"_"&X107&"_"&Simulación!$D$18&"_"&$Z$1 -> 
O108: MERCEDES BENZ | P108: 2020 | Q108: AUTOMOVIL | R108: 28 | S108: 2 | T108: 28_2_2020_AUTOMOVIL | U108: GLA 250 CGI SPORT AUT | V108: 31398.61166 | X108: 106 | Y108: =VLOOKUP(Simulación!$D$17,Catalogos!$O:$R,4,0) ->  | Z108: =Y108&"_"&X108&"_"&Simulación!$D$18&"_"&$Z$1 -> 
O109: MERCEDES BENZ | P109: 2020 | Q109: AUTOMOVIL | R109: 28 | S109: 3 | T109: 28_3_2020_AUTOMOVIL | U109: GLA 200 CGI SPORT AUT | V109: 29213.70866 | X109: 107 | Y109: =VLOOKUP(Simulación!$D$17,Catalogos!$O:$R,4,0) ->  | Z109: =Y109&"_"&X109&"_"&Simulación!$D$18&"_"&$Z$1 -> 
O110: VOLKSWAGEN | P110: 2020 | Q110: AUTOMOVIL | R110: 40 | S110: 1 | T110: 40_1_2020_AUTOMOVIL | U110: VENTO HIGHLINE STD | V110: 12625.32664 | X110: 108 | Y110: =VLOOKUP(Simulación!$D$17,Catalogos!$O:$R,4,0) ->  | Z110: =Y110&"_"&X110&"_"&Simulación!$D$18&"_"&$Z$1 -> 
O111: VOLKSWAGEN | P111: 2020 | Q111: AUTOMOVIL | R111: 40 | S111: 2 | T111: 40_2_2020_AUTOMOVIL | U111: VENTO HIGHLINE TIPTRONIC | V111: 13649.79888 | X111: 109 | Y111: =VLOOKUP(Simulación!$D$17,Catalogos!$O:$R,4,0) ->  | Z111: =Y111&"_"&X111&"_"&Simulación!$D$18&"_"&$Z$1 -> 
O112: VOLKSWAGEN | P112: 2020 | Q112: AUTOMOVIL | R112: 40 | S112: 3 | T112: 40_3_2020_AUTOMOVIL | U112: VENTO STARTLINE STD 4P 4CIL | V112: 11335.81125 | X112: 110 | Y112: =VLOOKUP(Simulación!$D$17,Catalogos!$O:$R,4,0) ->  | Z112: =Y112&"_"&X112&"_"&Simulación!$D$18&"_"&$Z$1 -> 
O113: VOLKSWAGEN | P113: 2020 | Q113: AUTOMOVIL | R113: 40 | S113: 4 | T113: 40_4_2020_AUTOMOVIL | U113: VENTO STARTLINE TIPTRONIC 4P 4CIL | V113: 12487.87722 | X113: 111 | Y113: =VLOOKUP(Simulación!$D$17,Catalogos!$O:$R,4,0) ->  | Z113: =Y113&"_"&X113&"_"&Simulación!$D$18&"_"&$Z$1 -> 
O114: VOLKSWAGEN | P114: 2020 | Q114: AUTOMOVIL | R114: 40 | S114: 5 | T114: 40_5_2020_AUTOMOVIL | U114: VENTO COMFORTLINE STD 4P 4CIL | V114: 12098.64193 | X114: 112 | Y114: =VLOOKUP(Simulación!$D$17,Catalogos!$O:$R,4,0) ->  | Z114: =Y114&"_"&X114&"_"&Simulación!$D$18&"_"&$Z$1 -> 
O115: VOLKSWAGEN | P115: 2020 | Q115: AUTOMOVIL | R115: 40 | S115: 6 | T115: 40_6_2020_AUTOMOVIL | U115: VENTO COMFORTLINE TIPTRONIC 4P 4CIL | V115: 13120.83762 | X115: 113 | Y115: =VLOOKUP(Simulación!$D$17,Catalogos!$O:$R,4,0) ->  | Z115: =Y115&"_"&X115&"_"&Simulación!$D$18&"_"&$Z$1 -> 
O116: HYUNDAI | P116: 2020 | Q116: AUTOMOVIL | R116: 16 | S116: 1 | T116: 16_1_2020_AUTOMOVIL | U116: GRAND I10 GLS STD 4P 4CIL | V116: 10627.03192 | X116: 114 | Y116: =VLOOKUP(Simulación!$D$17,Catalogos!$O:$R,4,0) ->  | Z116: =Y116&"_"&X116&"_"&Simulación!$D$18&"_"&$Z$1 -> 
O117: HYUNDAI | P117: 2020 | Q117: AUTOMOVIL | R117: 16 | S117: 2 | T117: 16_2_2020_AUTOMOVIL | U117: ACCENT GL AUT 4P 4CIL | V117: 10368.7786 | X117: 115 | Y117: =VLOOKUP(Simulación!$D$17,Catalogos!$O:$R,4,0) ->  | Z117: =Y117&"_"&X117&"_"&Simulación!$D$18&"_"&$Z$1 -> 
O118: HYUNDAI | P118: 2020 | Q118: AUTOMOVIL | R118: 16 | S118: 3 | T118: 16_3_2020_AUTOMOVIL | U118: ACCENT MID GL STD 5P 4CIL | V118: 10334.2106 | X118: 116 | Y118: =VLOOKUP(Simulación!$D$17,Catalogos!$O:$R,4,0) ->  | Z118: =Y118&"_"&X118&"_"&Simulación!$D$18&"_"&$Z$1 -> 
O119: HYUNDAI | P119: 2020 | Q119: AUTOMOVIL | R119: 16 | S119: 4 | T119: 16_4_2020_AUTOMOVIL | U119: ACCENT MID GL AUT 5P 4CIL | V119: 10808.83193 | X119: 117 | Y119: =VLOOKUP(Simulación!$D$17,Catalogos!$O:$R,4,0) ->  | Z119: =Y119&"_"&X119&"_"&Simulación!$D$18&"_"&$Z$1 -> 
O120: PORSCHE | P120: 2020 | Q120: AUTOMOVIL | R120: 32 | S120: 1 | T120: 32_1_2020_AUTOMOVIL | U120: 718 CAYMAN STD 2P 4CIL | V120: 43333.11704 | X120: 118 | Y120: =VLOOKUP(Simulación!$D$17,Catalogos!$O:$R,4,0) ->  | Z120: =Y120&"_"&X120&"_"&Simulación!$D$18&"_"&$Z$1 -> 
O121: KIA | P121: 2020 | Q121: AUTOMOVIL | R121: 20 | S121: 1 | T121: 20_1_2020_AUTOMOVIL | U121: FORTE LX AUT 4P 4CIL | V121: 9670.591827 | X121: 119 | Y121: =VLOOKUP(Simulación!$D$17,Catalogos!$O:$R,4,0) ->  | Z121: =Y121&"_"&X121&"_"&Simulación!$D$18&"_"&$Z$1 -> 
O122: KIA | P122: 2020 | Q122: AUTOMOVIL | R122: 20 | S122: 2 | T122: 20_2_2020_AUTOMOVIL | U122: RIO LX STD 5P 4CIL | V122: 10234.15993 | X122: 120 | Y122: =VLOOKUP(Simulación!$D$17,Catalogos!$O:$R,4,0) ->  | Z122: =Y122&"_"&X122&"_"&Simulación!$D$18&"_"&$Z$1 -> 
O123: KIA | P123: 2020 | Q123: AUTOMOVIL | R123: 20 | S123: 3 | T123: 20_3_2020_AUTOMOVIL | U123: RIO LX STD 4P 4CIL | V123: 10197.27603 | X123: 121 | Y123: =VLOOKUP(Simulación!$D$17,Catalogos!$O:$R,4,0) ->  | Z123: =Y123&"_"&X123&"_"&Simulación!$D$18&"_"&$Z$1 -> 
O124: KIA | P124: 2020 | Q124: AUTOMOVIL | R124: 20 | S124: 4 | T124: 20_4_2020_AUTOMOVIL | U124: FORTE L STD 4P 4CIL | V124: 8298.780399 | X124: 122 | Y124: =VLOOKUP(Simulación!$D$17,Catalogos!$O:$R,4,0) ->  | Z124: =Y124&"_"&X124&"_"&Simulación!$D$18&"_"&$Z$1 -> 
O125: KIA | P125: 2020 | Q125: AUTOMOVIL | R125: 20 | S125: 5 | T125: 20_5_2020_AUTOMOVIL | U125: RIO L STD 5P 4CIL | V125: 10360.25603 | X125: 123 | Y125: =VLOOKUP(Simulación!$D$17,Catalogos!$O:$R,4,0) ->  | Z125: =Y125&"_"&X125&"_"&Simulación!$D$18&"_"&$Z$1 -> 
O126: KIA | P126: 2020 | Q126: AUTOMOVIL | R126: 20 | S126: 6 | T126: 20_6_2020_AUTOMOVIL | U126: RIO LX AUT 5P 4CIL | V126: 11903.83037 | X126: 124 | Y126: =VLOOKUP(Simulación!$D$17,Catalogos!$O:$R,4,0) ->  | Z126: =Y126&"_"&X126&"_"&Simulación!$D$18&"_"&$Z$1 -> 
O127: KIA | P127: 2020 | Q127: AUTOMOVIL | R127: 20 | S127: 7 | T127: 20_7_2020_AUTOMOVIL | U127: RIO EX AUT 5P 4CIL | V127: 12866.48891 | X127: 125 | Y127: =VLOOKUP(Simulación!$D$17,Catalogos!$O:$R,4,0) ->  | Z127: =Y127&"_"&X127&"_"&Simulación!$D$18&"_"&$Z$1 -> 
O128: KIA | P128: 2020 | Q128: AUTOMOVIL | R128: 20 | S128: 8 | T128: 20_8_2020_AUTOMOVIL | U128: RIO LX AUT 4P 4CIL | V128: 11999.72851 | X128: 126 | Y128: =VLOOKUP(Simulación!$D$17,Catalogos!$O:$R,4,0) ->  | Z128: =Y128&"_"&X128&"_"&Simulación!$D$18&"_"&$Z$1 -> 
O129: KIA | P129: 2020 | Q129: AUTOMOVIL | R129: 20 | S129: 9 | T129: 20_9_2020_AUTOMOVIL | U129: FORTE L AUT 4P 4CIL | V129: 9429.391753 | X129: 127 | Y129: =VLOOKUP(Simulación!$D$17,Catalogos!$O:$R,4,0) ->  | Z129: =Y129&"_"&X129&"_"&Simulación!$D$18&"_"&$Z$1 -> 
O130: KIA | P130: 2020 | Q130: AUTOMOVIL | R130: 20 | S130: 10 | T130: 20_10_2020_AUTOMOVIL | U130: RIO L AUT 4P 4CIL | V130: 10784.42088 | X130: 128 | Y130: =VLOOKUP(Simulación!$D$17,Catalogos!$O:$R,4,0) ->  | Z130: =Y130&"_"&X130&"_"&Simulación!$D$18&"_"&$Z$1 -> 
O131: KIA | P131: 2020 | Q131: AUTOMOVIL | R131: 20 | S131: =IF(O131&P131=O130&P130,S130+1,1) -> 11 | T131: =R131&"_"&S131&"_"&P131&"_"&Q131 -> 20_11_2020_AUTOMOVIL | U131: RIO L STD 4P 4CIL | V131: 10437.71222 | X131: 129 | Y131: =VLOOKUP(Simulación!$D$17,Catalogos!$O:$R,4,0) ->  | Z131: =Y131&"_"&X131&"_"&Simulación!$D$18&"_"&$Z$1 ->  | AA131: =IFERROR(VLOOKUP(Z131,$T:$V,2,0),"") ->  | AB131: =IFERROR(VLOOKUP(Z131,$T:$V,3,0),"") -> 
O132: KIA | P132: 2020 | Q132: AUTOMOVIL | R132: =VLOOKUP(O132,$L$3:$M$43,2,0) -> 20 | S132: 12 | T132: 20_12_2020_AUTOMOVIL | U132: RIO EX RED PACK AUT 5P 4CIL | V132: 11693.14153 | X132: 130 | Y132: =VLOOKUP(Simulación!$D$17,Catalogos!$O:$R,4,0) ->  | Z132: =Y132&"_"&X132&"_"&Simulación!$D$18&"_"&$Z$1 -> 
O133: KIA | P133: 2020 | Q133: AUTOMOVIL | R133: 20 | S133: 13 | T133: 20_13_2020_AUTOMOVIL | U133: FORTE GT LINE STD 5P 4CIL | V133: 11722.79489 | X133: 131 | Y133: =VLOOKUP(Simulación!$D$17,Catalogos!$O:$R,4,0) ->  | Z133: =Y133&"_"&X133&"_"&Simulación!$D$18&"_"&$Z$1 -> 
O134: KIA | P134: 2020 | Q134: AUTOMOVIL | R134: 20 | S134: 14 | T134: 20_14_2020_AUTOMOVIL | U134: FORTE GT LINE AUT 5P 4CIL | V134: 12073.13923 | X134: 132 | Y134: =VLOOKUP(Simulación!$D$17,Catalogos!$O:$R,4,0) ->  | Z134: =Y134&"_"&X134&"_"&Simulación!$D$18&"_"&$Z$1 -> 
O135: KIA | P135: 2020 | Q135: AUTOMOVIL | R135: 20 | S135: 15 | T135: 20_15_2020_AUTOMOVIL | U135: FORTE GT STD 5P 4CIL | V135: 13200.1395 | X135: 133 | Y135: =VLOOKUP(Simulación!$D$17,Catalogos!$O:$R,4,0) ->  | Z135: =Y135&"_"&X135&"_"&Simulación!$D$18&"_"&$Z$1 -> 
O136: KIA | P136: 2020 | Q136: AUTOMOVIL | R136: 20 | S136: 16 | T136: 20_16_2020_AUTOMOVIL | U136: FORTE GT AUT 5P 4CIL | V136: 13701.12583 | X136: 134 | Y136: =VLOOKUP(Simulación!$D$17,Catalogos!$O:$R,4,0) ->  | Z136: =Y136&"_"&X136&"_"&Simulación!$D$18&"_"&$Z$1 -> 
O137: BMW | P137: 2020 | Q137: AUTOMOVIL | R137: 7 | S137: 1 | T137: 7_1_2020_AUTOMOVIL | U137: MINI S JCW HOT CHILI AUT 3P 4CIL | V137: 32130.53742 | X137: 135 | Y137: =VLOOKUP(Simulación!$D$17,Catalogos!$O:$R,4,0) ->  | Z137: =Y137&"_"&X137&"_"&Simulación!$D$18&"_"&$Z$1 -> 
O138: CHRYSLER | P138: 2020 | Q138: AUTOMOVIL | R138: 9 | S138: 1 | T138: 9_1_2020_AUTOMOVIL | U138: WRANGLER JK UNLIMITED SPORT AUT 5P 6CIL 4X4 | V138: 11398.30152 | X138: 136 | Y138: =VLOOKUP(Simulación!$D$17,Catalogos!$O:$R,4,0) ->  | Z138: =Y138&"_"&X138&"_"&Simulación!$D$18&"_"&$Z$1 -> 
O139: VOLKSWAGEN | P139: 2020 | Q139: AUTOMOVIL | R139: 40 | S139: 1 | T139: 40_1_2020_AUTOMOVIL | U139: POLO STARTLINE STD 5P 4CIL | V139: 10481.97209 | X139: 137 | Y139: =VLOOKUP(Simulación!$D$17,Catalogos!$O:$R,4,0) ->  | Z139: =Y139&"_"&X139&"_"&Simulación!$D$18&"_"&$Z$1 -> 
O140: VOLKSWAGEN | P140: 2020 | Q140: AUTOMOVIL | R140: 40 | S140: 2 | T140: 40_2_2020_AUTOMOVIL | U140: POLO DESIGN SOUND STD 5P 4CIL | V140: 11751.80003 | X140: 138 | Y140: =VLOOKUP(Simulación!$D$17,Catalogos!$O:$R,4,0) ->  | Z140: =Y140&"_"&X140&"_"&Simulación!$D$18&"_"&$Z$1 -> 
O141: RENAULT | P141: 2020 | Q141: AUTOMOVIL | R141: 33 | S141: 1 | T141: 33_1_2020_AUTOMOVIL | U141: CAPTUR INTENS AUT 5P 4CIL | V141: 18052.42964 | X141: 139 | Y141: =VLOOKUP(Simulación!$D$17,Catalogos!$O:$R,4,0) ->  | Z141: =Y141&"_"&X141&"_"&Simulación!$D$18&"_"&$Z$1 -> 
O142: CHEVROLET | P142: 2020 | Q142: AUTOMOVIL | R142: 8 | S142: 1 | T142: 8_1_2020_AUTOMOVIL | U142: AVEO LS STD 4P AC 4CIL | V142: 11062.31952 | X142: 140 | Y142: =VLOOKUP(Simulación!$D$17,Catalogos!$O:$R,4,0) ->  | Z142: =Y142&"_"&X142&"_"&Simulación!$D$18&"_"&$Z$1 -> 
O143: CHEVROLET | P143: 2020 | Q143: AUTOMOVIL | R143: 8 | S143: 2 | T143: 8_2_2020_AUTOMOVIL | U143: AVEO LT AUT 4P 4CIL | V143: 12573.68805 | X143: 141 | Y143: =VLOOKUP(Simulación!$D$17,Catalogos!$O:$R,4,0) ->  | Z143: =Y143&"_"&X143&"_"&Simulación!$D$18&"_"&$Z$1 -> 
O144: HYUNDAI | P144: 2020 | Q144: AUTOMOVIL | R144: 16 | S144: 1 | T144: 16_1_2020_AUTOMOVIL | U144: GRAND I10 GLS PLUS AUT 5P 4CIL | V144: 11028.58723 | X144: 142 | Y144: =VLOOKUP(Simulación!$D$17,Catalogos!$O:$R,4,0) ->  | Z144: =Y144&"_"&X144&"_"&Simulación!$D$18&"_"&$Z$1 -> 
O145: HYUNDAI | P145: 2020 | Q145: AUTOMOVIL | R145: 16 | S145: 2 | T145: 16_2_2020_AUTOMOVIL | U145: ACCENT GL STD 4P 4CIL | V145: 9878.444538 | X145: 143 | Y145: =VLOOKUP(Simulación!$D$17,Catalogos!$O:$R,4,0) ->  | Z145: =Y145&"_"&X145&"_"&Simulación!$D$18&"_"&$Z$1 -> 
O146: HYUNDAI | P146: 2020 | Q146: AUTOMOVIL | R146: 16 | S146: 3 | T146: 16_3_2020_AUTOMOVIL | U146: ACCENT GLS AUT 4P 4CIL | V146: 11843.02023 | X146: 144 | Y146: =VLOOKUP(Simulación!$D$17,Catalogos!$O:$R,4,0) ->  | Z146: =Y146&"_"&X146&"_"&Simulación!$D$18&"_"&$Z$1 -> 
O147: KIA | P147: 2020 | Q147: AUTOMOVIL | R147: 20 | S147: 1 | T147: 20_1_2020_AUTOMOVIL | U147: FORTE EX AUT 4P 4CIL | V147: 10465.33178 | X147: 145 | Y147: =VLOOKUP(Simulación!$D$17,Catalogos!$O:$R,4,0) ->  | Z147: =Y147&"_"&X147&"_"&Simulación!$D$18&"_"&$Z$1 -> 
O148: BMW | P148: 2020 | Q148: AUTOMOVIL | R148: 7 | S148: 1 | T148: 7_1_2020_AUTOMOVIL | U148: X2 SDRIVE 20IA EXECUTIVE AUT 2.0 5P 4CIL | V148: 25380.54807 | X148: 146 | Y148: =VLOOKUP(Simulación!$D$17,Catalogos!$O:$R,4,0) ->  | Z148: =Y148&"_"&X148&"_"&Simulación!$D$18&"_"&$Z$1 -> 
O149: MERCEDES BENZ | P149: 2020 | Q149: AUTOMOVIL | R149: 28 | S149: 1 | T149: 28_1_2020_AUTOMOVIL | U149: GLE 43 SPORT COUPE AMG AUT 5P 6CIL | V149: 49349.64525 | X149: 147 | Y149: =VLOOKUP(Simulación!$D$17,Catalogos!$O:$R,4,0) ->  | Z149: =Y149&"_"&X149&"_"&Simulación!$D$18&"_"&$Z$1 -> 
O150: BMW | P150: 2020 | Q150: AUTOMOVIL | R150: 7 | S150: 1 | T150: 7_1_2020_AUTOMOVIL | U150: X5 XDRIVE40I EXECUTIVE AUT 5P 6CIL | V150: 46364.96018 | X150: 148 | Y150: =VLOOKUP(Simulación!$D$17,Catalogos!$O:$R,4,0) ->  | Z150: =Y150&"_"&X150&"_"&Simulación!$D$18&"_"&$Z$1 -> 
O151: BMW | P151: 2020 | Q151: AUTOMOVIL | R151: 7 | S151: 2 | T151: 7_2_2020_AUTOMOVIL | U151: X7 XDRIVE 40IA M SPORT AUT 5P 6CIL | V151: 67347.13716 | X151: 149 | Y151: =VLOOKUP(Simulación!$D$17,Catalogos!$O:$R,4,0) ->  | Z151: =Y151&"_"&X151&"_"&Simulación!$D$18&"_"&$Z$1 -> 
O152: FIAT | P152: 2020 | Q152: AUTOMOVIL | R152: 12 | S152: 1 | T152: 12_1_2020_AUTOMOVIL | U152: PALIO ADVENTURE STD | V152: 12768.77216 | X152: 150 | Y152: =VLOOKUP(Simulación!$D$17,Catalogos!$O:$R,4,0) ->  | Z152: =Y152&"_"&X152&"_"&Simulación!$D$18&"_"&$Z$1 -> 
O153: FIAT | P153: 2020 | Q153: AUTOMOVIL | R153: 12 | S153: 2 | T153: 12_2_2020_AUTOMOVIL | U153: PALIO ADVENTURE AUT | V153: 12768.77216 | X153: 151 | Y153: =VLOOKUP(Simulación!$D$17,Catalogos!$O:$R,4,0) ->  | Z153: =Y153&"_"&X153&"_"&Simulación!$D$18&"_"&$Z$1 -> 
O154: FIAT | P154: 2020 | Q154: AUTOMOVIL | R154: 12 | S154: 3 | T154: 12_3_2020_AUTOMOVIL | U154: UNO WAY STD 5P AC 4CIL | V154: 7917.43763 | X154: 152 | Y154: =VLOOKUP(Simulación!$D$17,Catalogos!$O:$R,4,0) ->  | Z154: =Y154&"_"&X154&"_"&Simulación!$D$18&"_"&$Z$1 -> 
O155: FIAT | P155: 2020 | Q155: AUTOMOVIL | R155: 12 | S155: 4 | T155: 12_4_2020_AUTOMOVIL | U155: UNO SPORTING STD 5P 4CIL | V155: 8479.060736 | X155: 153 | Y155: =VLOOKUP(Simulación!$D$17,Catalogos!$O:$R,4,0) ->  | Z155: =Y155&"_"&X155&"_"&Simulación!$D$18&"_"&$Z$1 -> 
O156: FIAT | P156: 2020 | Q156: AUTOMOVIL | R156: 12 | S156: 5 | T156: 12_5_2020_AUTOMOVIL | U156: MOBI LIKE STD 5P 4CIL | V156: 8331.834602 | X156: 154 | Y156: =VLOOKUP(Simulación!$D$17,Catalogos!$O:$R,4,0) ->  | Z156: =Y156&"_"&X156&"_"&Simulación!$D$18&"_"&$Z$1 -> 
O157: FIAT | P157: 2020 | Q157: AUTOMOVIL | R157: 12 | S157: 6 | T157: 12_6_2020_AUTOMOVIL | U157: MOBI WAY STD AUT 5P 4CIL | V157: 8878.990025 | X157: 155 | Y157: =VLOOKUP(Simulación!$D$17,Catalogos!$O:$R,4,0) ->  | Z157: =Y157&"_"&X157&"_"&Simulación!$D$18&"_"&$Z$1 -> 
O158: FIAT | P158: 2020 | Q158: AUTOMOVIL | R158: 12 | S158: 7 | T158: 12_7_2020_AUTOMOVIL | U158: UNO LIKE STD 5P 4CIL | V158: 7995.10556 | X158: 156 | Y158: =VLOOKUP(Simulación!$D$17,Catalogos!$O:$R,4,0) ->  | Z158: =Y158&"_"&X158&"_"&Simulación!$D$18&"_"&$Z$1 -> 
O159: BMW | P159: 2020 | Q159: AUTOMOVIL | R159: 7 | S159: 1 | T159: 7_1_2020_AUTOMOVIL | U159: MINI COOPER S HOT CHILI AT | V159: 25931.58138 | X159: 157 | Y159: =VLOOKUP(Simulación!$D$17,Catalogos!$O:$R,4,0) ->  | Z159: =Y159&"_"&X159&"_"&Simulación!$D$18&"_"&$Z$1 -> 
O160: BMW | P160: 2020 | Q160: AUTOMOVIL | R160: 7 | S160: 2 | T160: 7_2_2020_AUTOMOVIL | U160: CHILI AT (N) | V160: 20965.57337 | X160: 158 | Y160: =VLOOKUP(Simulación!$D$17,Catalogos!$O:$R,4,0) ->  | Z160: =Y160&"_"&X160&"_"&Simulación!$D$18&"_"&$Z$1 -> 
O161: BMW | P161: 2020 | Q161: AUTOMOVIL | R161: 7 | S161: 3 | T161: 7_3_2020_AUTOMOVIL | U161: CONVERTIBLE PEPPER AT (N) | V161: 33696.24273 | X161: 159 | Y161: =VLOOKUP(Simulación!$D$17,Catalogos!$O:$R,4,0) ->  | Z161: =Y161&"_"&X161&"_"&Simulación!$D$18&"_"&$Z$1 -> 
O162: BMW | P162: 2020 | Q162: AUTOMOVIL | R162: 7 | S162: 4 | T162: 7_4_2020_AUTOMOVIL | U162: S CONVERTIBLE HOT CHILI AT (N) | V162: 28100.39252 | X162: 160 | Y162: =VLOOKUP(Simulación!$D$17,Catalogos!$O:$R,4,0) ->  | Z162: =Y162&"_"&X162&"_"&Simulación!$D$18&"_"&$Z$1 -> 
O163: BMW | P163: 2020 | Q163: AUTOMOVIL | R163: 7 | S163: 5 | T163: 7_5_2020_AUTOMOVIL | U163: S SALT (N) | V163: 22041.74453 | X163: 161 | Y163: =VLOOKUP(Simulación!$D$17,Catalogos!$O:$R,4,0) ->  | Z163: =Y163&"_"&X163&"_"&Simulación!$D$18&"_"&$Z$1 -> 
O164: BMW | P164: 2020 | Q164: AUTOMOVIL | R164: 7 | S164: 6 | T164: 7_6_2020_AUTOMOVIL | U164: S SALT AT (N) | V164: 22561.17719 | X164: 162 | Y164: =VLOOKUP(Simulación!$D$17,Catalogos!$O:$R,4,0) ->  | Z164: =Y164&"_"&X164&"_"&Simulación!$D$18&"_"&$Z$1 -> 
O165: LAND ROVER | P165: 2020 | Q165: AUTOMOVIL | R165: 22 | S165: 1 | T165: 22_1_2020_AUTOMOVIL | U165: RANGE ROVER EVOQUE SE P250 4X4 AUT 5P 4CIL | V165: 46427.50731 | X165: 163 | Y165: =VLOOKUP(Simulación!$D$17,Catalogos!$O:$R,4,0) ->  | Z165: =Y165&"_"&X165&"_"&Simulación!$D$18&"_"&$Z$1 -> 
O166: LAND ROVER | P166: 2020 | Q166: AUTOMOVIL | R166: 22 | S166: 2 | T166: 22_2_2020_AUTOMOVIL | U166: RANGE ROVER EVOQUE HSE P250 4X4 AUT 5P 4CIL | V166: 50196.56942 | X166: 164 | Y166: =VLOOKUP(Simulación!$D$17,Catalogos!$O:$R,4,0) ->  | Z166: =Y166&"_"&X166&"_"&Simulación!$D$18&"_"&$Z$1 -> 
O167: LAND ROVER | P167: 2020 | Q167: AUTOMOVIL | R167: 22 | S167: 3 | T167: 22_3_2020_AUTOMOVIL | U167: RANGE ROVER EVOQUE S P200 4X4 AUT 5P 4CIL | V167: 39442.37826 | X167: 165 | Y167: =VLOOKUP(Simulación!$D$17,Catalogos!$O:$R,4,0) ->  | Z167: =Y167&"_"&X167&"_"&Simulación!$D$18&"_"&$Z$1 -> 
O168: LAND ROVER | P168: 2020 | Q168: AUTOMOVIL | R168: 22 | S168: 4 | T168: 22_4_2020_AUTOMOVIL | U168: RANGE ROVER EVOQUE SE P200 4X4 AUT 5P 4CIL | V168: 43968.60491 | X168: 166 | Y168: =VLOOKUP(Simulación!$D$17,Catalogos!$O:$R,4,0) ->  | Z168: =Y168&"_"&X168&"_"&Simulación!$D$18&"_"&$Z$1 -> 
O169: LAND ROVER | P169: 2020 | Q169: AUTOMOVIL | R169: 22 | S169: 5 | T169: 22_5_2020_AUTOMOVIL | U169: RANGE ROVER EVOQUE S P250 4X4 AUT 5P 4CIL | V169: 41901.28066 | X169: 167 | Y169: =VLOOKUP(Simulación!$D$17,Catalogos!$O:$R,4,0) ->  | Z169: =Y169&"_"&X169&"_"&Simulación!$D$18&"_"&$Z$1 -> 
O170: LAND ROVER | P170: 2020 | Q170: AUTOMOVIL | R170: 22 | S170: 6 | T170: 22_6_2020_AUTOMOVIL | U170: RANGE ROVER EVOQUE R-DYNAMIC SE P250 4X4 AUT 5P 4CIL | V170: 48631.32264 | X170: 168 | Y170: =VLOOKUP(Simulación!$D$17,Catalogos!$O:$R,4,0) ->  | Z170: =Y170&"_"&X170&"_"&Simulación!$D$18&"_"&$Z$1 -> 
O171: LAND ROVER | P171: 2020 | Q171: AUTOMOVIL | R171: 22 | S171: 7 | T171: 22_7_2020_AUTOMOVIL | U171: RANGE ROVER EVOQUE R-DYNAMIC SE P200 4X4 AUT 5P 4CIL | V171: 46179.45109 | X171: 169 | Y171: =VLOOKUP(Simulación!$D$17,Catalogos!$O:$R,4,0) ->  | Z171: =Y171&"_"&X171&"_"&Simulación!$D$18&"_"&$Z$1 -> 
O172: LAND ROVER | P172: 2020 | Q172: AUTOMOVIL | R172: 22 | S172: 8 | T172: 22_8_2020_AUTOMOVIL | U172: RANGE ROVER EVOQUE R-DYNAMIC S P250 4X4 AUT 5P 4CIL | V172: 44112.12684 | X172: 170 | Y172: =VLOOKUP(Simulación!$D$17,Catalogos!$O:$R,4,0) ->  | Z172: =Y172&"_"&X172&"_"&Simulación!$D$18&"_"&$Z$1 -> 
O173: LAND ROVER | P173: 2020 | Q173: AUTOMOVIL | R173: 22 | S173: 9 | T173: 22_9_2020_AUTOMOVIL | U173: RANGE ROVER EVOQUE R-DYNAMIC S P200 4X4 AUT 5P 4CIL | V173: 41653.22444 | X173: 171 | Y173: =VLOOKUP(Simulación!$D$17,Catalogos!$O:$R,4,0) ->  | Z173: =Y173&"_"&X173&"_"&Simulación!$D$18&"_"&$Z$1 -> 
O174: LAND ROVER | P174: 2020 | Q174: AUTOMOVIL | R174: 22 | S174: 10 | T174: 22_10_2020_AUTOMOVIL | U174: RANGE ROVER EVOQUE R-DYNAMIC HSE P250 4X4 AUT 5P 4CIL | V174: 52404.71671 | X174: 172 | Y174: =VLOOKUP(Simulación!$D$17,Catalogos!$O:$R,4,0) ->  | Z174: =Y174&"_"&X174&"_"&Simulación!$D$18&"_"&$Z$1 -> 
O175: LAND ROVER | P175: 2020 | Q175: AUTOMOVIL | R175: 22 | S175: 11 | T175: 22_11_2020_AUTOMOVIL | U175: RANGE ROVER EVOQUE R-DYNAMIC HSE P200 4X4 AUT 5P 4CIL | V175: 49948.5132 | X175: 173 | Y175: =VLOOKUP(Simulación!$D$17,Catalogos!$O:$R,4,0) ->  | Z175: =Y175&"_"&X175&"_"&Simulación!$D$18&"_"&$Z$1 -> 
O176: LAND ROVER | P176: 2020 | Q176: AUTOMOVIL | R176: 22 | S176: 12 | T176: 22_12_2020_AUTOMOVIL | U176: RANGE ROVER EVOQUE R-DYNAMIC P200 4X4 AUT 5P 4CIL | V176: 37473.62327 | X176: 174 | Y176: =VLOOKUP(Simulación!$D$17,Catalogos!$O:$R,4,0) ->  | Z176: =Y176&"_"&X176&"_"&Simulación!$D$18&"_"&$Z$1 -> 
O177: LAND ROVER | P177: 2020 | Q177: AUTOMOVIL | R177: 22 | S177: 13 | T177: 22_13_2020_AUTOMOVIL | U177: RANGE ROVER EVOQUE HSE P200 4X4 AUT 5P 4CIL | V177: 54142.13299 | X177: 175 | Y177: =VLOOKUP(Simulación!$D$17,Catalogos!$O:$R,4,0) ->  | Z177: =Y177&"_"&X177&"_"&Simulación!$D$18&"_"&$Z$1 -> 
O178: LAND ROVER | P178: 2020 | Q178: AUTOMOVIL | R178: 22 | S178: 14 | T178: 22_14_2020_AUTOMOVIL | U178: RANGE ROVER EVOQUE FIRST EDITION P250 4X4 AUT 5P 4CIL | V178: 58446.90551 | X178: 176 | Y178: =VLOOKUP(Simulación!$D$17,Catalogos!$O:$R,4,0) ->  | Z178: =Y178&"_"&X178&"_"&Simulación!$D$18&"_"&$Z$1 -> 
O179: LAND ROVER | P179: 2020 | Q179: AUTOMOVIL | R179: 22 | S179: 15 | T179: 22_15_2020_AUTOMOVIL | U179: RANGE ROVER EVOQUE P200 4X4 AUT 5P 4CIL | V179: 35267.10905 | X179: 177 | Y179: =VLOOKUP(Simulación!$D$17,Catalogos!$O:$R,4,0) ->  | Z179: =Y179&"_"&X179&"_"&Simulación!$D$18&"_"&$Z$1 -> 
O180: VOLKSWAGEN | P180: 2020 | Q180: AUTOMOVIL | R180: 40 | S180: 1 | T180: 40_1_2020_AUTOMOVIL | U180: GOL TRENDLINE AC/DC MT | V180: 12428.33541 | X180: 178 | Y180: =VLOOKUP(Simulación!$D$17,Catalogos!$O:$R,4,0) ->  | Z180: =Y180&"_"&X180&"_"&Simulación!$D$18&"_"&$Z$1 -> 
O181: MAZDA | P181: 2020 | Q181: AUTOMOVIL | R181: 26 | S181: 1 | T181: 26_1_2020_AUTOMOVIL | U181: MAZDA6 I GRAND TOURING AT | V181: 16296.84831 | X181: 179 | Y181: =VLOOKUP(Simulación!$D$17,Catalogos!$O:$R,4,0) ->  | Z181: =Y181&"_"&X181&"_"&Simulación!$D$18&"_"&$Z$1 -> 
O182: MAZDA | P182: 2020 | Q182: AUTOMOVIL | R182: 26 | S182: 2 | T182: 26_2_2020_AUTOMOVIL | U182: MAZDA3 SEDAN I T/M | V182: 12142.4663 | X182: 180 | Y182: =VLOOKUP(Simulación!$D$17,Catalogos!$O:$R,4,0) ->  | Z182: =Y182&"_"&X182&"_"&Simulación!$D$18&"_"&$Z$1 -> 
O183: MAZDA | P183: 2020 | Q183: AUTOMOVIL | R183: 26 | S183: 3 | T183: 26_3_2020_AUTOMOVIL | U183: MAZDA3 SEDAN I T/A | V183: 13043.9871 | X183: 181 | Y183: =VLOOKUP(Simulación!$D$17,Catalogos!$O:$R,4,0) ->  | Z183: =Y183&"_"&X183&"_"&Simulación!$D$18&"_"&$Z$1 -> 
O184: MAZDA | P184: 2020 | Q184: AUTOMOVIL | R184: 26 | S184: 4 | T184: 26_4_2020_AUTOMOVIL | U184: MAZDA6 I GRAND TOURING PLUS | V184: 18785.51681 | X184: 182 | Y184: =VLOOKUP(Simulación!$D$17,Catalogos!$O:$R,4,0) ->  | Z184: =Y184&"_"&X184&"_"&Simulación!$D$18&"_"&$Z$1 -> 
O185: SUZUKI | P185: 2020 | Q185: AUTOMOVIL | R185: 37 | S185: 1 | T185: 37_1_2020_AUTOMOVIL | U185: CIAZ GLS STD 4P 4CIL | V185: 9204.700517 | X185: 183 | Y185: =VLOOKUP(Simulación!$D$17,Catalogos!$O:$R,4,0) ->  | Z185: =Y185&"_"&X185&"_"&Simulación!$D$18&"_"&$Z$1 -> 
O186: SUZUKI | P186: 2020 | Q186: AUTOMOVIL | R186: 37 | S186: 2 | T186: 37_2_2020_AUTOMOVIL | U186: CIAZ GLS AUT 4P 4CIL | V186: 10009.80459 | X186: 184 | Y186: =VLOOKUP(Simulación!$D$17,Catalogos!$O:$R,4,0) ->  | Z186: =Y186&"_"&X186&"_"&Simulación!$D$18&"_"&$Z$1 -> 
O187: SUZUKI | P187: 2020 | Q187: AUTOMOVIL | R187: 37 | S187: 3 | T187: 37_3_2020_AUTOMOVIL | U187: CIAZ GLX STD 4P 4CIL | V187: 10071.25031 | X187: 185 | Y187: =VLOOKUP(Simulación!$D$17,Catalogos!$O:$R,4,0) ->  | Z187: =Y187&"_"&X187&"_"&Simulación!$D$18&"_"&$Z$1 -> 
O188: SUZUKI | P188: 2020 | Q188: AUTOMOVIL | R188: 37 | S188: 4 | T188: 37_4_2020_AUTOMOVIL | U188: CIAZ GLX AUT 4P 4CIL | V188: 10574.06724 | X188: 186 | Y188: =VLOOKUP(Simulación!$D$17,Catalogos!$O:$R,4,0) ->  | Z188: =Y188&"_"&X188&"_"&Simulación!$D$18&"_"&$Z$1 -> 
O189: SUZUKI | P189: 2020 | Q189: AUTOMOVIL | R189: 37 | S189: 5 | T189: 37_5_2020_AUTOMOVIL | U189: VITARA GLS STD 5P 4CIL | V189: 8460.842473 | X189: 187 | Y189: =VLOOKUP(Simulación!$D$17,Catalogos!$O:$R,4,0) ->  | Z189: =Y189&"_"&X189&"_"&Simulación!$D$18&"_"&$Z$1 -> 
O190: SUZUKI | P190: 2020 | Q190: AUTOMOVIL | R190: 37 | S190: 6 | T190: 37_6_2020_AUTOMOVIL | U190: VITARA GLS AUT 5P 4CIL | V190: 8911.675163 | X190: 188 | Y190: =VLOOKUP(Simulación!$D$17,Catalogos!$O:$R,4,0) ->  | Z190: =Y190&"_"&X190&"_"&Simulación!$D$18&"_"&$Z$1 -> 
O191: SUZUKI | P191: 2020 | Q191: AUTOMOVIL | R191: 37 | S191: 7 | T191: 37_7_2020_AUTOMOVIL | U191: VITARA GLX AUT 5P 4CIL | V191: 9928.19137 | X191: 189 | Y191: =VLOOKUP(Simulación!$D$17,Catalogos!$O:$R,4,0) ->  | Z191: =Y191&"_"&X191&"_"&Simulación!$D$18&"_"&$Z$1 -> 
O192: SUZUKI | P192: 2020 | Q192: AUTOMOVIL | R192: 37 | S192: 8 | T192: 37_8_2020_AUTOMOVIL | U192: VITARA GLX ALL GRIP 5P 4CIL 4X4 | V192: 10376.77865 | X192: 190 | Y192: =VLOOKUP(Simulación!$D$17,Catalogos!$O:$R,4,0) ->  | Z192: =Y192&"_"&X192&"_"&Simulación!$D$18&"_"&$Z$1 -> 
O193: SUZUKI | P193: 2020 | Q193: AUTOMOVIL | R193: 37 | S193: 9 | T193: 37_9_2020_AUTOMOVIL | U193: VITARA TURBO STD 5P 4CIL | V193: 9945.701685 | X193: 191 | Y193: =VLOOKUP(Simulación!$D$17,Catalogos!$O:$R,4,0) ->  | Z193: =Y193&"_"&X193&"_"&Simulación!$D$18&"_"&$Z$1 -> 
O194: SUZUKI | P194: 2020 | Q194: AUTOMOVIL | R194: 37 | S194: 10 | T194: 37_10_2020_AUTOMOVIL | U194: VITARA TURBO AUT 5P 4CIL | V194: 10384.18461 | X194: 192 | Y194: =VLOOKUP(Simulación!$D$17,Catalogos!$O:$R,4,0) ->  | Z194: =Y194&"_"&X194&"_"&Simulación!$D$18&"_"&$Z$1 -> 
O195: SUZUKI | P195: 2020 | Q195: AUTOMOVIL | R195: 37 | S195: =IF(O195&P195=O194&P194,S194+1,1) -> 11 | T195: =R195&"_"&S195&"_"&P195&"_"&Q195 -> 37_11_2020_AUTOMOVIL | U195: CIAZ RS STD 4P 4CIL | V195: 11085.87062 | X195: 193 | Y195: =VLOOKUP(Simulación!$D$17,Catalogos!$O:$R,4,0) ->  | Z195: =Y195&"_"&X195&"_"&Simulación!$D$18&"_"&$Z$1 ->  | AA195: =IFERROR(VLOOKUP(Z195,$T:$V,2,0),"") ->  | AB195: =IFERROR(VLOOKUP(Z195,$T:$V,3,0),"") -> 
O196: SUZUKI | P196: 2020 | Q196: AUTOMOVIL | R196: =VLOOKUP(O196,$L$3:$M$43,2,0) -> 37 | S196: 12 | T196: 37_12_2020_AUTOMOVIL | U196: CIAZ RS AUT 4P 4CIL | V196: 11557.17381 | X196: 194 | Y196: =VLOOKUP(Simulación!$D$17,Catalogos!$O:$R,4,0) ->  | Z196: =Y196&"_"&X196&"_"&Simulación!$D$18&"_"&$Z$1 -> 
O197: SUZUKI | P197: 2020 | Q197: AUTOMOVIL | R197: 37 | S197: 13 | T197: 37_13_2020_AUTOMOVIL | U197: IGNIS GL STD 5P 4CIL | V197: 7066.329514 | X197: 195 | Y197: =VLOOKUP(Simulación!$D$17,Catalogos!$O:$R,4,0) ->  | Z197: =Y197&"_"&X197&"_"&Simulación!$D$18&"_"&$Z$1 -> 
O198: SUZUKI | P198: 2020 | Q198: AUTOMOVIL | R198: 37 | S198: 14 | T198: 37_14_2020_AUTOMOVIL | U198: IGNIS GLX STD 5P 4CIL | V198: 7766.589139 | X198: 196 | Y198: =VLOOKUP(Simulación!$D$17,Catalogos!$O:$R,4,0) ->  | Z198: =Y198&"_"&X198&"_"&Simulación!$D$18&"_"&$Z$1 -> 
O199: SUZUKI | P199: 2020 | Q199: AUTOMOVIL | R199: 37 | S199: 15 | T199: 37_15_2020_AUTOMOVIL | U199: IGNIS GLX CVT 5P 4CIL | V199: 8124.452693 | X199: 197 | Y199: =VLOOKUP(Simulación!$D$17,Catalogos!$O:$R,4,0) ->  | Z199: =Y199&"_"&X199&"_"&Simulación!$D$18&"_"&$Z$1 -> 
O200: SUZUKI | P200: 2020 | Q200: AUTOMOVIL | R200: 37 | S200: 16 | T200: 37_16_2020_AUTOMOVIL | U200: SWIFT GLX BOOSTERJET STD 5P 3CIL | V200: 10100.83968 | X200: 198 | Y200: =VLOOKUP(Simulación!$D$17,Catalogos!$O:$R,4,0) ->  | Z200: =Y200&"_"&X200&"_"&Simulación!$D$18&"_"&$Z$1 -> 
... 2050 more rows
